Organisation Name,Organisation Code,Unique Ref No,Effective Date,Directorate  where expenditure incurred,Supplier name ,Payment Date,Net Amount,Purpose of Spend,Procurement Classification (Higher Level),Procurement Classification (Lower Level),Capital/Revenue
Walsall Council,http://opendatacommunities.org/id/metropolitan-district-council/walsall,WC66-1,31/03/2016,Social Care & Inclusion,1ST CARE LIMITED T/A STUBBY LEAS NURSING HOME,24/03/2016,"1,998.29",73373-RESIDENTIAL & NURSING CARE PLACEMENTS,MH COMMISSIONING,Third Party Payments,Revenue
Walsall Council,http://opendatacommunities.org/id/metropolitan-district-council/walsall,WC66-2,31/03/2016,Childrens,247 CARS (WILLENHALL) LIMITED,21/03/2016,"6,683.00",52000-WITH DRIVER-HIRE OF VEHICLES,SCHOOL TRANSPORT,Transport,Revenue
Walsall Council,http://opendatacommunities.org/id/metropolitan-district-council/walsall,WC66-3,31/03/2016,Change and Governance,2ND BLOXWICH SCOUT GROUP,14/03/2016,374.00,62515-MISCELLANEOUS SUPPLIES,AREA 3 - NORTH WALSALL,Supplies & Services,Revenue
Walsall Council,http://opendatacommunities.org/id/metropolitan-district-council/walsall,WC66-4,31/03/2016,Childrens,2SIMPLE SOFTWARE LTD,16/03/2016,"1,600.00",63800-COMPUTER EQUIPMENT AND SUPPLIES,INFORMATION SERVICES,Supplies & Services,Revenue
Walsall Council,http://opendatacommunities.org/id/metropolitan-district-council/walsall,WC66-5,31/03/2016,Change and Governance,4 SIGHT EYECARE CENTRE 002,04/03/2016,"1,000.00",60520-HEALTH & SAFETY-MATERIALS,HR DIRECT SERVICES,Supplies & Services,Revenue
Walsall Council,http://opendatacommunities.org/id/metropolitan-district-council/walsall,WC66-6,31/03/2016,Social Care & Inclusion,5 CARE SERVICES LTD,14/03/2016,278.00,73372-DOMICILIARY CARE,OP COMMISSIONING,Third Party Payments,Revenue
Walsall Council,http://opendatacommunities.org/id/metropolitan-district-council/walsall,WC66-7,31/03/2016,Childrens,5 CARE SERVICES LTD,09/03/2016,750.00,63000-PROFESSIONAL FEES AND SERVICES,DIRECTLY COMMISSIONED NURSING SERVICES,Supplies & Services,Revenue
Walsall Council,http://opendatacommunities.org/id/metropolitan-district-council/walsall,WC66-8,31/03/2016,Childrens,5 CARE SERVICES LTD,24/03/2016,"1,248.00",63000-PROFESSIONAL FEES AND SERVICES,DIRECTLY COMMISSIONED NURSING SERVICES,Supplies & Services,Revenue
Walsall Council,http://opendatacommunities.org/id/metropolitan-district-council/walsall,WC66-9,31/03/2016,Childrens,5 CARE SERVICES LTD,01/03/2016,"1,392.00",63000-PROFESSIONAL FEES AND SERVICES,DIRECTLY COMMISSIONED NURSING SERVICES,Supplies & Services,Revenue
Walsall Council,http://opendatacommunities.org/id/metropolitan-district-council/walsall,WC66-10,31/03/2016,Childrens,5 CARE SERVICES LTD,01/03/2016,"1,740.00",63000-PROFESSIONAL FEES AND SERVICES,DIRECTLY COMMISSIONED NURSING SERVICES,Supplies & Services,Revenue
Walsall Council,http://opendatacommunities.org/id/metropolitan-district-council/walsall,WC66-11,31/03/2016,Social Care & Inclusion,5 CARE SERVICES LTD,30/03/2016,"28,678.00",73372-DOMICILIARY CARE,OP COMMISSIONING,Third Party Payments,Revenue
Walsall Council,http://opendatacommunities.org/id/metropolitan-district-council/walsall,WC66-12,31/03/2016,Social Care & Inclusion,5 CARE SERVICES LTD,02/03/2016,"33,701.80",73372-DOMICILIARY CARE,OP COMMISSIONING,Third Party Payments,Revenue
Walsall Council,http://opendatacommunities.org/id/metropolitan-district-council/walsall,WC66-13,31/03/2016,Economy & Environment,A ASHTON,24/03/2016,340.00,60500-GENERAL MATERIALS,GROUNDS,Supplies & Services,Revenue
Walsall Council,http://opendatacommunities.org/id/metropolitan-district-council/walsall,WC66-14,31/03/2016,Economy & Environment,A C ENTERTAINMENT TECHNOLOGIES LTD,14/03/2016,948.00,01044-PURCHASE OF FURNITURE & EQUIPMENT,CFR 1014 FOREST ARTS CENTRE (RENOVATION OF SPORTS HALL),Capital,Capital
Walsall Council,http://opendatacommunities.org/id/metropolitan-district-council/walsall,WC66-15,31/03/2016,Economy & Environment,A C ENTERTAINMENT TECHNOLOGIES LTD,11/03/2016,"1,590.99",01044-PURCHASE OF FURNITURE & EQUIPMENT,CFR 1014 FOREST ARTS CENTRE (RENOVATION OF SPORTS HALL),Capital,Capital
Walsall Council,http://opendatacommunities.org/id/metropolitan-district-council/walsall,WC66-16,31/03/2016,Economy & Environment,A C ENTERTAINMENT TECHNOLOGIES LTD,11/03/2016,"4,740.00",01044-PURCHASE OF FURNITURE & EQUIPMENT,CFR 1014 FOREST ARTS CENTRE (RENOVATION OF SPORTS HALL),Capital,Capital
Walsall Council,http://opendatacommunities.org/id/metropolitan-district-council/walsall,WC66-17,31/03/2016,Economy & Environment,A C ENTERTAINMENT TECHNOLOGIES LTD,11/03/2016,"13,137.47",01044-PURCHASE OF FURNITURE & EQUIPMENT,CFR 1014 FOREST ARTS CENTRE (RENOVATION OF SPORTS HALL),Capital,Capital
Walsall Council,http://opendatacommunities.org/id/metropolitan-district-council/walsall,WC66-18,31/03/2016,Economy & Environment,A C ENTERTAINMENT TECHNOLOGIES LTD,14/03/2016,"14,879.74",01044-PURCHASE OF FURNITURE & EQUIPMENT,CFR 1014 FOREST ARTS CENTRE (RENOVATION OF SPORTS HALL),Capital,Capital
Walsall Council,http://opendatacommunities.org/id/metropolitan-district-council/walsall,WC66-19,31/03/2016,Change and Governance,A D T FIRE AND SECURITY PLC,24/03/2016,215.79,73002-SECURITY-PRIV CONTRACTOR FEES,CENTRALISED MAINTENANCE,Third Party Payments,Revenue
Walsall Council,http://opendatacommunities.org/id/metropolitan-district-council/walsall,WC66-20,31/03/2016,Economy & Environment,A D T FIRE AND SECURITY PLC,01/03/2016,223.71,60008-MAINTENANCE-FURNITURE & EQUIPMENT,LIBRARY OPERATIONS CENTRAL,Supplies & Services,Revenue
Walsall Council,http://opendatacommunities.org/id/metropolitan-district-council/walsall,WC66-21,31/03/2016,Change and Governance,A D T FIRE AND SECURITY PLC,17/03/2016,230.49,01006-SITE WORKS MAIN CONTRACTORS,CFR 804 FIRE RISK ASSESSMENT WORKS,Capital,Capital
Walsall Council,http://opendatacommunities.org/id/metropolitan-district-council/walsall,WC66-22,31/03/2016,Change and Governance,A D T FIRE AND SECURITY PLC,16/03/2016,269.00,01006-SITE WORKS MAIN CONTRACTORS,CFR 804 FIRE RISK ASSESSMENT WORKS,Capital,Capital
Walsall Council,http://opendatacommunities.org/id/metropolitan-district-council/walsall,WC66-23,31/03/2016,Change and Governance,A D T FIRE AND SECURITY PLC,21/03/2016,315.34,73002-SECURITY-PRIV CONTRACTOR FEES,CHALLENGE BUILDING,Third Party Payments,Revenue
Walsall Council,http://opendatacommunities.org/id/metropolitan-district-council/walsall,WC66-24,31/03/2016,Change and Governance,A D T FIRE AND SECURITY PLC,02/03/2016,366.98,73002-SECURITY-PRIV CONTRACTOR FEES,CHALLENGE BUILDING,Third Party Payments,Revenue
Walsall Council,http://opendatacommunities.org/id/metropolitan-district-council/walsall,WC66-25,31/03/2016,Change and Governance,A D T FIRE AND SECURITY PLC,24/03/2016,600.04,01006-SITE WORKS MAIN CONTRACTORS,CFR 804 FIRE RISK ASSESSMENT WORKS,Capital,Capital
Walsall Council,http://opendatacommunities.org/id/metropolitan-district-council/walsall,WC66-26,31/03/2016,Change and Governance,A D T FIRE AND SECURITY PLC,24/03/2016,654.09,73002-SECURITY-PRIV CONTRACTOR FEES,CENTRALISED MAINTENANCE,Third Party Payments,Revenue
Walsall Council,http://opendatacommunities.org/id/metropolitan-district-council/walsall,WC66-27,31/03/2016,Social Care & Inclusion,A D T FIRE AND SECURITY PLC,16/03/2016,748.70,60500-GENERAL MATERIALS,FALLINGS HEATH,Supplies & Services,Revenue
Walsall Council,http://opendatacommunities.org/id/metropolitan-district-council/walsall,WC66-28,31/03/2016,Change and Governance,A D T FIRE AND SECURITY PLC,24/03/2016,972.62,73002-SECURITY-PRIV CONTRACTOR FEES,CHALLENGE BUILDING,Third Party Payments,Revenue
Walsall Council,http://opendatacommunities.org/id/metropolitan-district-council/walsall,WC66-29,31/03/2016,Change and Governance,A D T FIRE AND SECURITY PLC,24/03/2016,990.90,73002-SECURITY-PRIV CONTRACTOR FEES,CENTRALISED MAINTENANCE,Third Party Payments,Revenue
Walsall Council,http://opendatacommunities.org/id/metropolitan-district-council/walsall,WC66-30,31/03/2016,Change and Governance,A D T FIRE AND SECURITY PLC,15/03/2016,"1,050.00","40000-REPAIRS,ALTERATIONS & MAINTENANCE-PREM",CENTRALISED MAINTENANCE,Premises,Revenue
Walsall Council,http://opendatacommunities.org/id/metropolitan-district-council/walsall,WC66-31,31/03/2016,Economy & Environment,A D T FIRE AND SECURITY PLC,16/03/2016,"1,109.76",60008-MAINTENANCE-FURNITURE & EQUIPMENT,LIBRARY OPERATIONS - MOBILE SERVICE,Supplies & Services,Revenue
Walsall Council,http://opendatacommunities.org/id/metropolitan-district-council/walsall,WC66-32,31/03/2016,Change and Governance,A D T FIRE AND SECURITY PLC,24/03/2016,"1,112.15",73002-SECURITY-PRIV CONTRACTOR FEES,CENTRALISED MAINTENANCE,Third Party Payments,Revenue
Walsall Council,http://opendatacommunities.org/id/metropolitan-district-council/walsall,WC66-33,31/03/2016,Economy & Environment,A F BLAKEMORE & SON LTD,21/03/2016,265.28,61009-BEVERAGES-PROVISIONS,BLOXWICH LEISURE CENTRE,Supplies & Services,Revenue
Walsall Council,http://opendatacommunities.org/id/metropolitan-district-council/walsall,WC66-34,31/03/2016,Economy & Environment,A F BLAKEMORE & SON LTD,11/03/2016,329.60,61008-CONFECTIONERY/SNACKS-PROVISIONS,OAK PARK,Supplies & Services,Revenue
Walsall Council,http://opendatacommunities.org/id/metropolitan-district-council/walsall,WC66-35,31/03/2016,Economy & Environment,A F BLAKEMORE & SON LTD,21/03/2016,412.95,61002-DRY FOODS-PROVISIONS,BLOXWICH LEISURE CENTRE,Supplies & Services,Revenue
Walsall Council,http://opendatacommunities.org/id/metropolitan-district-council/walsall,WC66-36,31/03/2016,Social Care & Inclusion,A F BLAKEMORE & SON LTD,23/03/2016,420.70,60500-GENERAL MATERIALS,GOSCOTE,Supplies & Services,Revenue
Walsall Council,http://opendatacommunities.org/id/metropolitan-district-council/walsall,WC66-37,31/03/2016,Economy & Environment,A F BLAKEMORE & SON LTD,30/03/2016,437.21,61008-CONFECTIONERY/SNACKS-PROVISIONS,OAK PARK,Supplies & Services,Revenue
Walsall Council,http://opendatacommunities.org/id/metropolitan-district-council/walsall,WC66-38,31/03/2016,Change and Governance,A F BLAKEMORE & SON LTD,17/03/2016,552.73,61016-FOOD AND BEVERAGES-PROVISIONS,WALSALL TOWN HALL,Supplies & Services,Revenue
Walsall Council,http://opendatacommunities.org/id/metropolitan-district-council/walsall,WC66-39,31/03/2016,Social Care & Inclusion,A F BLAKEMORE & SON LTD,02/03/2016,566.89,61016-FOOD AND BEVERAGES-PROVISIONS,REABLEMENT TEAM - HOLLY BANK,Supplies & Services,Revenue
Walsall Council,http://opendatacommunities.org/id/metropolitan-district-council/walsall,WC66-40,31/03/2016,Social Care & Inclusion,A F BLAKEMORE & SON LTD,23/03/2016,599.31,60500-GENERAL MATERIALS,GOSCOTE,Supplies & Services,Revenue
Walsall Council,http://opendatacommunities.org/id/metropolitan-district-council/walsall,WC66-41,31/03/2016,Change and Governance,A F BLAKEMORE & SON LTD,17/03/2016,693.17,61016-FOOD AND BEVERAGES-PROVISIONS,WALSALL TOWN HALL,Supplies & Services,Revenue
Walsall Council,http://opendatacommunities.org/id/metropolitan-district-council/walsall,WC66-42,31/03/2016,Economy & Environment,A F BLAKEMORE & SON LTD,01/03/2016,"1,132.37",61008-CONFECTIONERY/SNACKS-PROVISIONS,OAK PARK,Supplies & Services,Revenue
Walsall Council,http://opendatacommunities.org/id/metropolitan-district-council/walsall,WC66-43,31/03/2016,Childrens,REDACTED,14/03/2016,349.76,74006-HOLIDAY/CHRISTMAS ALLOWANCE-FOSTER CARERS-OTH AGENCY PROVISION,INTERNAL FOSTER CARE PROVISION,Third Party Payments,Revenue
Walsall Council,http://opendatacommunities.org/id/metropolitan-district-council/walsall,WC66-44,31/03/2016,Childrens,REDACTED,02/03/2016,464.00,76000-TRANSFER PAYMENTS - SOCIAL SERVICES CLIENTS,TRANSITION AND LEAVING CARE,Transfer Payments,Revenue
Walsall Council,http://opendatacommunities.org/id/metropolitan-district-council/walsall,WC66-45,31/03/2016,Childrens,REDACTED,15/03/2016,464.00,76000-TRANSFER PAYMENTS - SOCIAL SERVICES CLIENTS,TRANSITION AND LEAVING CARE,Transfer Payments,Revenue
Walsall Council,http://opendatacommunities.org/id/metropolitan-district-council/walsall,WC66-46,31/03/2016,Childrens,REDACTED,29/03/2016,464.00,76000-TRANSFER PAYMENTS - SOCIAL SERVICES CLIENTS,TRANSITION AND LEAVING CARE,Transfer Payments,Revenue
Walsall Council,http://opendatacommunities.org/id/metropolitan-district-council/walsall,WC66-47,31/03/2016,Change and Governance,A WALKER & SONS,11/03/2016,"1,065.00","40000-REPAIRS,ALTERATIONS & MAINTENANCE-PREM",RECHARGEABLE - NON SCHOOLS MAINTENANCE,Premises,Revenue
Walsall Council,http://opendatacommunities.org/id/metropolitan-district-council/walsall,WC66-48,31/03/2016,Childrens,A1 EXPRESS TAXIS,18/03/2016,465.00,52001-HIRE OF VEHICLES,CHILDRENS TAXI BUDGET,Transport,Revenue
Walsall Council,http://opendatacommunities.org/id/metropolitan-district-council/walsall,WC66-49,31/03/2016,Childrens,A1 EXPRESS TAXIS,18/03/2016,864.00,52001-HIRE OF VEHICLES,CHILDRENS TAXI BUDGET,Transport,Revenue
Walsall Council,http://opendatacommunities.org/id/metropolitan-district-council/walsall,WC66-50,31/03/2016,Childrens,REDACTED,14/03/2016,431.55,76422-DIRECT PAYMENTS TO SOCIAL SERVICES CLIENTS,FAMILY SUPPORT - DIRECT PAYMENTS,Transfer Payments,Revenue
Walsall Council,http://opendatacommunities.org/id/metropolitan-district-council/walsall,WC66-51,31/03/2016,Childrens,ABACUS FOSTERING LTD,24/03/2016,"4,207.14",74037-INDEPENDENT FOSTER CARE-OTH AGENCY PROVISION,EXTERNAL FOSTER CARE PROVISION,Third Party Payments,Revenue
Walsall Council,http://opendatacommunities.org/id/metropolitan-district-council/walsall,WC66-52,31/03/2016,Childrens,REDACTED,14/03/2016,650.92,74006-HOLIDAY/CHRISTMAS ALLOWANCE-FOSTER CARERS-OTH AGENCY PROVISION,INTERNAL FOSTER CARE PROVISION,Third Party Payments,Revenue
Walsall Council,http://opendatacommunities.org/id/metropolitan-district-council/walsall,WC66-53,31/03/2016,Social Care & Inclusion,ABBEY COURT NURSING & RESIDEN,22/03/2016,"1,654.07",73373-RESIDENTIAL & NURSING CARE PLACEMENTS,OP COMMISSIONING,Third Party Payments,Revenue
Walsall Council,http://opendatacommunities.org/id/metropolitan-district-council/walsall,WC66-54,31/03/2016,Social Care & Inclusion,ABBEY COURT NURSING & RESIDEN,22/03/2016,"1,654.07",73373-RESIDENTIAL & NURSING CARE PLACEMENTS,OP COMMISSIONING,Third Party Payments,Revenue
Walsall Council,http://opendatacommunities.org/id/metropolitan-district-council/walsall,WC66-55,31/03/2016,Social Care & Inclusion,ABBEY COURT NURSING & RESIDEN,24/03/2016,"2,820.00",73373-RESIDENTIAL & NURSING CARE PLACEMENTS,MH COMMISSIONING,Third Party Payments,Revenue
Walsall Council,http://opendatacommunities.org/id/metropolitan-district-council/walsall,WC66-56,31/03/2016,Economy & Environment,ABBEY ENGLAND LIMITED,03/03/2016,450.78,60500-GENERAL MATERIALS,LEATHER MUSEUM,Supplies & Services,Revenue
Walsall Council,http://opendatacommunities.org/id/metropolitan-district-council/walsall,WC66-57,31/03/2016,Social Care & Inclusion,ABBEY HEALTHCARE HOMES LTD,01/03/2016,"1,699.16",73373-RESIDENTIAL & NURSING CARE PLACEMENTS,YADS COMMISSIONING,Third Party Payments,Revenue
Walsall Council,http://opendatacommunities.org/id/metropolitan-district-council/walsall,WC66-58,31/03/2016,Social Care & Inclusion,ABBEY HEALTHCARE HOMES LTD,08/03/2016,"1,699.16",73373-RESIDENTIAL & NURSING CARE PLACEMENTS,YADS COMMISSIONING,Third Party Payments,Revenue
Walsall Council,http://opendatacommunities.org/id/metropolitan-district-council/walsall,WC66-59,31/03/2016,Social Care & Inclusion,ABBEY HEALTHCARE HOMES LTD,01/03/2016,"2,294.08",73373-RESIDENTIAL & NURSING CARE PLACEMENTS,YADS COMMISSIONING,Third Party Payments,Revenue
Walsall Council,http://opendatacommunities.org/id/metropolitan-district-council/walsall,WC66-60,31/03/2016,Social Care & Inclusion,ABBEY HEALTHCARE HOMES LTD,08/03/2016,"2,294.08",73373-RESIDENTIAL & NURSING CARE PLACEMENTS,YADS COMMISSIONING,Third Party Payments,Revenue
Walsall Council,http://opendatacommunities.org/id/metropolitan-district-council/walsall,WC66-61,31/03/2016,Childrens,ABC CHILDRENS HOME,01/03/2016,"12,428.57",74036-EXTERNAL RESIDENTIAL CARE-OTH AGENCY PROVISION,INDEPENDENT RESIDENTIAL HOMES,Third Party Payments,Revenue
Walsall Council,http://opendatacommunities.org/id/metropolitan-district-council/walsall,WC66-62,31/03/2016,Childrens,ABC CHILDRENS HOME,24/03/2016,"13,285.71",74036-EXTERNAL RESIDENTIAL CARE-OTH AGENCY PROVISION,INDEPENDENT RESIDENTIAL HOMES,Third Party Payments,Revenue
Walsall Council,http://opendatacommunities.org/id/metropolitan-district-council/walsall,WC66-63,31/03/2016,Childrens,ABC DAY NURSERY (WILLENHALL) LIMITED,11/03/2016,"10,183.00",66505-OTHER-GRANTS TO OTHER ORGS,EARLY YEARS - 3 YR OLDS,Third Party Payments,Revenue
Walsall Council,http://opendatacommunities.org/id/metropolitan-district-council/walsall,WC66-64,31/03/2016,Childrens,ABC DAY NURSERY (WILLENHALL) LIMITED,10/03/2016,"18,036.77",66505-OTHER-GRANTS TO OTHER ORGS,EARLY YEARS - 2 YR OLDS,Third Party Payments,Revenue
Walsall Council,http://opendatacommunities.org/id/metropolitan-district-council/walsall,WC66-65,31/03/2016,Childrens,ABC FOSTERING,22/03/2016,"2,788.06",74037-INDEPENDENT FOSTER CARE-OTH AGENCY PROVISION,EXTERNAL FOSTER CARE PROVISION,Third Party Payments,Revenue
Walsall Council,http://opendatacommunities.org/id/metropolitan-district-council/walsall,WC66-66,31/03/2016,Childrens,ABC FOSTERING,22/03/2016,"2,934.80",74037-INDEPENDENT FOSTER CARE-OTH AGENCY PROVISION,EXTERNAL FOSTER CARE PROVISION,Third Party Payments,Revenue
Walsall Council,http://opendatacommunities.org/id/metropolitan-district-council/walsall,WC66-67,31/03/2016,Childrens,ABC FOSTERING,22/03/2016,"2,971.47",74037-INDEPENDENT FOSTER CARE-OTH AGENCY PROVISION,EXTERNAL FOSTER CARE PROVISION,Third Party Payments,Revenue
Walsall Council,http://opendatacommunities.org/id/metropolitan-district-council/walsall,WC66-68,31/03/2016,Childrens,ABC FOSTERING,22/03/2016,"3,030.50",74037-INDEPENDENT FOSTER CARE-OTH AGENCY PROVISION,EXTERNAL FOSTER CARE PROVISION,Third Party Payments,Revenue
Walsall Council,http://opendatacommunities.org/id/metropolitan-district-council/walsall,WC66-69,31/03/2016,Childrens,ABC FOSTERING,22/03/2016,"3,127.86",74037-INDEPENDENT FOSTER CARE-OTH AGENCY PROVISION,EXTERNAL FOSTER CARE PROVISION,Third Party Payments,Revenue
Walsall Council,http://opendatacommunities.org/id/metropolitan-district-council/walsall,WC66-70,31/03/2016,Childrens,ABC FOSTERING,22/03/2016,"3,190.00",74037-INDEPENDENT FOSTER CARE-OTH AGENCY PROVISION,EXTERNAL FOSTER CARE PROVISION,Third Party Payments,Revenue
Walsall Council,http://opendatacommunities.org/id/metropolitan-district-council/walsall,WC66-71,31/03/2016,Childrens,ABC TEACHERS LIMITED,24/03/2016,461.98,34305-AGENCY STAFF-EMPLOYEES,ACCESS TEAM,Employees,Revenue
Walsall Council,http://opendatacommunities.org/id/metropolitan-district-council/walsall,WC66-72,31/03/2016,Childrens,ABC TEACHERS LIMITED,24/03/2016,692.97,34305-AGENCY STAFF-EMPLOYEES,ACCESS TEAM,Employees,Revenue
Walsall Council,http://opendatacommunities.org/id/metropolitan-district-council/walsall,WC66-73,31/03/2016,Childrens,ABC TEACHERS LIMITED,24/03/2016,923.96,34305-AGENCY STAFF-EMPLOYEES,ACCESS TEAM,Employees,Revenue
Walsall Council,http://opendatacommunities.org/id/metropolitan-district-council/walsall,WC66-74,31/03/2016,Social Care & Inclusion,REDACTED,14/03/2016,"2,947.49",76422-DIRECT PAYMENTS TO SOCIAL SERVICES CLIENTS,LD COMMISSIONING,Transfer Payments,Revenue
Walsall Council,http://opendatacommunities.org/id/metropolitan-district-council/walsall,WC66-75,31/03/2016,Childrens,ABLEWELL CARS,14/03/2016,530.00,52000-WITH DRIVER-HIRE OF VEHICLES,SCHOOL TRANSPORT,Transport,Revenue
Walsall Council,http://opendatacommunities.org/id/metropolitan-district-council/walsall,WC66-76,31/03/2016,Childrens,ABLEWELL CARS,01/03/2016,742.00,52000-WITH DRIVER-HIRE OF VEHICLES,SCHOOL TRANSPORT,Transport,Revenue
Walsall Council,http://opendatacommunities.org/id/metropolitan-district-council/walsall,WC66-77,31/03/2016,Childrens,ABU BAKR NURSERY,10/03/2016,"5,083.16",66505-OTHER-GRANTS TO OTHER ORGS,EARLY YEARS - 2 YR OLDS,Third Party Payments,Revenue
Walsall Council,http://opendatacommunities.org/id/metropolitan-district-council/walsall,WC66-78,31/03/2016,Childrens,ABU BAKR NURSERY,11/03/2016,"16,538.00",66505-OTHER-GRANTS TO OTHER ORGS,EARLY YEARS - 3 YR OLDS,Third Party Payments,Revenue
Walsall Council,http://opendatacommunities.org/id/metropolitan-district-council/walsall,WC66-79,31/03/2016,Childrens,ACADEMIC EXELLENCE,31/03/2016,900.00,63000-PROFESSIONAL FEES AND SERVICES,INDEPENDENT PROVIDERS - SPECIAL & AP,Supplies & Services,Revenue
Walsall Council,http://opendatacommunities.org/id/metropolitan-district-council/walsall,WC66-80,31/03/2016,Holding Accounts,ACCESS CONTROL SOLUTIONS (UK) LTD,08/03/2016,"2,490.00",67001-MISC INSURANCES - PAYMENT OF CLAIMS,PUBLIC LIABILITY,Supplies & Services,Revenue
Walsall Council,http://opendatacommunities.org/id/metropolitan-district-council/walsall,WC66-81,31/03/2016,Social Care & Inclusion,ACCORD HOUSING ASSOCIATION LTD#135,04/03/2016,"2,408.32",73372-DOMICILIARY CARE,OP COMMISSIONING,Third Party Payments,Revenue
Walsall Council,http://opendatacommunities.org/id/metropolitan-district-council/walsall,WC66-82,31/03/2016,Social Care & Inclusion,ACCORD HOUSING ASSOCIATION LTD#135,08/03/2016,"4,438.78",73373-RESIDENTIAL & NURSING CARE PLACEMENTS,LD COMMISSIONING,Third Party Payments,Revenue
Walsall Council,http://opendatacommunities.org/id/metropolitan-district-council/walsall,WC66-83,31/03/2016,Social Care & Inclusion,ACCORD HOUSING ASSOCIATION LTD#135,08/03/2016,"4,438.78",73373-RESIDENTIAL & NURSING CARE PLACEMENTS,LD COMMISSIONING,Third Party Payments,Revenue
Walsall Council,http://opendatacommunities.org/id/metropolitan-district-council/walsall,WC66-84,31/03/2016,Social Care & Inclusion,ACCORD HOUSING ASSOCIATION LTD#135,08/03/2016,"4,438.78",73373-RESIDENTIAL & NURSING CARE PLACEMENTS,LD COMMISSIONING,Third Party Payments,Revenue
Walsall Council,http://opendatacommunities.org/id/metropolitan-district-council/walsall,WC66-85,31/03/2016,Social Care & Inclusion,ACCORD HOUSING ASSOCIATION LTD#135,08/03/2016,"4,438.78",73373-RESIDENTIAL & NURSING CARE PLACEMENTS,LD COMMISSIONING,Third Party Payments,Revenue
Walsall Council,http://opendatacommunities.org/id/metropolitan-district-council/walsall,WC66-86,31/03/2016,Social Care & Inclusion,ACCORD HOUSING ASSOCIATION LTD#135,08/03/2016,"6,195.10",73373-RESIDENTIAL & NURSING CARE PLACEMENTS,LD COMMISSIONING,Third Party Payments,Revenue
Walsall Council,http://opendatacommunities.org/id/metropolitan-district-council/walsall,WC66-87,31/03/2016,Social Care & Inclusion,ACCORD HOUSING ASSOCIATION LTD#135,08/03/2016,"6,195.10",73373-RESIDENTIAL & NURSING CARE PLACEMENTS,LD COMMISSIONING,Third Party Payments,Revenue
Walsall Council,http://opendatacommunities.org/id/metropolitan-district-council/walsall,WC66-88,31/03/2016,Social Care & Inclusion,ACCORD HOUSING ASSOCIATION LTD#135,08/03/2016,"6,195.10",73373-RESIDENTIAL & NURSING CARE PLACEMENTS,LD COMMISSIONING,Third Party Payments,Revenue
Walsall Council,http://opendatacommunities.org/id/metropolitan-district-council/walsall,WC66-89,31/03/2016,Social Care & Inclusion,ACCORD HOUSING ASSOCIATION LTD#135,02/03/2016,"8,490.29",73372-DOMICILIARY CARE,OP COMMISSIONING,Third Party Payments,Revenue
Walsall Council,http://opendatacommunities.org/id/metropolitan-district-council/walsall,WC66-90,31/03/2016,Social Care & Inclusion,ACCORD HOUSING ASSOCIATION LTD#135,30/03/2016,"9,741.00",73372-DOMICILIARY CARE,OP COMMISSIONING,Third Party Payments,Revenue
Walsall Council,http://opendatacommunities.org/id/metropolitan-district-council/walsall,WC66-91,31/03/2016,Social Care & Inclusion,ACCORD HOUSING ASSOCIATION LTD#135,30/03/2016,"25,924.22",73372-DOMICILIARY CARE,OP COMMISSIONING,Third Party Payments,Revenue
Walsall Council,http://opendatacommunities.org/id/metropolitan-district-council/walsall,WC66-92,31/03/2016,Social Care & Inclusion,ACCORD HOUSING ASSOCIATION LTD#135,02/03/2016,"31,188.92",73372-DOMICILIARY CARE,OP COMMISSIONING,Third Party Payments,Revenue
Walsall Council,http://opendatacommunities.org/id/metropolitan-district-council/walsall,WC66-93,31/03/2016,Economy & Environment,ACCORD HOUSING ASSOCIATION LTD#135,02/03/2016,"212,283.97",66500-GRANTS TO OTHER ORGS,CITY DEAL WELFARE PILOT,Third Party Payments,Revenue
Walsall Council,http://opendatacommunities.org/id/metropolitan-district-council/walsall,WC66-94,31/03/2016,Social Care & Inclusion,ACE CARE AGENCY,14/03/2016,404.70,73372-DOMICILIARY CARE,MH COMMISSIONING,Third Party Payments,Revenue
Walsall Council,http://opendatacommunities.org/id/metropolitan-district-council/walsall,WC66-95,31/03/2016,Social Care & Inclusion,ACE CARE AGENCY,14/03/2016,"1,019.76",73372-DOMICILIARY CARE,OP COMMISSIONING,Third Party Payments,Revenue
Walsall Council,http://opendatacommunities.org/id/metropolitan-district-council/walsall,WC66-96,31/03/2016,Childrens,ACE RADIO CARS,14/03/2016,"1,561.92",52000-WITH DRIVER-HIRE OF VEHICLES,SCHOOL TRANSPORT,Transport,Revenue
Walsall Council,http://opendatacommunities.org/id/metropolitan-district-council/walsall,WC66-97,31/03/2016,Childrens,ACE RADIO CARS,22/03/2016,"1,854.78",52000-WITH DRIVER-HIRE OF VEHICLES,SCHOOL TRANSPORT,Transport,Revenue
Walsall Council,http://opendatacommunities.org/id/metropolitan-district-council/walsall,WC66-98,31/03/2016,Social Care & Inclusion,ACEPAY LTD (COTTAGE NUR HOME),01/03/2016,"1,975.60",73373-RESIDENTIAL & NURSING CARE PLACEMENTS,OP COMMISSIONING,Third Party Payments,Revenue
Walsall Council,http://opendatacommunities.org/id/metropolitan-district-council/walsall,WC66-99,31/03/2016,Social Care & Inclusion,ACEPAY LTD (COTTAGE NUR HOME),01/03/2016,"1,975.60",73373-RESIDENTIAL & NURSING CARE PLACEMENTS,OP COMMISSIONING,Third Party Payments,Revenue
Walsall Council,http://opendatacommunities.org/id/metropolitan-district-council/walsall,WC66-100,31/03/2016,Social Care & Inclusion,ACEPAY LTD (COTTAGE NUR HOME),08/03/2016,"1,975.60",73373-RESIDENTIAL & NURSING CARE PLACEMENTS,OP COMMISSIONING,Third Party Payments,Revenue
Walsall Council,http://opendatacommunities.org/id/metropolitan-district-council/walsall,WC66-101,31/03/2016,Social Care & Inclusion,ACEPAY LTD (COTTAGE NUR HOME),01/03/2016,"2,018.20",73373-RESIDENTIAL & NURSING CARE PLACEMENTS,OP COMMISSIONING,Third Party Payments,Revenue
Walsall Council,http://opendatacommunities.org/id/metropolitan-district-council/walsall,WC66-102,31/03/2016,Social Care & Inclusion,ACEPAY LTD (COTTAGE NUR HOME),01/03/2016,"2,018.20",73373-RESIDENTIAL & NURSING CARE PLACEMENTS,OP COMMISSIONING,Third Party Payments,Revenue
Walsall Council,http://opendatacommunities.org/id/metropolitan-district-council/walsall,WC66-103,31/03/2016,Social Care & Inclusion,ACEPAY LTD (COTTAGE NUR HOME),01/03/2016,"2,018.20",73373-RESIDENTIAL & NURSING CARE PLACEMENTS,OP COMMISSIONING,Third Party Payments,Revenue
Walsall Council,http://opendatacommunities.org/id/metropolitan-district-council/walsall,WC66-104,31/03/2016,Childrens,ACORN CARE & EDUCATION LTD (SALES),24/03/2016,"12,650.00",66502-TOP UP FUNDING -GRANTS TO SCHOOLS,INDEPENDENT PROVIDERS - SPECIAL & AP,Third Party Payments,Revenue
Walsall Council,http://opendatacommunities.org/id/metropolitan-district-council/walsall,WC66-105,31/03/2016,Social Care & Inclusion,ACORN CARE LTD,22/03/2016,"15,174.19",73373-RESIDENTIAL & NURSING CARE PLACEMENTS,LD COMMISSIONING,Third Party Payments,Revenue
Walsall Council,http://opendatacommunities.org/id/metropolitan-district-council/walsall,WC66-106,31/03/2016,Social Care & Inclusion,ACORN REST HOME,15/03/2016,"1,493.24",73373-RESIDENTIAL & NURSING CARE PLACEMENTS,OP COMMISSIONING,Third Party Payments,Revenue
Walsall Council,http://opendatacommunities.org/id/metropolitan-district-council/walsall,WC66-107,31/03/2016,Social Care & Inclusion,ACORN REST HOME,22/03/2016,"1,493.24",73373-RESIDENTIAL & NURSING CARE PLACEMENTS,OP COMMISSIONING,Third Party Payments,Revenue
Walsall Council,http://opendatacommunities.org/id/metropolitan-district-council/walsall,WC66-108,31/03/2016,Social Care & Inclusion,ACORN REST HOME,22/03/2016,"1,493.24",73373-RESIDENTIAL & NURSING CARE PLACEMENTS,OP COMMISSIONING,Third Party Payments,Revenue
Walsall Council,http://opendatacommunities.org/id/metropolitan-district-council/walsall,WC66-109,31/03/2016,Childrens,ACORNS CHILDRENS HOSPICE TRUST,01/03/2016,750.00,63000-PROFESSIONAL FEES AND SERVICES,DIRECTLY COMMISSIONED NURSING SERVICES,Supplies & Services,Revenue
Walsall Council,http://opendatacommunities.org/id/metropolitan-district-council/walsall,WC66-110,31/03/2016,Economy & Environment,ACTION DIGITAL MEDIA LTD,01/03/2016,255.18,62000-EXTERNAL PRINTING SERVICES,NAG - TEMPORARY EXHIBITIONS,Supplies & Services,Revenue
Walsall Council,http://opendatacommunities.org/id/metropolitan-district-council/walsall,WC66-111,31/03/2016,Childrens,ACTION FOR CHILDREN,24/03/2016,"3,518.85",74037-INDEPENDENT FOSTER CARE-OTH AGENCY PROVISION,EXTERNAL FOSTER CARE PROVISION,Third Party Payments,Revenue
Walsall Council,http://opendatacommunities.org/id/metropolitan-district-council/walsall,WC66-112,31/03/2016,Economy & Environment,REDACTED,30/03/2016,540.00,63000-PROFESSIONAL FEES AND SERVICES,PHOTOGRAPHY EXHIBITION NO. 2 WSA,Supplies & Services,Revenue
Walsall Council,http://opendatacommunities.org/id/metropolitan-district-council/walsall,WC66-113,31/03/2016,Economy & Environment,REDACTED,30/03/2016,552.00,63000-PROFESSIONAL FEES AND SERVICES,NAG - TEMPORARY EXHIBITIONS,Supplies & Services,Revenue
Walsall Council,http://opendatacommunities.org/id/metropolitan-district-council/walsall,WC66-114,31/03/2016,Economy & Environment,REDACTED,30/03/2016,648.00,63000-PROFESSIONAL FEES AND SERVICES,NAG - TEMPORARY EXHIBITIONS,Supplies & Services,Revenue
Walsall Council,http://opendatacommunities.org/id/metropolitan-district-council/walsall,WC66-115,31/03/2016,Economy & Environment,REDACTED,30/03/2016,756.00,63000-PROFESSIONAL FEES AND SERVICES,PHOTOGRAPHY EXHIBITION NO. 2 WSA,Supplies & Services,Revenue
Walsall Council,http://opendatacommunities.org/id/metropolitan-district-council/walsall,WC66-116,31/03/2016,Childrens,REDACTED,14/03/2016,609.50,76422-DIRECT PAYMENTS TO SOCIAL SERVICES CLIENTS,FAMILY SUPPORT - DIRECT PAYMENTS,Transfer Payments,Revenue
Walsall Council,http://opendatacommunities.org/id/metropolitan-district-council/walsall,WC66-117,31/03/2016,Social Care & Inclusion,REDACTED,14/03/2016,521.85,76422-DIRECT PAYMENTS TO SOCIAL SERVICES CLIENTS,LD COMMISSIONING,Transfer Payments,Revenue
Walsall Council,http://opendatacommunities.org/id/metropolitan-district-council/walsall,WC66-118,31/03/2016,Childrens,ADCS (ASSOCIATION OF DIRECTORS OF CHILDRENS SERVICES),18/03/2016,"2,351.25",63000-PROFESSIONAL FEES AND SERVICES,UNIVERSAL EDUCATION CLIENT UNIT,Supplies & Services,Revenue
Walsall Council,http://opendatacommunities.org/id/metropolitan-district-council/walsall,WC66-119,31/03/2016,Social Care & Inclusion,REDACTED,14/03/2016,"1,075.00",76422-DIRECT PAYMENTS TO SOCIAL SERVICES CLIENTS,OP COMMISSIONING,Transfer Payments,Revenue
Walsall Council,http://opendatacommunities.org/id/metropolitan-district-council/walsall,WC66-120,31/03/2016,Social Care & Inclusion,ADMIRAL SELF STORAGE LTD,21/03/2016,215.10,43000-RENTS,MENTAL HEALTH MANAGEMENT TEAM,Premises,Revenue
Walsall Council,http://opendatacommunities.org/id/metropolitan-district-council/walsall,WC66-121,31/03/2016,Change and Governance,ADMIRAL SELF STORAGE LTD,01/03/2016,419.32,63000-PROFESSIONAL FEES AND SERVICES,FINANCE ADMIN,Supplies & Services,Revenue
Walsall Council,http://opendatacommunities.org/id/metropolitan-district-council/walsall,WC66-122,31/03/2016,Change and Governance,ADMIRAL SELF STORAGE LTD,24/03/2016,419.32,63000-PROFESSIONAL FEES AND SERVICES,FINANCE ADMIN,Supplies & Services,Revenue
Walsall Council,http://opendatacommunities.org/id/metropolitan-district-council/walsall,WC66-123,31/03/2016,Childrens,REDACTED,14/03/2016,728.32,74006-HOLIDAY/CHRISTMAS ALLOWANCE-FOSTER CARERS-OTH AGENCY PROVISION,INTERNAL FOSTER CARE PROVISION,Third Party Payments,Revenue
Walsall Council,http://opendatacommunities.org/id/metropolitan-district-council/walsall,WC66-124,31/03/2016,Social Care & Inclusion,ADVANCE HEALTH CARE (UK) LTD,16/03/2016,"1,638.00",73025-PROFESSIONAL SERVICES-PRIV CONTRACTOR & OTHER AGENCIES,COMMUNITY INTERMEDIATE CARE,Third Party Payments,Revenue
Walsall Council,http://opendatacommunities.org/id/metropolitan-district-council/walsall,WC66-125,31/03/2016,Social Care & Inclusion,ADVANCE HEALTH CARE (UK) LTD,01/03/2016,"1,664.00",73025-PROFESSIONAL SERVICES-PRIV CONTRACTOR & OTHER AGENCIES,COMMUNITY INTERMEDIATE CARE,Third Party Payments,Revenue
Walsall Council,http://opendatacommunities.org/id/metropolitan-district-council/walsall,WC66-126,31/03/2016,Social Care & Inclusion,ADVANCE HEALTH CARE (UK) LTD,14/03/2016,"3,930.00",73025-PROFESSIONAL SERVICES-PRIV CONTRACTOR & OTHER AGENCIES,COMMUNITY INTERMEDIATE CARE,Third Party Payments,Revenue
Walsall Council,http://opendatacommunities.org/id/metropolitan-district-council/walsall,WC66-127,31/03/2016,Social Care & Inclusion,ADVANCE HEALTH CARE (UK) LTD,14/03/2016,"3,930.00",73025-PROFESSIONAL SERVICES-PRIV CONTRACTOR & OTHER AGENCIES,COMMUNITY INTERMEDIATE CARE,Third Party Payments,Revenue
Walsall Council,http://opendatacommunities.org/id/metropolitan-district-council/walsall,WC66-128,31/03/2016,Social Care & Inclusion,ADVANCE HEALTH CARE (UK) LTD,16/03/2016,"3,930.00",73025-PROFESSIONAL SERVICES-PRIV CONTRACTOR & OTHER AGENCIES,COMMUNITY INTERMEDIATE CARE,Third Party Payments,Revenue
Walsall Council,http://opendatacommunities.org/id/metropolitan-district-council/walsall,WC66-129,31/03/2016,Social Care & Inclusion,ADVANCE HEALTH CARE (UK) LTD,22/03/2016,"3,930.00",73025-PROFESSIONAL SERVICES-PRIV CONTRACTOR & OTHER AGENCIES,COMMUNITY INTERMEDIATE CARE,Third Party Payments,Revenue
Walsall Council,http://opendatacommunities.org/id/metropolitan-district-council/walsall,WC66-130,31/03/2016,Social Care & Inclusion,ADVANCE HEALTH CARE (UK) LTD,01/03/2016,"4,218.20",73025-PROFESSIONAL SERVICES-PRIV CONTRACTOR & OTHER AGENCIES,COMMUNITY INTERMEDIATE CARE,Third Party Payments,Revenue
Walsall Council,http://opendatacommunities.org/id/metropolitan-district-council/walsall,WC66-131,31/03/2016,Social Care & Inclusion,ADVANCE HEALTH CARE (UK) LTD,30/03/2016,"32,881.00",73372-DOMICILIARY CARE,OP COMMISSIONING,Third Party Payments,Revenue
Walsall Council,http://opendatacommunities.org/id/metropolitan-district-council/walsall,WC66-132,31/03/2016,Social Care & Inclusion,ADVANCE HEALTH CARE (UK) LTD,02/03/2016,"36,976.05",73372-DOMICILIARY CARE,OP COMMISSIONING,Third Party Payments,Revenue
Walsall Council,http://opendatacommunities.org/id/metropolitan-district-council/walsall,WC66-133,31/03/2016,Childrens,ADVENTURELAND DAY NURSERY,11/03/2016,"4,690.00",66505-OTHER-GRANTS TO OTHER ORGS,EARLY YEARS - 3 YR OLDS,Third Party Payments,Revenue
Walsall Council,http://opendatacommunities.org/id/metropolitan-district-council/walsall,WC66-134,31/03/2016,Childrens,ADVENTURELAND DAY NURSERY,10/03/2016,"8,193.20",66505-OTHER-GRANTS TO OTHER ORGS,EARLY YEARS - 2 YR OLDS,Third Party Payments,Revenue
Walsall Council,http://opendatacommunities.org/id/metropolitan-district-council/walsall,WC66-135,31/03/2016,Economy & Environment,AECOM LIMITED,22/03/2016,462.12,73025-PROFESSIONAL SERVICES-PRIV CONTRACTOR & OTHER AGENCIES,POLLUTION DIVISION,Third Party Payments,Revenue
Walsall Council,http://opendatacommunities.org/id/metropolitan-district-council/walsall,WC66-136,31/03/2016,Economy & Environment,AECOM LIMITED,22/03/2016,"3,543.33",01001-OTHER CONSULTANTS FEES,CFR 876 DARLASTON DSDA,Capital,Capital
Walsall Council,http://opendatacommunities.org/id/metropolitan-district-council/walsall,WC66-137,31/03/2016,Economy & Environment,AECOM LIMITED,17/03/2016,"18,609.08",01002-PROJECT FEES,CFR 1072 M6 JUNCTION 10,Capital,Capital
Walsall Council,http://opendatacommunities.org/id/metropolitan-district-council/walsall,WC66-138,31/03/2016,Childrens,AFTER ADOPTION,22/03/2016,"8,450.00",34305-AGENCY STAFF-EMPLOYEES,ADOPTION TEAM,Employees,Revenue
Walsall Council,http://opendatacommunities.org/id/metropolitan-district-council/walsall,WC66-139,31/03/2016,Economy & Environment,AGE UK TRAINING,15/03/2016,"1,500.00",66500-GRANTS TO OTHER ORGS,RES-WALSALL WORKS,Third Party Payments,Revenue
Walsall Council,http://opendatacommunities.org/id/metropolitan-district-council/walsall,WC66-140,31/03/2016,Change and Governance,AGE UK TRAINING,07/03/2016,"2,770.00",30030-EXTERNAL TRAINING,WORKFORCE DEVELOPMENT,Employees,Revenue
Walsall Council,http://opendatacommunities.org/id/metropolitan-district-council/walsall,WC66-141,31/03/2016,Economy & Environment,AGE UK WALSALL,01/03/2016,"-18,750.00",63000-PROFESSIONAL FEES AND SERVICES,FALLS PREVENTION,Supplies & Services,Revenue
Walsall Council,http://opendatacommunities.org/id/metropolitan-district-council/walsall,WC66-142,31/03/2016,Social Care & Inclusion,REDACTED,14/03/2016,"2,352.50",76422-DIRECT PAYMENTS TO SOCIAL SERVICES CLIENTS,LD COMMISSIONING,Transfer Payments,Revenue
Walsall Council,http://opendatacommunities.org/id/metropolitan-district-council/walsall,WC66-143,31/03/2016,Social Care & Inclusion,REDACTED,14/03/2016,"1,142.75",76422-DIRECT PAYMENTS TO SOCIAL SERVICES CLIENTS,OP COMMISSIONING,Transfer Payments,Revenue
Walsall Council,http://opendatacommunities.org/id/metropolitan-district-council/walsall,WC66-144,31/03/2016,Childrens,AJK TRAVEL,04/03/2016,"12,363.84",52000-WITH DRIVER-HIRE OF VEHICLES,SCHOOL TRANSPORT,Transport,Revenue
Walsall Council,http://opendatacommunities.org/id/metropolitan-district-council/walsall,WC66-145,31/03/2016,Economy & Environment,ALAN CRISTEA GALLERY,24/03/2016,"14,400.00",62526-DISCOVERY / GARMAN RYAN,NAG - GARMAN RYAN/PERMANENT COLLECTION,Supplies & Services,Revenue
Walsall Council,http://opendatacommunities.org/id/metropolitan-district-council/walsall,WC66-146,31/03/2016,Childrens,ALAN CRITCHLEY ASSOCIATES,02/03/2016,"3,300.00",63000-PROFESSIONAL FEES AND SERVICES,SAFEGUARDING BOARD,Supplies & Services,Revenue
Walsall Council,http://opendatacommunities.org/id/metropolitan-district-council/walsall,WC66-147,31/03/2016,Social Care & Inclusion,ALDERGROVE MANOR CARE HOME,22/03/2016,"1,839.68",73373-RESIDENTIAL & NURSING CARE PLACEMENTS,MH COMMISSIONING,Third Party Payments,Revenue
Walsall Council,http://opendatacommunities.org/id/metropolitan-district-council/walsall,WC66-148,31/03/2016,Childrens,ALDRIDGE SCHOOL A SCIENCE COLLEGE.,02/03/2016,"2,146.14",66502-TOP UP FUNDING -GRANTS TO SCHOOLS,ALDRIDGE SCHOOL SCIENCE COLLEGE (ACADEMY),Third Party Payments,Revenue
Walsall Council,http://opendatacommunities.org/id/metropolitan-district-council/walsall,WC66-149,31/03/2016,Childrens,ALDRIDGE SCHOOL A SCIENCE COLLEGE.,02/03/2016,"9,599.94",66502-TOP UP FUNDING -GRANTS TO SCHOOLS,ALDRIDGE SCHOOL SCIENCE COLLEGE (ACADEMY),Third Party Payments,Revenue
Walsall Council,http://opendatacommunities.org/id/metropolitan-district-council/walsall,WC66-150,31/03/2016,Social Care & Inclusion,REDACTED,14/03/2016,"1,505.00",76422-DIRECT PAYMENTS TO SOCIAL SERVICES CLIENTS,YADS COMMISSIONING,Transfer Payments,Revenue
Walsall Council,http://opendatacommunities.org/id/metropolitan-district-council/walsall,WC66-151,31/03/2016,Economy & Environment,REDACTED,01/03/2016,337.50,63000-PROFESSIONAL FEES AND SERVICES,EDUCATION INFORMAL,Supplies & Services,Revenue
Walsall Council,http://opendatacommunities.org/id/metropolitan-district-council/walsall,WC66-152,31/03/2016,Social Care & Inclusion,ALEXANDRA HOUSE CARE SERVICES LTD T/A STONEBRIDGE NURSING HOME,22/03/2016,"1,270.97",73373-RESIDENTIAL & NURSING CARE PLACEMENTS,OP COMMISSIONING,Third Party Payments,Revenue
Walsall Council,http://opendatacommunities.org/id/metropolitan-district-council/walsall,WC66-153,31/03/2016,Social Care & Inclusion,ALEXANDRA HOUSE CARE SERVICES LTD T/A STONEBRIDGE NURSING HOME,22/03/2016,"5,846.47",73373-RESIDENTIAL & NURSING CARE PLACEMENTS,OP COMMISSIONING,Third Party Payments,Revenue
Walsall Council,http://opendatacommunities.org/id/metropolitan-district-council/walsall,WC66-154,31/03/2016,Childrens,REDACTED,14/03/2016,728.33,76422-DIRECT PAYMENTS TO SOCIAL SERVICES CLIENTS,FAMILY SUPPORT - DIRECT PAYMENTS,Transfer Payments,Revenue
Walsall Council,http://opendatacommunities.org/id/metropolitan-district-council/walsall,WC66-155,31/03/2016,Social Care & Inclusion,REDACTED,14/03/2016,"1,067.50",76422-DIRECT PAYMENTS TO SOCIAL SERVICES CLIENTS,YADS COMMISSIONING,Transfer Payments,Revenue
Walsall Council,http://opendatacommunities.org/id/metropolitan-district-council/walsall,WC66-156,31/03/2016,Social Care & Inclusion,REDACTED,14/03/2016,722.50,76422-DIRECT PAYMENTS TO SOCIAL SERVICES CLIENTS,OP COMMISSIONING,Transfer Payments,Revenue
Walsall Council,http://opendatacommunities.org/id/metropolitan-district-council/walsall,WC66-157,31/03/2016,Childrens,REDACTED,24/03/2016,506.76,62515-MISCELLANEOUS SUPPLIES,INTERNAL FOSTER CARE PROVISION,Supplies & Services,Revenue
Walsall Council,http://opendatacommunities.org/id/metropolitan-district-council/walsall,WC66-158,31/03/2016,Childrens,REDACTED,01/03/2016,985.76,74006-HOLIDAY/CHRISTMAS ALLOWANCE-FOSTER CARERS-OTH AGENCY PROVISION,INTERNAL FOSTER CARE PROVISION,Third Party Payments,Revenue
Walsall Council,http://opendatacommunities.org/id/metropolitan-district-council/walsall,WC66-159,31/03/2016,Childrens,REDACTED,24/03/2016,985.76,74006-HOLIDAY/CHRISTMAS ALLOWANCE-FOSTER CARERS-OTH AGENCY PROVISION,INTERNAL FOSTER CARE PROVISION,Third Party Payments,Revenue
Walsall Council,http://opendatacommunities.org/id/metropolitan-district-council/walsall,WC66-160,31/03/2016,Childrens,REDACTED,10/03/2016,293.40,66505-OTHER-GRANTS TO OTHER ORGS,EARLY YEARS - 2 YR OLDS,Third Party Payments,Revenue
Walsall Council,http://opendatacommunities.org/id/metropolitan-district-council/walsall,WC66-161,31/03/2016,Childrens,REDACTED,14/03/2016,552.96,74006-HOLIDAY/CHRISTMAS ALLOWANCE-FOSTER CARERS-OTH AGENCY PROVISION,INTERNAL FOSTER CARE PROVISION,Third Party Payments,Revenue
Walsall Council,http://opendatacommunities.org/id/metropolitan-district-council/walsall,WC66-162,31/03/2016,Change and Governance,ALL SAINTS CHURCH STREETLY,30/03/2016,798.00,62001-STATIONERY & GENERAL SUPPLIES-OFFICE EXP,AREA 2 - ALDRIDGE/STREETLY/PHEASEY,Supplies & Services,Revenue
Walsall Council,http://opendatacommunities.org/id/metropolitan-district-council/walsall,WC66-163,31/03/2016,Economy & Environment,ALLSORTS OFFICE SUPPLIES LTD,14/03/2016,568.00,60000-FURNITURE & EQUIPMENT,SMARTER WORKPLACES WORKPLACE SOLUTIONS,Supplies & Services,Revenue
Walsall Council,http://opendatacommunities.org/id/metropolitan-district-council/walsall,WC66-164,31/03/2016,Social Care & Inclusion,ALMA COURT,22/03/2016,"6,316.87",73373-RESIDENTIAL & NURSING CARE PLACEMENTS,MH COMMISSIONING,Third Party Payments,Revenue
Walsall Council,http://opendatacommunities.org/id/metropolitan-district-council/walsall,WC66-165,31/03/2016,Social Care & Inclusion,ALMA COURT,22/03/2016,"6,316.87",73373-RESIDENTIAL & NURSING CARE PLACEMENTS,OP COMMISSIONING,Third Party Payments,Revenue
Walsall Council,http://opendatacommunities.org/id/metropolitan-district-council/walsall,WC66-166,31/03/2016,Childrens,ALMOZENE NURSERY & CHILDRENS CENTRE,11/03/2016,"9,198.09",66505-OTHER-GRANTS TO OTHER ORGS,EARLY YEARS - 2 YR OLDS,Third Party Payments,Revenue
Walsall Council,http://opendatacommunities.org/id/metropolitan-district-council/walsall,WC66-167,31/03/2016,Childrens,ALPHA & EAGLE CARS LTD,29/03/2016,"2,175.00",52001-HIRE OF VEHICLES,CHILDRENS TAXI BUDGET,Transport,Revenue
Walsall Council,http://opendatacommunities.org/id/metropolitan-district-council/walsall,WC66-168,31/03/2016,Childrens,ALPHA HAIR DESIGN ACADEMY,01/03/2016,"2,206.00",66502-TOP UP FUNDING -GRANTS TO SCHOOLS,INDEPENDENT PROVIDERS - POST SCHOOL,Third Party Payments,Revenue
Walsall Council,http://opendatacommunities.org/id/metropolitan-district-council/walsall,WC66-169,31/03/2016,Childrens,ALPHA HAIR DESIGN ACADEMY,21/03/2016,"2,206.00",66502-TOP UP FUNDING -GRANTS TO SCHOOLS,INDEPENDENT PROVIDERS - POST SCHOOL,Third Party Payments,Revenue
Walsall Council,http://opendatacommunities.org/id/metropolitan-district-council/walsall,WC66-170,31/03/2016,Social Care & Inclusion,ALPHA HEALTH CARE LTD,08/03/2016,693.29,73373-RESIDENTIAL & NURSING CARE PLACEMENTS,OP COMMISSIONING,Third Party Payments,Revenue
Walsall Council,http://opendatacommunities.org/id/metropolitan-district-council/walsall,WC66-171,31/03/2016,Social Care & Inclusion,ALPHA HEALTH CARE LTD,15/03/2016,"1,507.03",73373-RESIDENTIAL & NURSING CARE PLACEMENTS,OP COMMISSIONING,Third Party Payments,Revenue
Walsall Council,http://opendatacommunities.org/id/metropolitan-district-council/walsall,WC66-172,31/03/2016,Social Care & Inclusion,ALPHA HEALTH CARE LTD,15/03/2016,"1,514.02",73373-RESIDENTIAL & NURSING CARE PLACEMENTS,OP COMMISSIONING,Third Party Payments,Revenue
Walsall Council,http://opendatacommunities.org/id/metropolitan-district-council/walsall,WC66-173,31/03/2016,Social Care & Inclusion,ALPHA HEALTH CARE LTD,15/03/2016,"1,591.33",73373-RESIDENTIAL & NURSING CARE PLACEMENTS,OP COMMISSIONING,Third Party Payments,Revenue
Walsall Council,http://opendatacommunities.org/id/metropolitan-district-council/walsall,WC66-174,31/03/2016,Social Care & Inclusion,ALPHA HEALTH CARE LTD,15/03/2016,"1,599.90",73373-RESIDENTIAL & NURSING CARE PLACEMENTS,OP COMMISSIONING,Third Party Payments,Revenue
Walsall Council,http://opendatacommunities.org/id/metropolitan-district-council/walsall,WC66-175,31/03/2016,Social Care & Inclusion,ALPHA HEALTH CARE LTD,15/03/2016,"1,617.95",73373-RESIDENTIAL & NURSING CARE PLACEMENTS,OP COMMISSIONING,Third Party Payments,Revenue
Walsall Council,http://opendatacommunities.org/id/metropolitan-district-council/walsall,WC66-176,31/03/2016,Social Care & Inclusion,ALPHA HEALTH CARE LTD,15/03/2016,"1,617.95",73373-RESIDENTIAL & NURSING CARE PLACEMENTS,OP COMMISSIONING,Third Party Payments,Revenue
Walsall Council,http://opendatacommunities.org/id/metropolitan-district-council/walsall,WC66-177,31/03/2016,Social Care & Inclusion,ALPHA HEALTH CARE LTD,15/03/2016,"1,636.71",73373-RESIDENTIAL & NURSING CARE PLACEMENTS,OP COMMISSIONING,Third Party Payments,Revenue
Walsall Council,http://opendatacommunities.org/id/metropolitan-district-council/walsall,WC66-178,31/03/2016,Social Care & Inclusion,ALPHA HEALTH CARE LTD,15/03/2016,"1,636.71",73373-RESIDENTIAL & NURSING CARE PLACEMENTS,OP COMMISSIONING,Third Party Payments,Revenue
Walsall Council,http://opendatacommunities.org/id/metropolitan-district-council/walsall,WC66-179,31/03/2016,Social Care & Inclusion,ALPHA HEALTH CARE LTD,15/03/2016,"1,636.71",73373-RESIDENTIAL & NURSING CARE PLACEMENTS,OP COMMISSIONING,Third Party Payments,Revenue
Walsall Council,http://opendatacommunities.org/id/metropolitan-district-council/walsall,WC66-180,31/03/2016,Social Care & Inclusion,ALPHA HEALTH CARE LTD,15/03/2016,"1,636.71",73373-RESIDENTIAL & NURSING CARE PLACEMENTS,OP COMMISSIONING,Third Party Payments,Revenue
Walsall Council,http://opendatacommunities.org/id/metropolitan-district-council/walsall,WC66-181,31/03/2016,Social Care & Inclusion,ALPHA HEALTH CARE LTD,15/03/2016,"1,636.71",73373-RESIDENTIAL & NURSING CARE PLACEMENTS,OP COMMISSIONING,Third Party Payments,Revenue
Walsall Council,http://opendatacommunities.org/id/metropolitan-district-council/walsall,WC66-182,31/03/2016,Social Care & Inclusion,ALPHA HEALTH CARE LTD,15/03/2016,"1,636.71",73373-RESIDENTIAL & NURSING CARE PLACEMENTS,OP COMMISSIONING,Third Party Payments,Revenue
Walsall Council,http://opendatacommunities.org/id/metropolitan-district-council/walsall,WC66-183,31/03/2016,Social Care & Inclusion,ALPHA HEALTH CARE LTD,15/03/2016,"1,636.71",73373-RESIDENTIAL & NURSING CARE PLACEMENTS,MH COMMISSIONING,Third Party Payments,Revenue
Walsall Council,http://opendatacommunities.org/id/metropolitan-district-council/walsall,WC66-184,31/03/2016,Social Care & Inclusion,ALPHA HEALTH CARE LTD,15/03/2016,"1,636.71",73373-RESIDENTIAL & NURSING CARE PLACEMENTS,OP COMMISSIONING,Third Party Payments,Revenue
Walsall Council,http://opendatacommunities.org/id/metropolitan-district-council/walsall,WC66-185,31/03/2016,Social Care & Inclusion,ALPHA HEALTH CARE LTD,15/03/2016,"1,636.71",73373-RESIDENTIAL & NURSING CARE PLACEMENTS,OP COMMISSIONING,Third Party Payments,Revenue
Walsall Council,http://opendatacommunities.org/id/metropolitan-district-council/walsall,WC66-186,31/03/2016,Social Care & Inclusion,ALPHA HEALTH CARE LTD,15/03/2016,"1,636.71",73373-RESIDENTIAL & NURSING CARE PLACEMENTS,MH COMMISSIONING,Third Party Payments,Revenue
Walsall Council,http://opendatacommunities.org/id/metropolitan-district-council/walsall,WC66-187,31/03/2016,Social Care & Inclusion,ALPHA HEALTH CARE LTD,15/03/2016,"1,636.72",73373-RESIDENTIAL & NURSING CARE PLACEMENTS,OP COMMISSIONING,Third Party Payments,Revenue
Walsall Council,http://opendatacommunities.org/id/metropolitan-district-council/walsall,WC66-188,31/03/2016,Social Care & Inclusion,ALPHA HEALTH CARE LTD,15/03/2016,"1,636.72",73373-RESIDENTIAL & NURSING CARE PLACEMENTS,OP COMMISSIONING,Third Party Payments,Revenue
Walsall Council,http://opendatacommunities.org/id/metropolitan-district-council/walsall,WC66-189,31/03/2016,Social Care & Inclusion,ALPHA HEALTH CARE LTD,15/03/2016,"1,636.72",73373-RESIDENTIAL & NURSING CARE PLACEMENTS,OP COMMISSIONING,Third Party Payments,Revenue
Walsall Council,http://opendatacommunities.org/id/metropolitan-district-council/walsall,WC66-190,31/03/2016,Social Care & Inclusion,ALPHA HEALTH CARE LTD,15/03/2016,"1,636.72",73373-RESIDENTIAL & NURSING CARE PLACEMENTS,OP COMMISSIONING,Third Party Payments,Revenue
Walsall Council,http://opendatacommunities.org/id/metropolitan-district-council/walsall,WC66-191,31/03/2016,Social Care & Inclusion,ALPHA HEALTH CARE LTD,15/03/2016,"1,636.72",73373-RESIDENTIAL & NURSING CARE PLACEMENTS,OP COMMISSIONING,Third Party Payments,Revenue
Walsall Council,http://opendatacommunities.org/id/metropolitan-district-council/walsall,WC66-192,31/03/2016,Social Care & Inclusion,ALPHA HEALTH CARE LTD,15/03/2016,"1,680.69",73373-RESIDENTIAL & NURSING CARE PLACEMENTS,OP COMMISSIONING,Third Party Payments,Revenue
Walsall Council,http://opendatacommunities.org/id/metropolitan-district-council/walsall,WC66-193,31/03/2016,Social Care & Inclusion,ALPHA HEALTH CARE LTD,15/03/2016,"1,680.69",73373-RESIDENTIAL & NURSING CARE PLACEMENTS,OP COMMISSIONING,Third Party Payments,Revenue
Walsall Council,http://opendatacommunities.org/id/metropolitan-district-council/walsall,WC66-194,31/03/2016,Social Care & Inclusion,ALPHA HEALTH CARE LTD,15/03/2016,"1,680.86",73373-RESIDENTIAL & NURSING CARE PLACEMENTS,OP COMMISSIONING,Third Party Payments,Revenue
Walsall Council,http://opendatacommunities.org/id/metropolitan-district-council/walsall,WC66-195,31/03/2016,Social Care & Inclusion,ALPHA HEALTH CARE LTD,15/03/2016,"1,747.07",73373-RESIDENTIAL & NURSING CARE PLACEMENTS,OP COMMISSIONING,Third Party Payments,Revenue
Walsall Council,http://opendatacommunities.org/id/metropolitan-district-council/walsall,WC66-196,31/03/2016,Social Care & Inclusion,ALPHA HEALTH CARE LTD,15/03/2016,"2,315.79",73373-RESIDENTIAL & NURSING CARE PLACEMENTS,MH COMMISSIONING,Third Party Payments,Revenue
Walsall Council,http://opendatacommunities.org/id/metropolitan-district-council/walsall,WC66-197,31/03/2016,Social Care & Inclusion,ALPHA HEALTH CARE LTD,15/03/2016,"2,701.54",73373-RESIDENTIAL & NURSING CARE PLACEMENTS,MH COMMISSIONING,Third Party Payments,Revenue
Walsall Council,http://opendatacommunities.org/id/metropolitan-district-council/walsall,WC66-198,31/03/2016,Social Care & Inclusion,ALPHA HEALTH CARE LTD,15/03/2016,"3,011.43",73373-RESIDENTIAL & NURSING CARE PLACEMENTS,MH COMMISSIONING,Third Party Payments,Revenue
Walsall Council,http://opendatacommunities.org/id/metropolitan-district-council/walsall,WC66-199,31/03/2016,Social Care & Inclusion,ALPHA HEALTH CARE LTD,15/03/2016,"3,011.43",73373-RESIDENTIAL & NURSING CARE PLACEMENTS,OP COMMISSIONING,Third Party Payments,Revenue
Walsall Council,http://opendatacommunities.org/id/metropolitan-district-council/walsall,WC66-200,31/03/2016,Social Care & Inclusion,ALPHA HEALTH CARE LTD,15/03/2016,"5,800.41",73373-RESIDENTIAL & NURSING CARE PLACEMENTS,MH COMMISSIONING,Third Party Payments,Revenue
Walsall Council,http://opendatacommunities.org/id/metropolitan-district-council/walsall,WC66-201,31/03/2016,Social Care & Inclusion,ALPHA HEALTH CARE LTD,15/03/2016,"5,949.99",73373-RESIDENTIAL & NURSING CARE PLACEMENTS,MH COMMISSIONING,Third Party Payments,Revenue
Walsall Council,http://opendatacommunities.org/id/metropolitan-district-council/walsall,WC66-202,31/03/2016,Childrens,ALTODIGITAL NETWORKS LTD,01/03/2016,425.13,63800-COMPUTER EQUIPMENT AND SUPPLIES,ALUMWELL FUNDED PROGRAMME,Supplies & Services,Revenue
Walsall Council,http://opendatacommunities.org/id/metropolitan-district-council/walsall,WC66-203,31/03/2016,Change and Governance,ALTODIGITAL NETWORKS LTD,24/03/2016,437.28,60009-LEASING/HIRE/RENTAL-EQUIPMENT,PHOTOCOPIERS - CENTRAL BUDGET,Supplies & Services,Revenue
Walsall Council,http://opendatacommunities.org/id/metropolitan-district-council/walsall,WC66-204,31/03/2016,Childrens,ALUMWELLIES NURSERY,11/03/2016,"2,468.00",66505-OTHER-GRANTS TO OTHER ORGS,EARLY YEARS - 3 YR OLDS,Third Party Payments,Revenue
Walsall Council,http://opendatacommunities.org/id/metropolitan-district-council/walsall,WC66-205,31/03/2016,Childrens,ALUMWELLIES NURSERY,21/03/2016,"3,141.60",66505-OTHER-GRANTS TO OTHER ORGS,EARLY YEARS - 3 YR OLDS,Third Party Payments,Revenue
Walsall Council,http://opendatacommunities.org/id/metropolitan-district-council/walsall,WC66-206,31/03/2016,Childrens,REDACTED,14/03/2016,"1,500.88",74006-HOLIDAY/CHRISTMAS ALLOWANCE-FOSTER CARERS-OTH AGENCY PROVISION,INTERNAL FOSTER CARE PROVISION,Third Party Payments,Revenue
Walsall Council,http://opendatacommunities.org/id/metropolitan-district-council/walsall,WC66-207,31/03/2016,Childrens,REDACTED,24/03/2016,540.20,62515-MISCELLANEOUS SUPPLIES,INTERNAL FOSTER CARE PROVISION,Supplies & Services,Revenue
Walsall Council,http://opendatacommunities.org/id/metropolitan-district-council/walsall,WC66-208,31/03/2016,Childrens,REDACTED,01/03/2016,650.92,74006-HOLIDAY/CHRISTMAS ALLOWANCE-FOSTER CARERS-OTH AGENCY PROVISION,INTERNAL FOSTER CARE PROVISION,Third Party Payments,Revenue
Walsall Council,http://opendatacommunities.org/id/metropolitan-district-council/walsall,WC66-209,31/03/2016,Childrens,REDACTED,24/03/2016,650.92,74006-HOLIDAY/CHRISTMAS ALLOWANCE-FOSTER CARERS-OTH AGENCY PROVISION,INTERNAL FOSTER CARE PROVISION,Third Party Payments,Revenue
Walsall Council,http://opendatacommunities.org/id/metropolitan-district-council/walsall,WC66-210,31/03/2016,Childrens,REDACTED,14/03/2016,391.15,76422-DIRECT PAYMENTS TO SOCIAL SERVICES CLIENTS,FAMILY SUPPORT - DIRECT PAYMENTS,Transfer Payments,Revenue
Walsall Council,http://opendatacommunities.org/id/metropolitan-district-council/walsall,WC66-211,31/03/2016,Change and Governance,AMEY LG LIMITED,01/03/2016,35.08,60008-MAINTENANCE-FURNITURE & EQUIPMENT,AREA 5 - DARLASTON/BENTLEY,Supplies & Services,Revenue
Walsall Council,http://opendatacommunities.org/id/metropolitan-district-council/walsall,WC66-212,31/03/2016,Change and Governance,AMEY LG LIMITED,01/03/2016,220.16,60008-MAINTENANCE-FURNITURE & EQUIPMENT,AREA 3 - NORTH WALSALL,Supplies & Services,Revenue
Walsall Council,http://opendatacommunities.org/id/metropolitan-district-council/walsall,WC66-213,31/03/2016,Economy & Environment,AMEY LG LIMITED,24/03/2016,255.19,40018-OTHER-OP MTCE,WALSALL MARKET,Premises,Revenue
Walsall Council,http://opendatacommunities.org/id/metropolitan-district-council/walsall,WC66-214,31/03/2016,Economy & Environment,AMEY LG LIMITED,01/03/2016,257.74,01006-SITE WORKS MAIN CONTRACTORS,CFR 999 TRAFFIC SIGNALS,Capital,Capital
Walsall Council,http://opendatacommunities.org/id/metropolitan-district-council/walsall,WC66-215,31/03/2016,Economy & Environment,AMEY LG LIMITED,22/03/2016,308.56,01006-SITE WORKS MAIN CONTRACTORS,CFR 1085 SAFETY RELATED REQUESTS 15/16,Capital,Capital
Walsall Council,http://opendatacommunities.org/id/metropolitan-district-council/walsall,WC66-216,31/03/2016,Economy & Environment,AMEY LG LIMITED,24/03/2016,325.17,40018-OTHER-OP MTCE,WALSALL MARKET,Premises,Revenue
Walsall Council,http://opendatacommunities.org/id/metropolitan-district-council/walsall,WC66-217,31/03/2016,Economy & Environment,AMEY LG LIMITED,03/03/2016,494.85,01006-SITE WORKS MAIN CONTRACTORS,CFR 1085 COALPOOL LANE/GOSCOTE LANE,Capital,Capital
Walsall Council,http://opendatacommunities.org/id/metropolitan-district-council/walsall,WC66-218,31/03/2016,Economy & Environment,AMEY LG LIMITED,23/03/2016,559.32,73002-SECURITY-PRIV CONTRACTOR FEES,TRAFFIC CONTROL,Third Party Payments,Revenue
Walsall Council,http://opendatacommunities.org/id/metropolitan-district-council/walsall,WC66-219,31/03/2016,Economy & Environment,AMEY LG LIMITED,22/03/2016,765.58,40018-OTHER-OP MTCE,WALSALL MARKET,Premises,Revenue
Walsall Council,http://opendatacommunities.org/id/metropolitan-district-council/walsall,WC66-220,31/03/2016,Economy & Environment,AMEY LG LIMITED,01/03/2016,773.23,63000-PROFESSIONAL FEES AND SERVICES,FESTIVE DECORATIONS,Supplies & Services,Revenue
Walsall Council,http://opendatacommunities.org/id/metropolitan-district-council/walsall,WC66-221,31/03/2016,Economy & Environment,AMEY LG LIMITED,22/03/2016,794.90,01006-SITE WORKS MAIN CONTRACTORS,CFR 1085 SUNSHINE INFANTS SAFER ROUTES TO SCHOOLS,Capital,Capital
Walsall Council,http://opendatacommunities.org/id/metropolitan-district-council/walsall,WC66-222,31/03/2016,Economy & Environment,AMEY LG LIMITED,16/03/2016,"1,830.29",01006-SITE WORKS MAIN CONTRACTORS,CFR 1085 SUPPORT OF A* STARS SAFER ROUTES TO SCHOOLS,Capital,Capital
Walsall Council,http://opendatacommunities.org/id/metropolitan-district-council/walsall,WC66-223,31/03/2016,Economy & Environment,AMEY LG LIMITED,24/03/2016,"2,093.04",01006-SITE WORKS MAIN CONTRACTORS,CFR 1085 A4124 (SANDRINGHAM RD TO BEALEYS LANE),Capital,Capital
Walsall Council,http://opendatacommunities.org/id/metropolitan-district-council/walsall,WC66-224,31/03/2016,Economy & Environment,AMEY LG LIMITED,22/03/2016,"2,496.48",62515-MISCELLANEOUS SUPPLIES,VASS IMPLEMENTATION,Supplies & Services,Revenue
Walsall Council,http://opendatacommunities.org/id/metropolitan-district-council/walsall,WC66-225,31/03/2016,Economy & Environment,AMEY LG LIMITED,02/03/2016,"3,572.00",01006-SITE WORKS MAIN CONTRACTORS,CFR 1085 COALPOOL LANE/GOSCOTE LANE,Capital,Capital
Walsall Council,http://opendatacommunities.org/id/metropolitan-district-council/walsall,WC66-226,31/03/2016,Economy & Environment,AMEY LG LIMITED,22/03/2016,"4,374.58",01006-SITE WORKS MAIN CONTRACTORS,CFR 1085 SUPPORT OF A* STARS SAFER ROUTES TO SCHOOLS,Capital,Capital
Walsall Council,http://opendatacommunities.org/id/metropolitan-district-council/walsall,WC66-227,31/03/2016,Economy & Environment,AMEY LG LIMITED,18/03/2016,"5,006.55",01006-SITE WORKS MAIN CONTRACTORS,CFR 1085 COALPOOL LANE/GOSCOTE LANE,Capital,Capital
Walsall Council,http://opendatacommunities.org/id/metropolitan-district-council/walsall,WC66-228,31/03/2016,Economy & Environment,AMEY LG LIMITED,01/03/2016,"6,389.00",01006-SITE WORKS MAIN CONTRACTORS,CFR 1085  WHITEHALL JUNIOR SAFER ROUTES TO SCHOOLS,Capital,Capital
Walsall Council,http://opendatacommunities.org/id/metropolitan-district-council/walsall,WC66-229,31/03/2016,Economy & Environment,AMEY LG LIMITED,02/03/2016,"12,130.71",01006-SITE WORKS MAIN CONTRACTORS,CFR 1037 ACTIVE LIVING OAK PARK (PRUDENTIAL),Capital,Capital
Walsall Council,http://opendatacommunities.org/id/metropolitan-district-council/walsall,WC66-230,31/03/2016,Economy & Environment,AMEY LG LIMITED,23/03/2016,"14,972.40",62515-MISCELLANEOUS SUPPLIES,VASS IMPLEMENTATION,Supplies & Services,Revenue
Walsall Council,http://opendatacommunities.org/id/metropolitan-district-council/walsall,WC66-231,31/03/2016,Economy & Environment,AMEY LG LIMITED,02/03/2016,"31,060.95",73025-PROFESSIONAL SERVICES-PRIV CONTRACTOR & OTHER AGENCIES,TRAFFIC MANAGEMENT,Third Party Payments,Revenue
Walsall Council,http://opendatacommunities.org/id/metropolitan-district-council/walsall,WC66-232,31/03/2016,Childrens,AMG NURSING CARE SERVICES,01/03/2016,"1,088.88",74036-EXTERNAL RESIDENTIAL CARE-OTH AGENCY PROVISION,INDEPENDENT RESIDENTIAL HOMES,Third Party Payments,Revenue
Walsall Council,http://opendatacommunities.org/id/metropolitan-district-council/walsall,WC66-233,31/03/2016,Childrens,AMG NURSING CARE SERVICES,24/03/2016,"1,219.14",74036-EXTERNAL RESIDENTIAL CARE-OTH AGENCY PROVISION,INDEPENDENT RESIDENTIAL HOMES,Third Party Payments,Revenue
Walsall Council,http://opendatacommunities.org/id/metropolitan-district-council/walsall,WC66-234,31/03/2016,Childrens,AMG NURSING CARE SERVICES,24/03/2016,"1,866.80",74036-EXTERNAL RESIDENTIAL CARE-OTH AGENCY PROVISION,INDEPENDENT RESIDENTIAL HOMES,Third Party Payments,Revenue
Walsall Council,http://opendatacommunities.org/id/metropolitan-district-council/walsall,WC66-235,31/03/2016,Childrens,AMG NURSING CARE SERVICES,22/03/2016,"2,187.88",74036-EXTERNAL RESIDENTIAL CARE-OTH AGENCY PROVISION,INDEPENDENT RESIDENTIAL HOMES,Third Party Payments,Revenue
Walsall Council,http://opendatacommunities.org/id/metropolitan-district-council/walsall,WC66-236,31/03/2016,Childrens,AMG NURSING CARE SERVICES,01/03/2016,"2,229.76",74036-EXTERNAL RESIDENTIAL CARE-OTH AGENCY PROVISION,INDEPENDENT RESIDENTIAL HOMES,Third Party Payments,Revenue
Walsall Council,http://opendatacommunities.org/id/metropolitan-district-council/walsall,WC66-237,31/03/2016,Childrens,AMG NURSING CARE SERVICES,07/03/2016,"2,229.76",74036-EXTERNAL RESIDENTIAL CARE-OTH AGENCY PROVISION,INDEPENDENT RESIDENTIAL HOMES,Third Party Payments,Revenue
Walsall Council,http://opendatacommunities.org/id/metropolitan-district-council/walsall,WC66-238,31/03/2016,Childrens,AMG NURSING CARE SERVICES,22/03/2016,"2,229.76",74036-EXTERNAL RESIDENTIAL CARE-OTH AGENCY PROVISION,INDEPENDENT RESIDENTIAL HOMES,Third Party Payments,Revenue
Walsall Council,http://opendatacommunities.org/id/metropolitan-district-council/walsall,WC66-239,31/03/2016,Childrens,AMG NURSING CARE SERVICES,24/03/2016,"2,591.72",74036-EXTERNAL RESIDENTIAL CARE-OTH AGENCY PROVISION,INDEPENDENT RESIDENTIAL HOMES,Third Party Payments,Revenue
Walsall Council,http://opendatacommunities.org/id/metropolitan-district-council/walsall,WC66-240,31/03/2016,Social Care & Inclusion,AMG NURSING CARE SERVICES,08/03/2016,"6,526.44",73372-DOMICILIARY CARE,YADS COMMISSIONING,Third Party Payments,Revenue
Walsall Council,http://opendatacommunities.org/id/metropolitan-district-council/walsall,WC66-241,31/03/2016,Social Care & Inclusion,REDACTED,14/03/2016,"1,416.80",76422-DIRECT PAYMENTS TO SOCIAL SERVICES CLIENTS,OP COMMISSIONING,Transfer Payments,Revenue
Walsall Council,http://opendatacommunities.org/id/metropolitan-district-council/walsall,WC66-242,31/03/2016,Social Care & Inclusion,REDACTED,14/03/2016,"1,181.25",76422-DIRECT PAYMENTS TO SOCIAL SERVICES CLIENTS,OP COMMISSIONING,Transfer Payments,Revenue
Walsall Council,http://opendatacommunities.org/id/metropolitan-district-council/walsall,WC66-243,31/03/2016,Childrens,REDACTED,14/03/2016,425.08,74006-HOLIDAY/CHRISTMAS ALLOWANCE-FOSTER CARERS-OTH AGENCY PROVISION,INTERNAL FOSTER CARE PROVISION,Third Party Payments,Revenue
Walsall Council,http://opendatacommunities.org/id/metropolitan-district-council/walsall,WC66-244,31/03/2016,Social Care & Inclusion,REDACTED,14/03/2016,680.00,76422-DIRECT PAYMENTS TO SOCIAL SERVICES CLIENTS,OP COMMISSIONING,Transfer Payments,Revenue
Walsall Council,http://opendatacommunities.org/id/metropolitan-district-council/walsall,WC66-245,31/03/2016,Social Care & Inclusion,REDACTED,14/03/2016,892.50,76422-DIRECT PAYMENTS TO SOCIAL SERVICES CLIENTS,OP COMMISSIONING,Transfer Payments,Revenue
Walsall Council,http://opendatacommunities.org/id/metropolitan-district-council/walsall,WC66-246,31/03/2016,Social Care & Inclusion,ANCHOR,22/03/2016,504.22,73373-RESIDENTIAL & NURSING CARE PLACEMENTS,OP COMMISSIONING,Third Party Payments,Revenue
Walsall Council,http://opendatacommunities.org/id/metropolitan-district-council/walsall,WC66-247,31/03/2016,Social Care & Inclusion,ANCHOR,15/03/2016,"1,008.41",73373-RESIDENTIAL & NURSING CARE PLACEMENTS,OP COMMISSIONING,Third Party Payments,Revenue
Walsall Council,http://opendatacommunities.org/id/metropolitan-district-council/walsall,WC66-248,31/03/2016,Social Care & Inclusion,ANCHOR,22/03/2016,"1,064.42",73373-RESIDENTIAL & NURSING CARE PLACEMENTS,OP COMMISSIONING,Third Party Payments,Revenue
Walsall Council,http://opendatacommunities.org/id/metropolitan-district-council/walsall,WC66-249,31/03/2016,Social Care & Inclusion,ANCHOR,15/03/2016,"1,493.24",73373-RESIDENTIAL & NURSING CARE PLACEMENTS,OP COMMISSIONING,Third Party Payments,Revenue
Walsall Council,http://opendatacommunities.org/id/metropolitan-district-council/walsall,WC66-250,31/03/2016,Social Care & Inclusion,ANCHOR,15/03/2016,"1,493.24",73373-RESIDENTIAL & NURSING CARE PLACEMENTS,OP COMMISSIONING,Third Party Payments,Revenue
Walsall Council,http://opendatacommunities.org/id/metropolitan-district-council/walsall,WC66-251,31/03/2016,Social Care & Inclusion,ANCHOR,15/03/2016,"1,568.64",73373-RESIDENTIAL & NURSING CARE PLACEMENTS,OP COMMISSIONING,Third Party Payments,Revenue
Walsall Council,http://opendatacommunities.org/id/metropolitan-district-council/walsall,WC66-252,31/03/2016,Social Care & Inclusion,ANCHOR,15/03/2016,"1,568.64",73373-RESIDENTIAL & NURSING CARE PLACEMENTS,OP COMMISSIONING,Third Party Payments,Revenue
Walsall Council,http://opendatacommunities.org/id/metropolitan-district-council/walsall,WC66-253,31/03/2016,Social Care & Inclusion,ANCHOR,15/03/2016,"1,568.64",73373-RESIDENTIAL & NURSING CARE PLACEMENTS,MH COMMISSIONING,Third Party Payments,Revenue
Walsall Council,http://opendatacommunities.org/id/metropolitan-district-council/walsall,WC66-254,31/03/2016,Social Care & Inclusion,ANCHOR,15/03/2016,"1,568.64",73373-RESIDENTIAL & NURSING CARE PLACEMENTS,OP COMMISSIONING,Third Party Payments,Revenue
Walsall Council,http://opendatacommunities.org/id/metropolitan-district-council/walsall,WC66-255,31/03/2016,Social Care & Inclusion,ANCHOR,15/03/2016,"1,568.64",73373-RESIDENTIAL & NURSING CARE PLACEMENTS,OP COMMISSIONING,Third Party Payments,Revenue
Walsall Council,http://opendatacommunities.org/id/metropolitan-district-council/walsall,WC66-256,31/03/2016,Social Care & Inclusion,ANCHOR,15/03/2016,"1,568.64",73373-RESIDENTIAL & NURSING CARE PLACEMENTS,OP COMMISSIONING,Third Party Payments,Revenue
Walsall Council,http://opendatacommunities.org/id/metropolitan-district-council/walsall,WC66-257,31/03/2016,Social Care & Inclusion,ANCHOR,15/03/2016,"1,568.64",73373-RESIDENTIAL & NURSING CARE PLACEMENTS,OP COMMISSIONING,Third Party Payments,Revenue
Walsall Council,http://opendatacommunities.org/id/metropolitan-district-council/walsall,WC66-258,31/03/2016,Social Care & Inclusion,ANCHOR,15/03/2016,"1,568.64",73373-RESIDENTIAL & NURSING CARE PLACEMENTS,OP COMMISSIONING,Third Party Payments,Revenue
Walsall Council,http://opendatacommunities.org/id/metropolitan-district-council/walsall,WC66-259,31/03/2016,Social Care & Inclusion,ANCHOR,15/03/2016,"1,568.64",73373-RESIDENTIAL & NURSING CARE PLACEMENTS,OP COMMISSIONING,Third Party Payments,Revenue
Walsall Council,http://opendatacommunities.org/id/metropolitan-district-council/walsall,WC66-260,31/03/2016,Social Care & Inclusion,ANCHOR,15/03/2016,"1,568.64",73373-RESIDENTIAL & NURSING CARE PLACEMENTS,OP COMMISSIONING,Third Party Payments,Revenue
Walsall Council,http://opendatacommunities.org/id/metropolitan-district-council/walsall,WC66-261,31/03/2016,Social Care & Inclusion,ANCHOR,15/03/2016,"1,568.64",73373-RESIDENTIAL & NURSING CARE PLACEMENTS,OP COMMISSIONING,Third Party Payments,Revenue
Walsall Council,http://opendatacommunities.org/id/metropolitan-district-council/walsall,WC66-262,31/03/2016,Social Care & Inclusion,ANCHOR,15/03/2016,"1,568.64",73373-RESIDENTIAL & NURSING CARE PLACEMENTS,OP COMMISSIONING,Third Party Payments,Revenue
Walsall Council,http://opendatacommunities.org/id/metropolitan-district-council/walsall,WC66-263,31/03/2016,Social Care & Inclusion,ANCHOR,15/03/2016,"1,568.64",73373-RESIDENTIAL & NURSING CARE PLACEMENTS,OP COMMISSIONING,Third Party Payments,Revenue
Walsall Council,http://opendatacommunities.org/id/metropolitan-district-council/walsall,WC66-264,31/03/2016,Social Care & Inclusion,ANCHOR,15/03/2016,"1,568.64",73373-RESIDENTIAL & NURSING CARE PLACEMENTS,OP COMMISSIONING,Third Party Payments,Revenue
Walsall Council,http://opendatacommunities.org/id/metropolitan-district-council/walsall,WC66-265,31/03/2016,Childrens,REDACTED,01/03/2016,650.92,74006-HOLIDAY/CHRISTMAS ALLOWANCE-FOSTER CARERS-OTH AGENCY PROVISION,INTERNAL FOSTER CARE PROVISION,Third Party Payments,Revenue
Walsall Council,http://opendatacommunities.org/id/metropolitan-district-council/walsall,WC66-266,31/03/2016,Childrens,REDACTED,24/03/2016,650.92,74006-HOLIDAY/CHRISTMAS ALLOWANCE-FOSTER CARERS-OTH AGENCY PROVISION,INTERNAL FOSTER CARE PROVISION,Third Party Payments,Revenue
Walsall Council,http://opendatacommunities.org/id/metropolitan-district-council/walsall,WC66-267,31/03/2016,Childrens,REDACTED,24/03/2016,906.76,62515-MISCELLANEOUS SUPPLIES,INTERNAL FOSTER CARE PROVISION,Supplies & Services,Revenue
Walsall Council,http://opendatacommunities.org/id/metropolitan-district-council/walsall,WC66-268,31/03/2016,Social Care & Inclusion,REDACTED,14/03/2016,472.50,76422-DIRECT PAYMENTS TO SOCIAL SERVICES CLIENTS,YADS COMMISSIONING,Transfer Payments,Revenue
Walsall Council,http://opendatacommunities.org/id/metropolitan-district-council/walsall,WC66-269,31/03/2016,Change and Governance,ANDREWS ELECTRICAL LTD,15/03/2016,280.00,73025-PROFESSIONAL SERVICES-PRIV CONTRACTOR & OTHER AGENCIES,CENTRAL OFFICE ACCOMMODATION,Third Party Payments,Revenue
Walsall Council,http://opendatacommunities.org/id/metropolitan-district-council/walsall,WC66-270,31/03/2016,Social Care & Inclusion,ANGEL COURT RESIDENTIAL CARE HOME,15/03/2016,"5,098.08",73373-RESIDENTIAL & NURSING CARE PLACEMENTS,OP COMMISSIONING,Third Party Payments,Revenue
Walsall Council,http://opendatacommunities.org/id/metropolitan-district-council/walsall,WC66-271,31/03/2016,Social Care & Inclusion,ANGEL COURT RESIDENTIAL CARE HOME,15/03/2016,"5,335.85",73373-RESIDENTIAL & NURSING CARE PLACEMENTS,OP COMMISSIONING,Third Party Payments,Revenue
Walsall Council,http://opendatacommunities.org/id/metropolitan-district-council/walsall,WC66-272,31/03/2016,Social Care & Inclusion,ANGEL COURT RESIDENTIAL CARE HOME,15/03/2016,"5,574.79",73373-RESIDENTIAL & NURSING CARE PLACEMENTS,OP COMMISSIONING,Third Party Payments,Revenue
Walsall Council,http://opendatacommunities.org/id/metropolitan-district-council/walsall,WC66-273,31/03/2016,Social Care & Inclusion,ANGEL COURT RESIDENTIAL CARE HOME,15/03/2016,"9,759.39",73373-RESIDENTIAL & NURSING CARE PLACEMENTS,OP COMMISSIONING,Third Party Payments,Revenue
Walsall Council,http://opendatacommunities.org/id/metropolitan-district-council/walsall,WC66-274,31/03/2016,Childrens,REDACTED,14/03/2016,"2,054.05",74006-HOLIDAY/CHRISTMAS ALLOWANCE-FOSTER CARERS-OTH AGENCY PROVISION,INTERNAL FOSTER CARE PROVISION,Third Party Payments,Revenue
Walsall Council,http://opendatacommunities.org/id/metropolitan-district-council/walsall,WC66-275,31/03/2016,Change and Governance,ANGLIA STAIRLIFTS LTD,04/03/2016,"3,695.00",01045-PRIVATE GRANTS,CFR 826 DISABLED FACILITIES GRANTS (SOCIAL SERVICES),Capital,Capital
Walsall Council,http://opendatacommunities.org/id/metropolitan-district-council/walsall,WC66-276,31/03/2016,Change and Governance,ANGLIA STAIRLIFTS LTD,24/03/2016,"3,915.00",01045-PRIVATE GRANTS,CFR 826 DISABLED FACILITIES GRANTS (SOCIAL SERVICES),Capital,Capital
Walsall Council,http://opendatacommunities.org/id/metropolitan-district-council/walsall,WC66-277,31/03/2016,Change and Governance,ANGLIA STAIRLIFTS LTD,24/03/2016,"4,645.00",01045-PRIVATE GRANTS,CFR 826 DISABLED FACILITIES GRANTS (SOCIAL SERVICES),Capital,Capital
Walsall Council,http://opendatacommunities.org/id/metropolitan-district-council/walsall,WC66-278,31/03/2016,Change and Governance,ANGLIA STAIRLIFTS LTD,16/03/2016,"4,765.00",01045-PRIVATE GRANTS,CFR 826 DISABLED FACILITIES GRANTS (SOCIAL SERVICES),Capital,Capital
Walsall Council,http://opendatacommunities.org/id/metropolitan-district-council/walsall,WC66-279,31/03/2016,Change and Governance,ANGLIA STAIRLIFTS LTD,16/03/2016,"5,079.00",01045-PRIVATE GRANTS,CFR 826 DISABLED FACILITIES GRANTS (SOCIAL SERVICES),Capital,Capital
Walsall Council,http://opendatacommunities.org/id/metropolitan-district-council/walsall,WC66-280,31/03/2016,Change and Governance,ANGLIA STAIRLIFTS LTD,24/03/2016,"5,490.00",01045-PRIVATE GRANTS,CFR 826 DISABLED FACILITIES GRANTS (SOCIAL SERVICES),Capital,Capital
Walsall Council,http://opendatacommunities.org/id/metropolitan-district-council/walsall,WC66-281,31/03/2016,Social Care & Inclusion,REDACTED,14/03/2016,430.00,76422-DIRECT PAYMENTS TO SOCIAL SERVICES CLIENTS,LD COMMISSIONING,Transfer Payments,Revenue
Walsall Council,http://opendatacommunities.org/id/metropolitan-district-council/walsall,WC66-282,31/03/2016,Childrens,REDACTED,24/03/2016,925.00,62515-MISCELLANEOUS SUPPLIES,INTERNAL FOSTER CARE PROVISION,Supplies & Services,Revenue
Walsall Council,http://opendatacommunities.org/id/metropolitan-district-council/walsall,WC66-283,31/03/2016,Social Care & Inclusion,ANSON COURT RESIDENTIAL HOME,22/03/2016,336.14,73373-RESIDENTIAL & NURSING CARE PLACEMENTS,OP COMMISSIONING,Third Party Payments,Revenue
Walsall Council,http://opendatacommunities.org/id/metropolitan-district-council/walsall,WC66-284,31/03/2016,Social Care & Inclusion,ANSON COURT RESIDENTIAL HOME,22/03/2016,448.18,73373-RESIDENTIAL & NURSING CARE PLACEMENTS,OP COMMISSIONING,Third Party Payments,Revenue
Walsall Council,http://opendatacommunities.org/id/metropolitan-district-council/walsall,WC66-285,31/03/2016,Social Care & Inclusion,ANSON COURT RESIDENTIAL HOME,22/03/2016,"1,120.46",73373-RESIDENTIAL & NURSING CARE PLACEMENTS,OP COMMISSIONING,Third Party Payments,Revenue
Walsall Council,http://opendatacommunities.org/id/metropolitan-district-council/walsall,WC66-286,31/03/2016,Social Care & Inclusion,ANSON COURT RESIDENTIAL HOME,15/03/2016,"1,512.62",73373-RESIDENTIAL & NURSING CARE PLACEMENTS,OP COMMISSIONING,Third Party Payments,Revenue
Walsall Council,http://opendatacommunities.org/id/metropolitan-district-council/walsall,WC66-287,31/03/2016,Social Care & Inclusion,ANSON COURT RESIDENTIAL HOME,01/03/2016,"1,568.64",73373-RESIDENTIAL & NURSING CARE PLACEMENTS,MH COMMISSIONING,Third Party Payments,Revenue
Walsall Council,http://opendatacommunities.org/id/metropolitan-district-council/walsall,WC66-288,31/03/2016,Social Care & Inclusion,ANSON COURT RESIDENTIAL HOME,22/03/2016,"1,568.64",73373-RESIDENTIAL & NURSING CARE PLACEMENTS,MH COMMISSIONING,Third Party Payments,Revenue
Walsall Council,http://opendatacommunities.org/id/metropolitan-district-council/walsall,WC66-289,31/03/2016,Social Care & Inclusion,ANSON COURT RESIDENTIAL HOME,22/03/2016,"1,568.64",73373-RESIDENTIAL & NURSING CARE PLACEMENTS,MH COMMISSIONING,Third Party Payments,Revenue
Walsall Council,http://opendatacommunities.org/id/metropolitan-district-council/walsall,WC66-290,31/03/2016,Social Care & Inclusion,ANSON COURT RESIDENTIAL HOME,22/03/2016,"1,568.64",73373-RESIDENTIAL & NURSING CARE PLACEMENTS,MH COMMISSIONING,Third Party Payments,Revenue
Walsall Council,http://opendatacommunities.org/id/metropolitan-district-council/walsall,WC66-291,31/03/2016,Social Care & Inclusion,ANSON COURT RESIDENTIAL HOME,22/03/2016,"1,624.66",73373-RESIDENTIAL & NURSING CARE PLACEMENTS,OP COMMISSIONING,Third Party Payments,Revenue
Walsall Council,http://opendatacommunities.org/id/metropolitan-district-council/walsall,WC66-292,31/03/2016,Social Care & Inclusion,ANSON COURT RESIDENTIAL HOME,15/03/2016,"1,678.92",73373-RESIDENTIAL & NURSING CARE PLACEMENTS,OP COMMISSIONING,Third Party Payments,Revenue
Walsall Council,http://opendatacommunities.org/id/metropolitan-district-council/walsall,WC66-293,31/03/2016,Social Care & Inclusion,ANSON COURT RESIDENTIAL HOME,15/03/2016,"1,680.68",73373-RESIDENTIAL & NURSING CARE PLACEMENTS,OP COMMISSIONING,Third Party Payments,Revenue
Walsall Council,http://opendatacommunities.org/id/metropolitan-district-council/walsall,WC66-294,31/03/2016,Social Care & Inclusion,ANSON COURT RESIDENTIAL HOME,15/03/2016,"1,680.68",73373-RESIDENTIAL & NURSING CARE PLACEMENTS,OP COMMISSIONING,Third Party Payments,Revenue
Walsall Council,http://opendatacommunities.org/id/metropolitan-district-council/walsall,WC66-295,31/03/2016,Social Care & Inclusion,ANSON COURT RESIDENTIAL HOME,15/03/2016,"1,680.68",73373-RESIDENTIAL & NURSING CARE PLACEMENTS,OP COMMISSIONING,Third Party Payments,Revenue
Walsall Council,http://opendatacommunities.org/id/metropolitan-district-council/walsall,WC66-296,31/03/2016,Social Care & Inclusion,ANSON COURT RESIDENTIAL HOME,15/03/2016,"1,680.69",73373-RESIDENTIAL & NURSING CARE PLACEMENTS,OP COMMISSIONING,Third Party Payments,Revenue
Walsall Council,http://opendatacommunities.org/id/metropolitan-district-council/walsall,WC66-297,31/03/2016,Social Care & Inclusion,ANSON COURT RESIDENTIAL HOME,15/03/2016,"1,680.69",73373-RESIDENTIAL & NURSING CARE PLACEMENTS,OP COMMISSIONING,Third Party Payments,Revenue
Walsall Council,http://opendatacommunities.org/id/metropolitan-district-council/walsall,WC66-298,31/03/2016,Social Care & Inclusion,ANSON COURT RESIDENTIAL HOME,15/03/2016,"1,680.69",73373-RESIDENTIAL & NURSING CARE PLACEMENTS,OP COMMISSIONING,Third Party Payments,Revenue
Walsall Council,http://opendatacommunities.org/id/metropolitan-district-council/walsall,WC66-299,31/03/2016,Social Care & Inclusion,ANSON COURT RESIDENTIAL HOME,15/03/2016,"1,680.69",73373-RESIDENTIAL & NURSING CARE PLACEMENTS,OP COMMISSIONING,Third Party Payments,Revenue
Walsall Council,http://opendatacommunities.org/id/metropolitan-district-council/walsall,WC66-300,31/03/2016,Social Care & Inclusion,ANSON COURT RESIDENTIAL HOME,15/03/2016,"1,680.69",73373-RESIDENTIAL & NURSING CARE PLACEMENTS,MH COMMISSIONING,Third Party Payments,Revenue
Walsall Council,http://opendatacommunities.org/id/metropolitan-district-council/walsall,WC66-301,31/03/2016,Social Care & Inclusion,ANSON COURT RESIDENTIAL HOME,15/03/2016,"1,680.69",73373-RESIDENTIAL & NURSING CARE PLACEMENTS,MH COMMISSIONING,Third Party Payments,Revenue
Walsall Council,http://opendatacommunities.org/id/metropolitan-district-council/walsall,WC66-302,31/03/2016,Social Care & Inclusion,ANSON COURT RESIDENTIAL HOME,15/03/2016,"1,680.69",73373-RESIDENTIAL & NURSING CARE PLACEMENTS,MH COMMISSIONING,Third Party Payments,Revenue
Walsall Council,http://opendatacommunities.org/id/metropolitan-district-council/walsall,WC66-303,31/03/2016,Social Care & Inclusion,ANSON COURT RESIDENTIAL HOME,15/03/2016,"1,680.69",73373-RESIDENTIAL & NURSING CARE PLACEMENTS,OP COMMISSIONING,Third Party Payments,Revenue
Walsall Council,http://opendatacommunities.org/id/metropolitan-district-council/walsall,WC66-304,31/03/2016,Social Care & Inclusion,ANSON COURT RESIDENTIAL HOME,15/03/2016,"1,680.69",73373-RESIDENTIAL & NURSING CARE PLACEMENTS,MH COMMISSIONING,Third Party Payments,Revenue
Walsall Council,http://opendatacommunities.org/id/metropolitan-district-council/walsall,WC66-305,31/03/2016,Social Care & Inclusion,ANSON COURT RESIDENTIAL HOME,15/03/2016,"1,680.69",73373-RESIDENTIAL & NURSING CARE PLACEMENTS,OP COMMISSIONING,Third Party Payments,Revenue
Walsall Council,http://opendatacommunities.org/id/metropolitan-district-council/walsall,WC66-306,31/03/2016,Social Care & Inclusion,ANSON COURT RESIDENTIAL HOME,22/03/2016,"1,680.69",73373-RESIDENTIAL & NURSING CARE PLACEMENTS,MH COMMISSIONING,Third Party Payments,Revenue
Walsall Council,http://opendatacommunities.org/id/metropolitan-district-council/walsall,WC66-307,31/03/2016,Social Care & Inclusion,ANSON COURT RESIDENTIAL HOME,15/03/2016,"1,767.00",73373-RESIDENTIAL & NURSING CARE PLACEMENTS,MH COMMISSIONING,Third Party Payments,Revenue
Walsall Council,http://opendatacommunities.org/id/metropolitan-district-council/walsall,WC66-308,31/03/2016,Social Care & Inclusion,ANSON COURT RESIDENTIAL HOME,15/03/2016,"1,768.33",73373-RESIDENTIAL & NURSING CARE PLACEMENTS,OP COMMISSIONING,Third Party Payments,Revenue
Walsall Council,http://opendatacommunities.org/id/metropolitan-district-council/walsall,WC66-309,31/03/2016,Social Care & Inclusion,ANSON COURT RESIDENTIAL HOME,15/03/2016,"1,768.97",73373-RESIDENTIAL & NURSING CARE PLACEMENTS,OP COMMISSIONING,Third Party Payments,Revenue
Walsall Council,http://opendatacommunities.org/id/metropolitan-district-council/walsall,WC66-310,31/03/2016,Social Care & Inclusion,ANSON COURT RESIDENTIAL HOME,15/03/2016,"1,768.97",73373-RESIDENTIAL & NURSING CARE PLACEMENTS,OP COMMISSIONING,Third Party Payments,Revenue
Walsall Council,http://opendatacommunities.org/id/metropolitan-district-council/walsall,WC66-311,31/03/2016,Social Care & Inclusion,ANSON COURT RESIDENTIAL HOME,22/03/2016,"2,408.98",73373-RESIDENTIAL & NURSING CARE PLACEMENTS,MH COMMISSIONING,Third Party Payments,Revenue
Walsall Council,http://opendatacommunities.org/id/metropolitan-district-council/walsall,WC66-312,31/03/2016,Social Care & Inclusion,ANSON COURT RESIDENTIAL HOME,01/03/2016,"3,137.28",73373-RESIDENTIAL & NURSING CARE PLACEMENTS,MH COMMISSIONING,Third Party Payments,Revenue
Walsall Council,http://opendatacommunities.org/id/metropolitan-district-council/walsall,WC66-313,31/03/2016,Change and Governance,ANTALIS LIMITED,10/03/2016,260.00,60500-GENERAL MATERIALS,PRINTING SERVICES,Supplies & Services,Revenue
Walsall Council,http://opendatacommunities.org/id/metropolitan-district-council/walsall,WC66-314,31/03/2016,Childrens,REDACTED,14/03/2016,"1,369.84",74006-HOLIDAY/CHRISTMAS ALLOWANCE-FOSTER CARERS-OTH AGENCY PROVISION,INTERNAL FOSTER CARE PROVISION,Third Party Payments,Revenue
Walsall Council,http://opendatacommunities.org/id/metropolitan-district-council/walsall,WC66-315,31/03/2016,Childrens,REDACTED,14/03/2016,571.44,74006-HOLIDAY/CHRISTMAS ALLOWANCE-FOSTER CARERS-OTH AGENCY PROVISION,INTERNAL FOSTER CARE PROVISION,Third Party Payments,Revenue
Walsall Council,http://opendatacommunities.org/id/metropolitan-district-council/walsall,WC66-316,31/03/2016,Economy & Environment,APCOA PARKING SERVICES (UK) LTD,14/03/2016,"48,229.92",73025-PROFESSIONAL SERVICES-PRIV CONTRACTOR & OTHER AGENCIES,PARKING SERVICES,Third Party Payments,Revenue
Walsall Council,http://opendatacommunities.org/id/metropolitan-district-council/walsall,WC66-317,31/03/2016,Childrens,APPLE TRANSCRIPTION LIMITED,18/03/2016,396.75,73014-LEGAL FEES-PRIV CONTRACTOR FEES,GENERAL MANAGEMENT SUPPORT (INC LEGAL),Third Party Payments,Revenue
Walsall Council,http://opendatacommunities.org/id/metropolitan-district-council/walsall,WC66-318,31/03/2016,Economy & Environment,APSE 001,11/03/2016,338.00,30030-EXTERNAL TRAINING,GROUNDS,Employees,Revenue
Walsall Council,http://opendatacommunities.org/id/metropolitan-district-council/walsall,WC66-319,31/03/2016,Economy & Environment,APSE 001,24/03/2016,338.00,30030-EXTERNAL TRAINING,GROUNDS,Employees,Revenue
Walsall Council,http://opendatacommunities.org/id/metropolitan-district-council/walsall,WC66-320,31/03/2016,Economy & Environment,APSE 001,17/03/2016,614.66,30030-EXTERNAL TRAINING,ENGINEERING MANAGEMENT,Employees,Revenue
Walsall Council,http://opendatacommunities.org/id/metropolitan-district-council/walsall,WC66-321,31/03/2016,Social Care & Inclusion,ARBORETUM NURSING HOME.,01/03/2016,-917.24,73373-RESIDENTIAL & NURSING CARE PLACEMENTS,YADS COMMISSIONING,Third Party Payments,Revenue
Walsall Council,http://opendatacommunities.org/id/metropolitan-district-council/walsall,WC66-322,31/03/2016,Social Care & Inclusion,ARBORETUM NURSING HOME.,22/03/2016,564.45,73373-RESIDENTIAL & NURSING CARE PLACEMENTS,OP COMMISSIONING,Third Party Payments,Revenue
Walsall Council,http://opendatacommunities.org/id/metropolitan-district-council/walsall,WC66-323,31/03/2016,Social Care & Inclusion,ARBORETUM NURSING HOME.,24/03/2016,"1,975.60",73373-RESIDENTIAL & NURSING CARE PLACEMENTS,OP COMMISSIONING,Third Party Payments,Revenue
Walsall Council,http://opendatacommunities.org/id/metropolitan-district-council/walsall,WC66-324,31/03/2016,Social Care & Inclusion,ARBORETUM NURSING HOME.,15/03/2016,"2,469.50",73373-RESIDENTIAL & NURSING CARE PLACEMENTS,OP COMMISSIONING,Third Party Payments,Revenue
Walsall Council,http://opendatacommunities.org/id/metropolitan-district-council/walsall,WC66-325,31/03/2016,Social Care & Inclusion,ARBORETUM NURSING HOME.,15/03/2016,"2,469.50",73373-RESIDENTIAL & NURSING CARE PLACEMENTS,OP COMMISSIONING,Third Party Payments,Revenue
Walsall Council,http://opendatacommunities.org/id/metropolitan-district-council/walsall,WC66-326,31/03/2016,Social Care & Inclusion,ARBORETUM NURSING HOME.,15/03/2016,"2,469.50",73373-RESIDENTIAL & NURSING CARE PLACEMENTS,OP COMMISSIONING,Third Party Payments,Revenue
Walsall Council,http://opendatacommunities.org/id/metropolitan-district-council/walsall,WC66-327,31/03/2016,Social Care & Inclusion,ARBORETUM NURSING HOME.,24/03/2016,"2,469.50",73373-RESIDENTIAL & NURSING CARE PLACEMENTS,OP COMMISSIONING,Third Party Payments,Revenue
Walsall Council,http://opendatacommunities.org/id/metropolitan-district-council/walsall,WC66-328,31/03/2016,Social Care & Inclusion,ARBORETUM NURSING HOME.,15/03/2016,"2,521.45",73373-RESIDENTIAL & NURSING CARE PLACEMENTS,OP COMMISSIONING,Third Party Payments,Revenue
Walsall Council,http://opendatacommunities.org/id/metropolitan-district-council/walsall,WC66-329,31/03/2016,Social Care & Inclusion,ARBORETUM NURSING HOME.,15/03/2016,"2,540.06",73373-RESIDENTIAL & NURSING CARE PLACEMENTS,OP COMMISSIONING,Third Party Payments,Revenue
Walsall Council,http://opendatacommunities.org/id/metropolitan-district-council/walsall,WC66-330,31/03/2016,Social Care & Inclusion,ARBORETUM NURSING HOME.,15/03/2016,"2,540.06",73373-RESIDENTIAL & NURSING CARE PLACEMENTS,OP COMMISSIONING,Third Party Payments,Revenue
Walsall Council,http://opendatacommunities.org/id/metropolitan-district-council/walsall,WC66-331,31/03/2016,Social Care & Inclusion,ARBORETUM NURSING HOME.,15/03/2016,"2,610.00",73373-RESIDENTIAL & NURSING CARE PLACEMENTS,OP COMMISSIONING,Third Party Payments,Revenue
Walsall Council,http://opendatacommunities.org/id/metropolitan-district-council/walsall,WC66-332,31/03/2016,Social Care & Inclusion,ARBORETUM NURSING HOME.,16/03/2016,"15,000.00",73019-PSE'S-PRIV CONTRACTOR FEES,TRANSITIONAL CARE SUPPORT TEAM,Third Party Payments,Revenue
Walsall Council,http://opendatacommunities.org/id/metropolitan-district-council/walsall,WC66-333,31/03/2016,Economy & Environment,ARK FORENSICS LTD,03/03/2016,391.40,63000-PROFESSIONAL FEES AND SERVICES,CORONERS SERVICE,Supplies & Services,Revenue
Walsall Council,http://opendatacommunities.org/id/metropolitan-district-council/walsall,WC66-334,31/03/2016,Childrens,ARRIVA MIDLANDS LTD,01/03/2016,270.00,52000-WITH DRIVER-HIRE OF VEHICLES,SCHOOL TRANSPORT,Transport,Revenue
Walsall Council,http://opendatacommunities.org/id/metropolitan-district-council/walsall,WC66-335,31/03/2016,Childrens,ARTHUR M GRIFFITHS & SON LTD,21/03/2016,"55,098.21",01006-SITE WORKS MAIN CONTRACTORS,CFR 929 KING CHARLES PRIMARY SIGNIFICANT ENLARGEMENT,Capital,Capital
Walsall Council,http://opendatacommunities.org/id/metropolitan-district-council/walsall,WC66-336,31/03/2016,Social Care & Inclusion,ASH GRANGE CARE HOME,24/03/2016,-937.80,73373-RESIDENTIAL & NURSING CARE PLACEMENTS,OP COMMISSIONING,Third Party Payments,Revenue
Walsall Council,http://opendatacommunities.org/id/metropolitan-district-council/walsall,WC66-337,31/03/2016,Social Care & Inclusion,ASH GRANGE CARE HOME,24/03/2016,483.93,73373-RESIDENTIAL & NURSING CARE PLACEMENTS,OP COMMISSIONING,Third Party Payments,Revenue
Walsall Council,http://opendatacommunities.org/id/metropolitan-district-council/walsall,WC66-338,31/03/2016,Social Care & Inclusion,ASH GRANGE CARE HOME,22/03/2016,497.05,73373-RESIDENTIAL & NURSING CARE PLACEMENTS,OP COMMISSIONING,Third Party Payments,Revenue
Walsall Council,http://opendatacommunities.org/id/metropolitan-district-council/walsall,WC66-339,31/03/2016,Social Care & Inclusion,ASH GRANGE CARE HOME,24/03/2016,639.06,73373-RESIDENTIAL & NURSING CARE PLACEMENTS,OP COMMISSIONING,Third Party Payments,Revenue
Walsall Council,http://opendatacommunities.org/id/metropolitan-district-council/walsall,WC66-340,31/03/2016,Social Care & Inclusion,ASH GRANGE CARE HOME,24/03/2016,639.06,73373-RESIDENTIAL & NURSING CARE PLACEMENTS,MH COMMISSIONING,Third Party Payments,Revenue
Walsall Council,http://opendatacommunities.org/id/metropolitan-district-council/walsall,WC66-341,31/03/2016,Social Care & Inclusion,ASH GRANGE CARE HOME,24/03/2016,639.06,73373-RESIDENTIAL & NURSING CARE PLACEMENTS,OP COMMISSIONING,Third Party Payments,Revenue
Walsall Council,http://opendatacommunities.org/id/metropolitan-district-council/walsall,WC66-342,31/03/2016,Social Care & Inclusion,ASH GRANGE CARE HOME,24/03/2016,639.06,73373-RESIDENTIAL & NURSING CARE PLACEMENTS,OP COMMISSIONING,Third Party Payments,Revenue
Walsall Council,http://opendatacommunities.org/id/metropolitan-district-council/walsall,WC66-343,31/03/2016,Social Care & Inclusion,ASH GRANGE CARE HOME,24/03/2016,639.06,73373-RESIDENTIAL & NURSING CARE PLACEMENTS,OP COMMISSIONING,Third Party Payments,Revenue
Walsall Council,http://opendatacommunities.org/id/metropolitan-district-council/walsall,WC66-344,31/03/2016,Social Care & Inclusion,ASH GRANGE CARE HOME,24/03/2016,639.06,73373-RESIDENTIAL & NURSING CARE PLACEMENTS,OP COMMISSIONING,Third Party Payments,Revenue
Walsall Council,http://opendatacommunities.org/id/metropolitan-district-council/walsall,WC66-345,31/03/2016,Social Care & Inclusion,ASH GRANGE CARE HOME,24/03/2016,639.06,73373-RESIDENTIAL & NURSING CARE PLACEMENTS,OP COMMISSIONING,Third Party Payments,Revenue
Walsall Council,http://opendatacommunities.org/id/metropolitan-district-council/walsall,WC66-346,31/03/2016,Social Care & Inclusion,ASH GRANGE CARE HOME,24/03/2016,639.07,73373-RESIDENTIAL & NURSING CARE PLACEMENTS,OP COMMISSIONING,Third Party Payments,Revenue
Walsall Council,http://opendatacommunities.org/id/metropolitan-district-council/walsall,WC66-347,31/03/2016,Social Care & Inclusion,ASH GRANGE CARE HOME,24/03/2016,639.07,73373-RESIDENTIAL & NURSING CARE PLACEMENTS,OP COMMISSIONING,Third Party Payments,Revenue
Walsall Council,http://opendatacommunities.org/id/metropolitan-district-council/walsall,WC66-348,31/03/2016,Social Care & Inclusion,ASH GRANGE CARE HOME,24/03/2016,639.07,73373-RESIDENTIAL & NURSING CARE PLACEMENTS,OP COMMISSIONING,Third Party Payments,Revenue
Walsall Council,http://opendatacommunities.org/id/metropolitan-district-council/walsall,WC66-349,31/03/2016,Social Care & Inclusion,ASH GRANGE CARE HOME,24/03/2016,639.07,73373-RESIDENTIAL & NURSING CARE PLACEMENTS,OP COMMISSIONING,Third Party Payments,Revenue
Walsall Council,http://opendatacommunities.org/id/metropolitan-district-council/walsall,WC66-350,31/03/2016,Social Care & Inclusion,ASH GRANGE CARE HOME,24/03/2016,663.96,73373-RESIDENTIAL & NURSING CARE PLACEMENTS,OP COMMISSIONING,Third Party Payments,Revenue
Walsall Council,http://opendatacommunities.org/id/metropolitan-district-council/walsall,WC66-351,31/03/2016,Social Care & Inclusion,ASH GRANGE CARE HOME,24/03/2016,946.20,73373-RESIDENTIAL & NURSING CARE PLACEMENTS,OP COMMISSIONING,Third Party Payments,Revenue
Walsall Council,http://opendatacommunities.org/id/metropolitan-district-council/walsall,WC66-352,31/03/2016,Social Care & Inclusion,ASH GRANGE CARE HOME,24/03/2016,"1,021.63",73373-RESIDENTIAL & NURSING CARE PLACEMENTS,OP COMMISSIONING,Third Party Payments,Revenue
Walsall Council,http://opendatacommunities.org/id/metropolitan-district-council/walsall,WC66-353,31/03/2016,Social Care & Inclusion,ASH GRANGE CARE HOME,24/03/2016,"1,349.13",73373-RESIDENTIAL & NURSING CARE PLACEMENTS,OP COMMISSIONING,Third Party Payments,Revenue
Walsall Council,http://opendatacommunities.org/id/metropolitan-district-council/walsall,WC66-354,31/03/2016,Social Care & Inclusion,ASH GRANGE CARE HOME,24/03/2016,"1,349.13",73373-RESIDENTIAL & NURSING CARE PLACEMENTS,OP COMMISSIONING,Third Party Payments,Revenue
Walsall Council,http://opendatacommunities.org/id/metropolitan-district-council/walsall,WC66-355,31/03/2016,Social Care & Inclusion,ASH GRANGE CARE HOME,24/03/2016,"1,349.13",73373-RESIDENTIAL & NURSING CARE PLACEMENTS,OP COMMISSIONING,Third Party Payments,Revenue
Walsall Council,http://opendatacommunities.org/id/metropolitan-district-council/walsall,WC66-356,31/03/2016,Social Care & Inclusion,ASH GRANGE CARE HOME,24/03/2016,"1,349.13",73373-RESIDENTIAL & NURSING CARE PLACEMENTS,OP COMMISSIONING,Third Party Payments,Revenue
Walsall Council,http://opendatacommunities.org/id/metropolitan-district-council/walsall,WC66-357,31/03/2016,Social Care & Inclusion,ASH GRANGE CARE HOME,24/03/2016,"1,349.14",73373-RESIDENTIAL & NURSING CARE PLACEMENTS,OP COMMISSIONING,Third Party Payments,Revenue
Walsall Council,http://opendatacommunities.org/id/metropolitan-district-council/walsall,WC66-358,31/03/2016,Social Care & Inclusion,ASH GRANGE CARE HOME,24/03/2016,"1,349.14",73373-RESIDENTIAL & NURSING CARE PLACEMENTS,MH COMMISSIONING,Third Party Payments,Revenue
Walsall Council,http://opendatacommunities.org/id/metropolitan-district-council/walsall,WC66-359,31/03/2016,Social Care & Inclusion,ASH GRANGE CARE HOME,24/03/2016,"1,349.14",73373-RESIDENTIAL & NURSING CARE PLACEMENTS,OP COMMISSIONING,Third Party Payments,Revenue
Walsall Council,http://opendatacommunities.org/id/metropolitan-district-council/walsall,WC66-360,31/03/2016,Social Care & Inclusion,ASH GRANGE CARE HOME,24/03/2016,"1,349.14",73373-RESIDENTIAL & NURSING CARE PLACEMENTS,OP COMMISSIONING,Third Party Payments,Revenue
Walsall Council,http://opendatacommunities.org/id/metropolitan-district-council/walsall,WC66-361,31/03/2016,Social Care & Inclusion,ASH GRANGE CARE HOME,24/03/2016,"1,349.14",73373-RESIDENTIAL & NURSING CARE PLACEMENTS,OP COMMISSIONING,Third Party Payments,Revenue
Walsall Council,http://opendatacommunities.org/id/metropolitan-district-council/walsall,WC66-362,31/03/2016,Social Care & Inclusion,ASH GRANGE CARE HOME,24/03/2016,"1,349.14",73373-RESIDENTIAL & NURSING CARE PLACEMENTS,OP COMMISSIONING,Third Party Payments,Revenue
Walsall Council,http://opendatacommunities.org/id/metropolitan-district-council/walsall,WC66-363,31/03/2016,Social Care & Inclusion,ASH GRANGE CARE HOME,24/03/2016,"1,349.14",73373-RESIDENTIAL & NURSING CARE PLACEMENTS,OP COMMISSIONING,Third Party Payments,Revenue
Walsall Council,http://opendatacommunities.org/id/metropolitan-district-council/walsall,WC66-364,31/03/2016,Social Care & Inclusion,ASH GRANGE CARE HOME,24/03/2016,"1,349.14",73373-RESIDENTIAL & NURSING CARE PLACEMENTS,OP COMMISSIONING,Third Party Payments,Revenue
Walsall Council,http://opendatacommunities.org/id/metropolitan-district-council/walsall,WC66-365,31/03/2016,Social Care & Inclusion,ASH GRANGE CARE HOME,24/03/2016,"1,401.68",73373-RESIDENTIAL & NURSING CARE PLACEMENTS,OP COMMISSIONING,Third Party Payments,Revenue
Walsall Council,http://opendatacommunities.org/id/metropolitan-district-council/walsall,WC66-366,31/03/2016,Social Care & Inclusion,ASH GRANGE CARE HOME,01/03/2016,"1,505.56",73373-RESIDENTIAL & NURSING CARE PLACEMENTS,OP COMMISSIONING,Third Party Payments,Revenue
Walsall Council,http://opendatacommunities.org/id/metropolitan-district-council/walsall,WC66-367,31/03/2016,Social Care & Inclusion,ASH GRANGE CARE HOME,15/03/2016,"1,562.16",73373-RESIDENTIAL & NURSING CARE PLACEMENTS,OP COMMISSIONING,Third Party Payments,Revenue
Walsall Council,http://opendatacommunities.org/id/metropolitan-district-council/walsall,WC66-368,31/03/2016,Social Care & Inclusion,ASH GRANGE CARE HOME,01/03/2016,"1,988.20",73373-RESIDENTIAL & NURSING CARE PLACEMENTS,OP COMMISSIONING,Third Party Payments,Revenue
Walsall Council,http://opendatacommunities.org/id/metropolitan-district-council/walsall,WC66-369,31/03/2016,Social Care & Inclusion,ASH GRANGE CARE HOME,01/03/2016,"1,988.20",73373-RESIDENTIAL & NURSING CARE PLACEMENTS,OP COMMISSIONING,Third Party Payments,Revenue
Walsall Council,http://opendatacommunities.org/id/metropolitan-district-council/walsall,WC66-370,31/03/2016,Social Care & Inclusion,ASH GRANGE CARE HOME,01/03/2016,"1,988.20",73373-RESIDENTIAL & NURSING CARE PLACEMENTS,MH COMMISSIONING,Third Party Payments,Revenue
Walsall Council,http://opendatacommunities.org/id/metropolitan-district-council/walsall,WC66-371,31/03/2016,Social Care & Inclusion,ASH GRANGE CARE HOME,01/03/2016,"1,988.20",73373-RESIDENTIAL & NURSING CARE PLACEMENTS,OP COMMISSIONING,Third Party Payments,Revenue
Walsall Council,http://opendatacommunities.org/id/metropolitan-district-council/walsall,WC66-372,31/03/2016,Social Care & Inclusion,ASH GRANGE CARE HOME,01/03/2016,"1,988.20",73373-RESIDENTIAL & NURSING CARE PLACEMENTS,OP COMMISSIONING,Third Party Payments,Revenue
Walsall Council,http://opendatacommunities.org/id/metropolitan-district-council/walsall,WC66-373,31/03/2016,Social Care & Inclusion,ASH GRANGE CARE HOME,01/03/2016,"1,988.20",73373-RESIDENTIAL & NURSING CARE PLACEMENTS,OP COMMISSIONING,Third Party Payments,Revenue
Walsall Council,http://opendatacommunities.org/id/metropolitan-district-council/walsall,WC66-374,31/03/2016,Social Care & Inclusion,ASH GRANGE CARE HOME,01/03/2016,"1,988.20",73373-RESIDENTIAL & NURSING CARE PLACEMENTS,OP COMMISSIONING,Third Party Payments,Revenue
Walsall Council,http://opendatacommunities.org/id/metropolitan-district-council/walsall,WC66-375,31/03/2016,Social Care & Inclusion,ASH GRANGE CARE HOME,01/03/2016,"1,988.20",73373-RESIDENTIAL & NURSING CARE PLACEMENTS,OP COMMISSIONING,Third Party Payments,Revenue
Walsall Council,http://opendatacommunities.org/id/metropolitan-district-council/walsall,WC66-376,31/03/2016,Social Care & Inclusion,ASH GRANGE CARE HOME,01/03/2016,"1,988.20",73373-RESIDENTIAL & NURSING CARE PLACEMENTS,OP COMMISSIONING,Third Party Payments,Revenue
Walsall Council,http://opendatacommunities.org/id/metropolitan-district-council/walsall,WC66-377,31/03/2016,Social Care & Inclusion,ASH GRANGE CARE HOME,22/03/2016,"1,988.20",73373-RESIDENTIAL & NURSING CARE PLACEMENTS,OP COMMISSIONING,Third Party Payments,Revenue
Walsall Council,http://opendatacommunities.org/id/metropolitan-district-council/walsall,WC66-378,31/03/2016,Social Care & Inclusion,ASH GRANGE CARE HOME,22/03/2016,"1,988.20",73373-RESIDENTIAL & NURSING CARE PLACEMENTS,OP COMMISSIONING,Third Party Payments,Revenue
Walsall Council,http://opendatacommunities.org/id/metropolitan-district-council/walsall,WC66-379,31/03/2016,Social Care & Inclusion,ASH GRANGE CARE HOME,22/03/2016,"1,988.20",73373-RESIDENTIAL & NURSING CARE PLACEMENTS,OP COMMISSIONING,Third Party Payments,Revenue
Walsall Council,http://opendatacommunities.org/id/metropolitan-district-council/walsall,WC66-380,31/03/2016,Social Care & Inclusion,ASH GRANGE CARE HOME,24/03/2016,"1,997.52",73373-RESIDENTIAL & NURSING CARE PLACEMENTS,OP COMMISSIONING,Third Party Payments,Revenue
Walsall Council,http://opendatacommunities.org/id/metropolitan-district-council/walsall,WC66-381,31/03/2016,Social Care & Inclusion,ASH GRANGE CARE HOME,08/03/2016,"2,059.21",73373-RESIDENTIAL & NURSING CARE PLACEMENTS,OP COMMISSIONING,Third Party Payments,Revenue
Walsall Council,http://opendatacommunities.org/id/metropolitan-district-council/walsall,WC66-382,31/03/2016,Social Care & Inclusion,ASH GRANGE CARE HOME,01/03/2016,"2,065.64",73373-RESIDENTIAL & NURSING CARE PLACEMENTS,OP COMMISSIONING,Third Party Payments,Revenue
Walsall Council,http://opendatacommunities.org/id/metropolitan-district-council/walsall,WC66-383,31/03/2016,Social Care & Inclusion,ASH GRANGE CARE HOME,24/03/2016,"2,110.05",73373-RESIDENTIAL & NURSING CARE PLACEMENTS,OP COMMISSIONING,Third Party Payments,Revenue
Walsall Council,http://opendatacommunities.org/id/metropolitan-district-council/walsall,WC66-384,31/03/2016,Social Care & Inclusion,ASH GRANGE CARE HOME,01/03/2016,"2,943.72",73373-RESIDENTIAL & NURSING CARE PLACEMENTS,OP COMMISSIONING,Third Party Payments,Revenue
Walsall Council,http://opendatacommunities.org/id/metropolitan-district-council/walsall,WC66-385,31/03/2016,Social Care & Inclusion,ASH GRANGE CARE HOME,23/03/2016,"7,260.00",73374-SUPPORTED & OTHER ACCOMMODATION,OP COMMISSIONING,Third Party Payments,Revenue
Walsall Council,http://opendatacommunities.org/id/metropolitan-district-council/walsall,WC66-386,31/03/2016,Social Care & Inclusion,ASH GRANGE CARE HOME,22/03/2016,"14,700.00",73019-PSE'S-PRIV CONTRACTOR FEES,TRANSITIONAL CARE SUPPORT TEAM,Third Party Payments,Revenue
Walsall Council,http://opendatacommunities.org/id/metropolitan-district-council/walsall,WC66-387,31/03/2016,Social Care & Inclusion,ASH GRANGE CARE HOME,23/03/2016,"14,700.00",73019-PSE'S-PRIV CONTRACTOR FEES,TRANSITIONAL CARE SUPPORT TEAM,Third Party Payments,Revenue
Walsall Council,http://opendatacommunities.org/id/metropolitan-district-council/walsall,WC66-388,31/03/2016,Economy & Environment,ASKEWS AND HOLTS LIBRARY SERVICES LTD,30/03/2016,251.36,60501-LIBRARY BOOKS,LIBRARY STOCK AND PERFORMANCE,Supplies & Services,Revenue
Walsall Council,http://opendatacommunities.org/id/metropolitan-district-council/walsall,WC66-389,31/03/2016,Economy & Environment,ASKEWS AND HOLTS LIBRARY SERVICES LTD,30/03/2016,265.32,60501-LIBRARY BOOKS,LIBRARY STOCK AND PERFORMANCE,Supplies & Services,Revenue
Walsall Council,http://opendatacommunities.org/id/metropolitan-district-council/walsall,WC66-390,31/03/2016,Economy & Environment,ASKEWS AND HOLTS LIBRARY SERVICES LTD,18/03/2016,271.35,60501-LIBRARY BOOKS,LIBRARY STOCK AND PERFORMANCE,Supplies & Services,Revenue
Walsall Council,http://opendatacommunities.org/id/metropolitan-district-council/walsall,WC66-391,31/03/2016,Economy & Environment,ASKEWS AND HOLTS LIBRARY SERVICES LTD,03/03/2016,276.65,60501-LIBRARY BOOKS,LIBRARY STOCK AND PERFORMANCE,Supplies & Services,Revenue
Walsall Council,http://opendatacommunities.org/id/metropolitan-district-council/walsall,WC66-392,31/03/2016,Economy & Environment,ASKEWS AND HOLTS LIBRARY SERVICES LTD,03/03/2016,436.93,60501-LIBRARY BOOKS,LIBRARY STOCK AND PERFORMANCE,Supplies & Services,Revenue
Walsall Council,http://opendatacommunities.org/id/metropolitan-district-council/walsall,WC66-393,31/03/2016,Economy & Environment,ASKEWS AND HOLTS LIBRARY SERVICES LTD,23/03/2016,516.77,60501-LIBRARY BOOKS,LIBRARY STOCK AND PERFORMANCE,Supplies & Services,Revenue
Walsall Council,http://opendatacommunities.org/id/metropolitan-district-council/walsall,WC66-394,31/03/2016,Social Care & Inclusion,REDACTED,14/03/2016,616.25,76422-DIRECT PAYMENTS TO SOCIAL SERVICES CLIENTS,YADS COMMISSIONING,Transfer Payments,Revenue
Walsall Council,http://opendatacommunities.org/id/metropolitan-district-council/walsall,WC66-395,31/03/2016,Economy & Environment,ASSOCIATION OF TOWN CENTRE MANAGEMENT,07/03/2016,795.00,64500-PUBLICATIONS/ORGANISATIONS-SUBSCRIPTIONS,TOWN CENTRE MANAGEMENT,Supplies & Services,Revenue
Walsall Council,http://opendatacommunities.org/id/metropolitan-district-council/walsall,WC66-396,31/03/2016,Change and Governance,ASTUN TECHNOLOGY LIMITED,14/03/2016,"3,400.00",63800-COMPUTER EQUIPMENT AND SUPPLIES,RECHARGEABLE EQUIPMENT,Supplies & Services,Revenue
Walsall Council,http://opendatacommunities.org/id/metropolitan-district-council/walsall,WC66-397,31/03/2016,Economy & Environment,ATHWAL NEWS LTD,31/03/2016,553.51,60501-LIBRARY BOOKS,LIBRARY STOCK AND PERFORMANCE,Supplies & Services,Revenue
Walsall Council,http://opendatacommunities.org/id/metropolitan-district-council/walsall,WC66-398,31/03/2016,Economy & Environment,ATKINS LIMITED,16/03/2016,"4,556.33",01001-OTHER CONSULTANTS FEES,CFR 819 LTP-YORKS BRIDGE,Capital,Capital
Walsall Council,http://opendatacommunities.org/id/metropolitan-district-council/walsall,WC66-399,31/03/2016,Change and Governance,AUDITEL RENTAL & SERVICE LTD,17/03/2016,"1,020.00","40000-REPAIRS,ALTERATIONS & MAINTENANCE-PREM",CENTRALISED MAINTENANCE,Premises,Revenue
Walsall Council,http://opendatacommunities.org/id/metropolitan-district-council/walsall,WC66-400,31/03/2016,Change and Governance,AURORA GRAPHICS & DISPLAYS LTD,10/03/2016,335.00,62008-OUTWORK-PRINT ROOM,PRINTING SERVICES,Supplies & Services,Revenue
Walsall Council,http://opendatacommunities.org/id/metropolitan-district-council/walsall,WC66-401,31/03/2016,Change and Governance,AURORA GRAPHICS & DISPLAYS LTD,01/03/2016,413.80,62008-OUTWORK-PRINT ROOM,PRINTING SERVICES,Supplies & Services,Revenue
Walsall Council,http://opendatacommunities.org/id/metropolitan-district-council/walsall,WC66-402,31/03/2016,Change and Governance,AURORA GRAPHICS & DISPLAYS LTD,18/03/2016,587.00,62008-OUTWORK-PRINT ROOM,PRINTING SERVICES,Supplies & Services,Revenue
Walsall Council,http://opendatacommunities.org/id/metropolitan-district-council/walsall,WC66-403,31/03/2016,Social Care & Inclusion,AUTISM WEST MIDLANDS,03/03/2016,"2,666.67",70000-SOCIAL SERVICES-FEES TO VOLUNTARY BODIES,YADS SLA,Third Party Payments,Revenue
Walsall Council,http://opendatacommunities.org/id/metropolitan-district-council/walsall,WC66-404,31/03/2016,Social Care & Inclusion,AUTISM WEST MIDLANDS,08/03/2016,"6,996.50",73373-RESIDENTIAL & NURSING CARE PLACEMENTS,LD COMMISSIONING,Third Party Payments,Revenue
Walsall Council,http://opendatacommunities.org/id/metropolitan-district-council/walsall,WC66-405,31/03/2016,Social Care & Inclusion,AUTISM WEST MIDLANDS 001,08/03/2016,"4,676.79",73373-RESIDENTIAL & NURSING CARE PLACEMENTS,LD COMMISSIONING,Third Party Payments,Revenue
Walsall Council,http://opendatacommunities.org/id/metropolitan-district-council/walsall,WC66-406,31/03/2016,Social Care & Inclusion,REDACTED,14/03/2016,971.25,76422-DIRECT PAYMENTS TO SOCIAL SERVICES CLIENTS,OP COMMISSIONING,Transfer Payments,Revenue
Walsall Council,http://opendatacommunities.org/id/metropolitan-district-council/walsall,WC66-407,31/03/2016,Economy & Environment,AXIELL LIMITED,11/03/2016,352.80,63000-PROFESSIONAL FEES AND SERVICES,LIBRARY STOCK AND PERFORMANCE,Supplies & Services,Revenue
Walsall Council,http://opendatacommunities.org/id/metropolitan-district-council/walsall,WC66-408,31/03/2016,Economy & Environment,AXIOMATIC TECHNOLOGY LTD,23/03/2016,349.00,60008-MAINTENANCE-FURNITURE & EQUIPMENT,NEW ART GALLERY - ADMIN,Supplies & Services,Revenue
Walsall Council,http://opendatacommunities.org/id/metropolitan-district-council/walsall,WC66-409,31/03/2016,Childrens,REDACTED,14/03/2016,"1,605.00",76422-DIRECT PAYMENTS TO SOCIAL SERVICES CLIENTS,FAMILY SUPPORT - DIRECT PAYMENTS,Transfer Payments,Revenue
Walsall Council,http://opendatacommunities.org/id/metropolitan-district-council/walsall,WC66-410,31/03/2016,Social Care & Inclusion,REDACTED,14/03/2016,"3,315.00",76422-DIRECT PAYMENTS TO SOCIAL SERVICES CLIENTS,LD COMMISSIONING,Transfer Payments,Revenue
Walsall Council,http://opendatacommunities.org/id/metropolitan-district-council/walsall,WC66-411,31/03/2016,Economy & Environment,B & G CLEANING SYSTEMS,01/03/2016,"1,374.64",73025-PROFESSIONAL SERVICES-PRIV CONTRACTOR & OTHER AGENCIES,FLEET,Third Party Payments,Revenue
Walsall Council,http://opendatacommunities.org/id/metropolitan-district-council/walsall,WC66-412,31/03/2016,Economy & Environment,B & S CHAINS LTD,17/03/2016,"1,085.00",60006-NEW-FURNITURE & EQUIPMENT,INFRASTRUCTURE MAINTENANCE,Supplies & Services,Revenue
Walsall Council,http://opendatacommunities.org/id/metropolitan-district-council/walsall,WC66-413,31/03/2016,Childrens,REDACTED,17/03/2016,750.00,60500-GENERAL MATERIALS,PRIMARY CONSULTATIVE GROUP,Supplies & Services,Revenue
Walsall Council,http://opendatacommunities.org/id/metropolitan-district-council/walsall,WC66-414,31/03/2016,Childrens,REDACTED,24/03/2016,906.76,62515-MISCELLANEOUS SUPPLIES,INTERNAL FOSTER CARE PROVISION,Supplies & Services,Revenue
Walsall Council,http://opendatacommunities.org/id/metropolitan-district-council/walsall,WC66-415,31/03/2016,Childrens,REDACTED,01/03/2016,985.76,74006-HOLIDAY/CHRISTMAS ALLOWANCE-FOSTER CARERS-OTH AGENCY PROVISION,INTERNAL FOSTER CARE PROVISION,Third Party Payments,Revenue
Walsall Council,http://opendatacommunities.org/id/metropolitan-district-council/walsall,WC66-416,31/03/2016,Childrens,REDACTED,24/03/2016,985.76,74006-HOLIDAY/CHRISTMAS ALLOWANCE-FOSTER CARERS-OTH AGENCY PROVISION,INTERNAL FOSTER CARE PROVISION,Third Party Payments,Revenue
Walsall Council,http://opendatacommunities.org/id/metropolitan-district-council/walsall,WC66-417,31/03/2016,Childrens,REDACTED,02/03/2016,464.00,76000-TRANSFER PAYMENTS - SOCIAL SERVICES CLIENTS,TRANSITION AND LEAVING CARE,Transfer Payments,Revenue
Walsall Council,http://opendatacommunities.org/id/metropolitan-district-council/walsall,WC66-418,31/03/2016,Childrens,REDACTED,15/03/2016,464.00,76000-TRANSFER PAYMENTS - SOCIAL SERVICES CLIENTS,TRANSITION AND LEAVING CARE,Transfer Payments,Revenue
Walsall Council,http://opendatacommunities.org/id/metropolitan-district-council/walsall,WC66-419,31/03/2016,Childrens,REDACTED,29/03/2016,464.00,76000-TRANSFER PAYMENTS - SOCIAL SERVICES CLIENTS,TRANSITION AND LEAVING CARE,Transfer Payments,Revenue
Walsall Council,http://opendatacommunities.org/id/metropolitan-district-council/walsall,WC66-420,31/03/2016,Childrens,REDACTED,24/03/2016,906.76,62515-MISCELLANEOUS SUPPLIES,INTERNAL FOSTER CARE PROVISION,Supplies & Services,Revenue
Walsall Council,http://opendatacommunities.org/id/metropolitan-district-council/walsall,WC66-421,31/03/2016,Childrens,REDACTED,01/03/2016,985.76,74006-HOLIDAY/CHRISTMAS ALLOWANCE-FOSTER CARERS-OTH AGENCY PROVISION,INTERNAL FOSTER CARE PROVISION,Third Party Payments,Revenue
Walsall Council,http://opendatacommunities.org/id/metropolitan-district-council/walsall,WC66-422,31/03/2016,Childrens,REDACTED,24/03/2016,985.76,74006-HOLIDAY/CHRISTMAS ALLOWANCE-FOSTER CARERS-OTH AGENCY PROVISION,INTERNAL FOSTER CARE PROVISION,Third Party Payments,Revenue
Walsall Council,http://opendatacommunities.org/id/metropolitan-district-council/walsall,WC66-423,31/03/2016,Economy & Environment,B3 CREATIVE LTD,22/03/2016,"3,675.00",62515-MISCELLANEOUS SUPPLIES,ROAD SAFETY & SUSTAINABLE TRAVEL,Supplies & Services,Revenue
Walsall Council,http://opendatacommunities.org/id/metropolitan-district-council/walsall,WC66-424,31/03/2016,Economy & Environment,BAKER HALL PARTNERSHIP,17/03/2016,594.50,63248-SURVEYS & PROF SERVICES-PAYMENT TO CONTRACTOR,BUILDING CONTROL REVENUE FUNDED,Supplies & Services,Revenue
Walsall Council,http://opendatacommunities.org/id/metropolitan-district-council/walsall,WC66-425,31/03/2016,Social Care & Inclusion,REDACTED,14/03/2016,850.00,76422-DIRECT PAYMENTS TO SOCIAL SERVICES CLIENTS,MH COMMISSIONING,Transfer Payments,Revenue
Walsall Council,http://opendatacommunities.org/id/metropolitan-district-council/walsall,WC66-426,31/03/2016,Social Care & Inclusion,REDACTED,14/03/2016,"3,562.40",76422-DIRECT PAYMENTS TO SOCIAL SERVICES CLIENTS,LD COMMISSIONING,Transfer Payments,Revenue
Walsall Council,http://opendatacommunities.org/id/metropolitan-district-council/walsall,WC66-427,31/03/2016,Social Care & Inclusion,REDACTED,14/03/2016,"1,062.50",76422-DIRECT PAYMENTS TO SOCIAL SERVICES CLIENTS,OP COMMISSIONING,Transfer Payments,Revenue
Walsall Council,http://opendatacommunities.org/id/metropolitan-district-council/walsall,WC66-428,31/03/2016,Social Care & Inclusion,REDACTED,14/03/2016,"1,308.13",76422-DIRECT PAYMENTS TO SOCIAL SERVICES CLIENTS,OP COMMISSIONING,Transfer Payments,Revenue
Walsall Council,http://opendatacommunities.org/id/metropolitan-district-council/walsall,WC66-429,31/03/2016,Social Care & Inclusion,REDACTED,14/03/2016,"1,978.58",76422-DIRECT PAYMENTS TO SOCIAL SERVICES CLIENTS,YADS COMMISSIONING,Transfer Payments,Revenue
Walsall Council,http://opendatacommunities.org/id/metropolitan-district-council/walsall,WC66-430,31/03/2016,Social Care & Inclusion,REDACTED,14/03/2016,"1,920.10",76422-DIRECT PAYMENTS TO SOCIAL SERVICES CLIENTS,YADS COMMISSIONING,Transfer Payments,Revenue
Walsall Council,http://opendatacommunities.org/id/metropolitan-district-council/walsall,WC66-431,31/03/2016,Social Care & Inclusion,REDACTED,14/03/2016,790.65,76422-DIRECT PAYMENTS TO SOCIAL SERVICES CLIENTS,OP COMMISSIONING,Transfer Payments,Revenue
Walsall Council,http://opendatacommunities.org/id/metropolitan-district-council/walsall,WC66-432,31/03/2016,Economy & Environment,BARCHAM TREES PLC,15/03/2016,"1,848.00",60500-GENERAL MATERIALS,TREE TEAM,Supplies & Services,Revenue
Walsall Council,http://opendatacommunities.org/id/metropolitan-district-council/walsall,WC66-433,31/03/2016,Childrens,BARNARDOS SERVICES LTD,16/03/2016,"3,103.00",74037-INDEPENDENT FOSTER CARE-OTH AGENCY PROVISION,EXTERNAL FOSTER CARE PROVISION,Third Party Payments,Revenue
Walsall Council,http://opendatacommunities.org/id/metropolitan-district-council/walsall,WC66-434,31/03/2016,Childrens,BARNARDOS SERVICES LTD,16/03/2016,"3,103.00",74037-INDEPENDENT FOSTER CARE-OTH AGENCY PROVISION,EXTERNAL FOSTER CARE PROVISION,Third Party Payments,Revenue
Walsall Council,http://opendatacommunities.org/id/metropolitan-district-council/walsall,WC66-435,31/03/2016,Childrens,BARNARDOS SERVICES LTD,24/03/2016,"3,317.00",74037-INDEPENDENT FOSTER CARE-OTH AGENCY PROVISION,EXTERNAL FOSTER CARE PROVISION,Third Party Payments,Revenue
Walsall Council,http://opendatacommunities.org/id/metropolitan-district-council/walsall,WC66-436,31/03/2016,Childrens,BARNARDOS SERVICES LTD,24/03/2016,"3,317.00",74037-INDEPENDENT FOSTER CARE-OTH AGENCY PROVISION,EXTERNAL FOSTER CARE PROVISION,Third Party Payments,Revenue
Walsall Council,http://opendatacommunities.org/id/metropolitan-district-council/walsall,WC66-437,31/03/2016,Change and Governance,BARNSLEY M B C,11/03/2016,"3,000.00",64500-PUBLICATIONS/ORGANISATIONS-SUBSCRIPTIONS,CORPORATE EXPENSES,Supplies & Services,Revenue
Walsall Council,http://opendatacommunities.org/id/metropolitan-district-council/walsall,WC66-438,31/03/2016,Childrens,BARR BEACON SCHOOL TRUST,15/03/2016,357.69,66502-TOP UP FUNDING -GRANTS TO SCHOOLS,BARR BEACON SCHOOL TRUST (ACADEMY),Third Party Payments,Revenue
Walsall Council,http://opendatacommunities.org/id/metropolitan-district-council/walsall,WC66-439,31/03/2016,Childrens,BARR BEACON SCHOOL TRUST,02/03/2016,"4,476.90",66502-TOP UP FUNDING -GRANTS TO SCHOOLS,BARR BEACON SCHOOL TRUST (ACADEMY),Third Party Payments,Revenue
Walsall Council,http://opendatacommunities.org/id/metropolitan-district-council/walsall,WC66-440,31/03/2016,Economy & Environment,BASEMAP LTD,04/03/2016,550.00,30030-EXTERNAL TRAINING,MS-ECONOMIC INTELLIGENCE TEAM,Employees,Revenue
Walsall Council,http://opendatacommunities.org/id/metropolitan-district-council/walsall,WC66-441,31/03/2016,Economy & Environment,BASEMAP LTD,04/03/2016,"2,100.00",63809-LICENCES-COMPUTER,MS-ECONOMIC INTELLIGENCE TEAM,Supplies & Services,Revenue
Walsall Council,http://opendatacommunities.org/id/metropolitan-district-council/walsall,WC66-442,31/03/2016,Economy & Environment,BASEMAP LTD,01/03/2016,"2,775.00",63800-COMPUTER EQUIPMENT AND SUPPLIES,CAPITAL-REGENERATION STRATEGIC TRANSPORTATION,Supplies & Services,Revenue
Walsall Council,http://opendatacommunities.org/id/metropolitan-district-council/walsall,WC66-443,31/03/2016,Economy & Environment,BAT FABRICATIONS LTD,02/03/2016,780.00,60006-NEW-FURNITURE & EQUIPMENT,INFRASTRUCTURE MAINTENANCE,Supplies & Services,Revenue
Walsall Council,http://opendatacommunities.org/id/metropolitan-district-council/walsall,WC66-444,31/03/2016,Economy & Environment,BAT FABRICATIONS LTD,02/03/2016,"1,325.00",60006-NEW-FURNITURE & EQUIPMENT,INFRASTRUCTURE MAINTENANCE,Supplies & Services,Revenue
Walsall Council,http://opendatacommunities.org/id/metropolitan-district-council/walsall,WC66-445,31/03/2016,Economy & Environment,BAT FABRICATIONS LTD,02/03/2016,"2,650.00",60006-NEW-FURNITURE & EQUIPMENT,INFRASTRUCTURE MAINTENANCE,Supplies & Services,Revenue
Walsall Council,http://opendatacommunities.org/id/metropolitan-district-council/walsall,WC66-446,31/03/2016,Economy & Environment,BEADEN POWERLEC LIMITED,18/03/2016,250.00,60008-MAINTENANCE-FURNITURE & EQUIPMENT,PARKING SERVICES,Supplies & Services,Revenue
Walsall Council,http://opendatacommunities.org/id/metropolitan-district-council/walsall,WC66-447,31/03/2016,Childrens,BEADEN POWERLEC LIMITED,15/03/2016,860.00,01006-SITE WORKS MAIN CONTRACTORS,CFR 1088 ST JOHNS PRIMARY REWIRE PHASE 2,Capital,Capital
Walsall Council,http://opendatacommunities.org/id/metropolitan-district-council/walsall,WC66-448,31/03/2016,Economy & Environment,BEADEN POWERLEC LIMITED,23/03/2016,"1,055.00",60008-MAINTENANCE-FURNITURE & EQUIPMENT,PARKING SERVICES,Supplies & Services,Revenue
Walsall Council,http://opendatacommunities.org/id/metropolitan-district-council/walsall,WC66-449,31/03/2016,Childrens,BEADEN POWERLEC LIMITED,24/03/2016,"5,369.77",01006-SITE WORKS MAIN CONTRACTORS,CFR 930 BROWNHILLS SCHOOL ELECTRICAL WORKS PHASE 2,Capital,Capital
Walsall Council,http://opendatacommunities.org/id/metropolitan-district-council/walsall,WC66-450,31/03/2016,Childrens,REDACTED,24/03/2016,396.43,62515-MISCELLANEOUS SUPPLIES,INTERNAL FOSTER CARE PROVISION,Supplies & Services,Revenue
Walsall Council,http://opendatacommunities.org/id/metropolitan-district-council/walsall,WC66-451,31/03/2016,Childrens,REDACTED,01/03/2016,"1,301.84",74006-HOLIDAY/CHRISTMAS ALLOWANCE-FOSTER CARERS-OTH AGENCY PROVISION,INTERNAL FOSTER CARE PROVISION,Third Party Payments,Revenue
Walsall Council,http://opendatacommunities.org/id/metropolitan-district-council/walsall,WC66-452,31/03/2016,Social Care & Inclusion,BEARWOOD NURSING HOME LTD,08/03/2016,"1,527.60",73373-RESIDENTIAL & NURSING CARE PLACEMENTS,OP COMMISSIONING,Third Party Payments,Revenue
Walsall Council,http://opendatacommunities.org/id/metropolitan-district-council/walsall,WC66-453,31/03/2016,Social Care & Inclusion,REDACTED,14/03/2016,802.20,76422-DIRECT PAYMENTS TO SOCIAL SERVICES CLIENTS,OP COMMISSIONING,Transfer Payments,Revenue
Walsall Council,http://opendatacommunities.org/id/metropolitan-district-council/walsall,WC66-454,31/03/2016,Childrens,REDACTED,11/03/2016,657.00,66505-OTHER-GRANTS TO OTHER ORGS,EARLY YEARS - 3 YR OLDS,Third Party Payments,Revenue
Walsall Council,http://opendatacommunities.org/id/metropolitan-district-council/walsall,WC66-455,31/03/2016,Childrens,REDACTED,10/03/2016,726.17,66505-OTHER-GRANTS TO OTHER ORGS,EARLY YEARS - 2 YR OLDS,Third Party Payments,Revenue
Walsall Council,http://opendatacommunities.org/id/metropolitan-district-council/walsall,WC66-456,31/03/2016,Childrens,REDACTED,24/03/2016,462.97,62515-MISCELLANEOUS SUPPLIES,INTERNAL FOSTER CARE PROVISION,Supplies & Services,Revenue
Walsall Council,http://opendatacommunities.org/id/metropolitan-district-council/walsall,WC66-457,31/03/2016,Childrens,REDACTED,01/03/2016,571.44,74006-HOLIDAY/CHRISTMAS ALLOWANCE-FOSTER CARERS-OTH AGENCY PROVISION,INTERNAL FOSTER CARE PROVISION,Third Party Payments,Revenue
Walsall Council,http://opendatacommunities.org/id/metropolitan-district-council/walsall,WC66-458,31/03/2016,Childrens,REDACTED,24/03/2016,571.44,74006-HOLIDAY/CHRISTMAS ALLOWANCE-FOSTER CARERS-OTH AGENCY PROVISION,INTERNAL FOSTER CARE PROVISION,Third Party Payments,Revenue
Walsall Council,http://opendatacommunities.org/id/metropolitan-district-council/walsall,WC66-459,31/03/2016,Social Care & Inclusion,BELLEVUE COURT CARE HOME,24/03/2016,492.74,73373-RESIDENTIAL & NURSING CARE PLACEMENTS,MH COMMISSIONING,Third Party Payments,Revenue
Walsall Council,http://opendatacommunities.org/id/metropolitan-district-council/walsall,WC66-460,31/03/2016,Social Care & Inclusion,BELLEVUE COURT CARE HOME,24/03/2016,507.06,73373-RESIDENTIAL & NURSING CARE PLACEMENTS,MH COMMISSIONING,Third Party Payments,Revenue
Walsall Council,http://opendatacommunities.org/id/metropolitan-district-council/walsall,WC66-461,31/03/2016,Social Care & Inclusion,BELLEVUE COURT CARE HOME,24/03/2016,"1,040.22",73373-RESIDENTIAL & NURSING CARE PLACEMENTS,MH COMMISSIONING,Third Party Payments,Revenue
Walsall Council,http://opendatacommunities.org/id/metropolitan-district-council/walsall,WC66-462,31/03/2016,Social Care & Inclusion,BELLEVUE COURT CARE HOME,24/03/2016,"1,070.46",73373-RESIDENTIAL & NURSING CARE PLACEMENTS,MH COMMISSIONING,Third Party Payments,Revenue
Walsall Council,http://opendatacommunities.org/id/metropolitan-district-council/walsall,WC66-463,31/03/2016,Social Care & Inclusion,BELLEVUE COURT CARE HOME,01/03/2016,"1,532.96",73373-RESIDENTIAL & NURSING CARE PLACEMENTS,MH COMMISSIONING,Third Party Payments,Revenue
Walsall Council,http://opendatacommunities.org/id/metropolitan-district-council/walsall,WC66-464,31/03/2016,Social Care & Inclusion,BELLEVUE COURT CARE HOME,01/03/2016,"1,577.52",73373-RESIDENTIAL & NURSING CARE PLACEMENTS,MH COMMISSIONING,Third Party Payments,Revenue
Walsall Council,http://opendatacommunities.org/id/metropolitan-district-council/walsall,WC66-465,31/03/2016,Economy & Environment,BEMROSEBOOTH LTD,04/03/2016,741.00,62001-STATIONERY & GENERAL SUPPLIES-OFFICE EXP,PARKING SERVICES,Supplies & Services,Revenue
Walsall Council,http://opendatacommunities.org/id/metropolitan-district-council/walsall,WC66-466,31/03/2016,Social Care & Inclusion,REDACTED,14/03/2016,"2,756.25",76422-DIRECT PAYMENTS TO SOCIAL SERVICES CLIENTS,LD COMMISSIONING,Transfer Payments,Revenue
Walsall Council,http://opendatacommunities.org/id/metropolitan-district-council/walsall,WC66-467,31/03/2016,Social Care & Inclusion,BENTLEY COURT PRIORY,01/03/2016,956.57,73373-RESIDENTIAL & NURSING CARE PLACEMENTS,OP COMMISSIONING,Third Party Payments,Revenue
Walsall Council,http://opendatacommunities.org/id/metropolitan-district-council/walsall,WC66-468,31/03/2016,Social Care & Inclusion,BENTLEY COURT PRIORY,08/03/2016,"1,733.79",73373-RESIDENTIAL & NURSING CARE PLACEMENTS,OP COMMISSIONING,Third Party Payments,Revenue
Walsall Council,http://opendatacommunities.org/id/metropolitan-district-council/walsall,WC66-469,31/03/2016,Social Care & Inclusion,BENTLEY COURT PRIORY,08/03/2016,"1,793.86",73373-RESIDENTIAL & NURSING CARE PLACEMENTS,OP COMMISSIONING,Third Party Payments,Revenue
Walsall Council,http://opendatacommunities.org/id/metropolitan-district-council/walsall,WC66-470,31/03/2016,Social Care & Inclusion,BENTLEY COURT PRIORY,15/03/2016,"1,853.36",73373-RESIDENTIAL & NURSING CARE PLACEMENTS,OP COMMISSIONING,Third Party Payments,Revenue
Walsall Council,http://opendatacommunities.org/id/metropolitan-district-council/walsall,WC66-471,31/03/2016,Social Care & Inclusion,BENTLEY COURT PRIORY,01/03/2016,"1,855.71",73373-RESIDENTIAL & NURSING CARE PLACEMENTS,OP COMMISSIONING,Third Party Payments,Revenue
Walsall Council,http://opendatacommunities.org/id/metropolitan-district-council/walsall,WC66-472,31/03/2016,Social Care & Inclusion,BENTLEY COURT PRIORY,01/03/2016,"1,855.71",73373-RESIDENTIAL & NURSING CARE PLACEMENTS,OP COMMISSIONING,Third Party Payments,Revenue
Walsall Council,http://opendatacommunities.org/id/metropolitan-district-council/walsall,WC66-473,31/03/2016,Social Care & Inclusion,BENTLEY COURT PRIORY,01/03/2016,"1,917.57",73373-RESIDENTIAL & NURSING CARE PLACEMENTS,OP COMMISSIONING,Third Party Payments,Revenue
Walsall Council,http://opendatacommunities.org/id/metropolitan-district-council/walsall,WC66-474,31/03/2016,Social Care & Inclusion,BENTLEY COURT PRIORY,01/03/2016,"1,917.57",73373-RESIDENTIAL & NURSING CARE PLACEMENTS,OP COMMISSIONING,Third Party Payments,Revenue
Walsall Council,http://opendatacommunities.org/id/metropolitan-district-council/walsall,WC66-475,31/03/2016,Economy & Environment,BERNHARD AND COMPANY LTD,15/03/2016,255.32,73025-PROFESSIONAL SERVICES-PRIV CONTRACTOR & OTHER AGENCIES,FLEET,Third Party Payments,Revenue
Walsall Council,http://opendatacommunities.org/id/metropolitan-district-council/walsall,WC66-476,31/03/2016,Economy & Environment,BERNHARD AND COMPANY LTD,10/03/2016,"2,217.81",60500-GENERAL MATERIALS,FLEET,Supplies & Services,Revenue
Walsall Council,http://opendatacommunities.org/id/metropolitan-district-council/walsall,WC66-477,31/03/2016,Social Care & Inclusion,REDACTED,14/03/2016,"1,140.00",76422-DIRECT PAYMENTS TO SOCIAL SERVICES CLIENTS,OP COMMISSIONING,Transfer Payments,Revenue
Walsall Council,http://opendatacommunities.org/id/metropolitan-district-council/walsall,WC66-478,31/03/2016,Childrens,REDACTED,01/03/2016,"1,142.88",74006-HOLIDAY/CHRISTMAS ALLOWANCE-FOSTER CARERS-OTH AGENCY PROVISION,INTERNAL FOSTER CARE PROVISION,Third Party Payments,Revenue
Walsall Council,http://opendatacommunities.org/id/metropolitan-district-council/walsall,WC66-479,31/03/2016,Childrens,REDACTED,24/03/2016,"1,142.88",74006-HOLIDAY/CHRISTMAS ALLOWANCE-FOSTER CARERS-OTH AGENCY PROVISION,INTERNAL FOSTER CARE PROVISION,Third Party Payments,Revenue
Walsall Council,http://opendatacommunities.org/id/metropolitan-district-council/walsall,WC66-480,31/03/2016,Childrens,REDACTED,24/03/2016,"1,445.32",62515-MISCELLANEOUS SUPPLIES,INTERNAL FOSTER CARE PROVISION,Supplies & Services,Revenue
Walsall Council,http://opendatacommunities.org/id/metropolitan-district-council/walsall,WC66-481,31/03/2016,Social Care & Inclusion,REDACTED,14/03/2016,"1,210.00",76422-DIRECT PAYMENTS TO SOCIAL SERVICES CLIENTS,OP COMMISSIONING,Transfer Payments,Revenue
Walsall Council,http://opendatacommunities.org/id/metropolitan-district-council/walsall,WC66-482,31/03/2016,Social Care & Inclusion,BESCOT LODGE RESIDENTIAL CARE HOME,22/03/2016,746.62,73373-RESIDENTIAL & NURSING CARE PLACEMENTS,OP COMMISSIONING,Third Party Payments,Revenue
Walsall Council,http://opendatacommunities.org/id/metropolitan-district-council/walsall,WC66-483,31/03/2016,Social Care & Inclusion,BESCOT LODGE RESIDENTIAL CARE HOME,22/03/2016,784.32,73373-RESIDENTIAL & NURSING CARE PLACEMENTS,OP COMMISSIONING,Third Party Payments,Revenue
Walsall Council,http://opendatacommunities.org/id/metropolitan-district-council/walsall,WC66-484,31/03/2016,Social Care & Inclusion,BESCOT LODGE RESIDENTIAL CARE HOME,01/03/2016,"1,546.57",73373-RESIDENTIAL & NURSING CARE PLACEMENTS,OP COMMISSIONING,Third Party Payments,Revenue
Walsall Council,http://opendatacommunities.org/id/metropolitan-district-council/walsall,WC66-485,31/03/2016,Social Care & Inclusion,BESCOT LODGE RESIDENTIAL CARE HOME,22/03/2016,"1,653.23",73373-RESIDENTIAL & NURSING CARE PLACEMENTS,OP COMMISSIONING,Third Party Payments,Revenue
Walsall Council,http://opendatacommunities.org/id/metropolitan-district-council/walsall,WC66-486,31/03/2016,Social Care & Inclusion,BESCOT LODGE RESIDENTIAL CARE HOME,22/03/2016,"1,653.23",73373-RESIDENTIAL & NURSING CARE PLACEMENTS,OP COMMISSIONING,Third Party Payments,Revenue
Walsall Council,http://opendatacommunities.org/id/metropolitan-district-council/walsall,WC66-487,31/03/2016,Social Care & Inclusion,BESCOT LODGE RESIDENTIAL CARE HOME,22/03/2016,"1,736.71",73373-RESIDENTIAL & NURSING CARE PLACEMENTS,MH COMMISSIONING,Third Party Payments,Revenue
Walsall Council,http://opendatacommunities.org/id/metropolitan-district-council/walsall,WC66-488,31/03/2016,Social Care & Inclusion,BESCOT LODGE RESIDENTIAL CARE HOME,22/03/2016,"1,736.71",73373-RESIDENTIAL & NURSING CARE PLACEMENTS,OP COMMISSIONING,Third Party Payments,Revenue
Walsall Council,http://opendatacommunities.org/id/metropolitan-district-council/walsall,WC66-489,31/03/2016,Social Care & Inclusion,BESCOT LODGE RESIDENTIAL CARE HOME,22/03/2016,"1,736.71",73373-RESIDENTIAL & NURSING CARE PLACEMENTS,OP COMMISSIONING,Third Party Payments,Revenue
Walsall Council,http://opendatacommunities.org/id/metropolitan-district-council/walsall,WC66-490,31/03/2016,Social Care & Inclusion,BESCOT LODGE RESIDENTIAL CARE HOME,22/03/2016,"1,755.35",73373-RESIDENTIAL & NURSING CARE PLACEMENTS,OP COMMISSIONING,Third Party Payments,Revenue
Walsall Council,http://opendatacommunities.org/id/metropolitan-district-council/walsall,WC66-491,31/03/2016,Economy & Environment,BESCOT STADIUM SUNDAY MARKET LTD,04/03/2016,"2,800.00",73025-PROFESSIONAL SERVICES-PRIV CONTRACTOR & OTHER AGENCIES,WILLENHALL MARKET,Third Party Payments,Revenue
Walsall Council,http://opendatacommunities.org/id/metropolitan-district-council/walsall,WC66-492,31/03/2016,Social Care & Inclusion,BESWICK HOUSE SUPPORTED ACCOMMODATION LTD,01/03/2016,"15,045.79",73365-BLOCK GROSS-SUPPORTING PEOPLE,EXTERNAL SP,Third Party Payments,Revenue
Walsall Council,http://opendatacommunities.org/id/metropolitan-district-council/walsall,WC66-493,31/03/2016,Social Care & Inclusion,REDACTED,14/03/2016,"1,186.90",76422-DIRECT PAYMENTS TO SOCIAL SERVICES CLIENTS,MH COMMISSIONING,Transfer Payments,Revenue
Walsall Council,http://opendatacommunities.org/id/metropolitan-district-council/walsall,WC66-494,31/03/2016,Social Care & Inclusion,REDACTED,14/03/2016,"2,961.25",76422-DIRECT PAYMENTS TO SOCIAL SERVICES CLIENTS,OP COMMISSIONING,Transfer Payments,Revenue
Walsall Council,http://opendatacommunities.org/id/metropolitan-district-council/walsall,WC66-495,31/03/2016,Change and Governance,BFA SAFETY TRAINING,30/03/2016,595.00,30030-EXTERNAL TRAINING,HEALTH & SAFETY (TRADED),Employees,Revenue
Walsall Council,http://opendatacommunities.org/id/metropolitan-district-council/walsall,WC66-496,31/03/2016,Change and Governance,BFA SAFETY TRAINING,03/03/2016,795.00,30030-EXTERNAL TRAINING,HEALTH & SAFETY (TRADED),Employees,Revenue
Walsall Council,http://opendatacommunities.org/id/metropolitan-district-council/walsall,WC66-497,31/03/2016,Social Care & Inclusion,REDACTED,14/03/2016,250.00,76422-DIRECT PAYMENTS TO SOCIAL SERVICES CLIENTS,CARERS SERVICES,Transfer Payments,Revenue
Walsall Council,http://opendatacommunities.org/id/metropolitan-district-council/walsall,WC66-498,31/03/2016,Childrens,REDACTED,03/03/2016,668.80,52000-WITH DRIVER-HIRE OF VEHICLES,SCHOOL TRANSPORT,Transport,Revenue
Walsall Council,http://opendatacommunities.org/id/metropolitan-district-council/walsall,WC66-499,31/03/2016,Economy & Environment,BIBLIOGRAPHIC DATA SERVICES LTD,21/03/2016,"3,605.00",64500-PUBLICATIONS/ORGANISATIONS-SUBSCRIPTIONS,LIBRARY STOCK AND PERFORMANCE,Supplies & Services,Revenue
Walsall Council,http://opendatacommunities.org/id/metropolitan-district-council/walsall,WC66-500,31/03/2016,Economy & Environment,BIFFA WASTE SERVICES LTD,04/03/2016,"1,650.58",73005-LANDFILL PTYS-PRIV CONTRACTOR FEES,WASTE DISPOSAL - RESIDUAL,Third Party Payments,Revenue
Walsall Council,http://opendatacommunities.org/id/metropolitan-district-council/walsall,WC66-501,31/03/2016,Economy & Environment,BIFFA WASTE SERVICES LTD,23/03/2016,"1,706.40",73005-LANDFILL PTYS-PRIV CONTRACTOR FEES,WASTE DISPOSAL - RESIDUAL,Third Party Payments,Revenue
Walsall Council,http://opendatacommunities.org/id/metropolitan-district-council/walsall,WC66-502,31/03/2016,Economy & Environment,BIFFA WASTE SERVICES LTD,30/03/2016,"1,843.73",73005-LANDFILL PTYS-PRIV CONTRACTOR FEES,WASTE DISPOSAL - RESIDUAL,Third Party Payments,Revenue
Walsall Council,http://opendatacommunities.org/id/metropolitan-district-council/walsall,WC66-503,31/03/2016,Economy & Environment,BIFFA WASTE SERVICES LTD,30/03/2016,"1,950.35",73005-LANDFILL PTYS-PRIV CONTRACTOR FEES,WASTE DISPOSAL - RESIDUAL,Third Party Payments,Revenue
Walsall Council,http://opendatacommunities.org/id/metropolitan-district-council/walsall,WC66-504,31/03/2016,Economy & Environment,BIFFA WASTE SERVICES LTD,04/03/2016,"2,055.69",73005-LANDFILL PTYS-PRIV CONTRACTOR FEES,WASTE DISPOSAL - RESIDUAL,Third Party Payments,Revenue
Walsall Council,http://opendatacommunities.org/id/metropolitan-district-council/walsall,WC66-505,31/03/2016,Economy & Environment,BIFFA WASTE SERVICES LTD,04/03/2016,"10,305.17",73039-LANDFILL TAX-PRIV CONTRACTOR FEES,WASTE DISPOSAL - RESIDUAL,Third Party Payments,Revenue
Walsall Council,http://opendatacommunities.org/id/metropolitan-district-council/walsall,WC66-506,31/03/2016,Economy & Environment,BIFFA WASTE SERVICES LTD,23/03/2016,"10,653.75",73039-LANDFILL TAX-PRIV CONTRACTOR FEES,WASTE DISPOSAL - RESIDUAL,Third Party Payments,Revenue
Walsall Council,http://opendatacommunities.org/id/metropolitan-district-council/walsall,WC66-507,31/03/2016,Economy & Environment,BIFFA WASTE SERVICES LTD,30/03/2016,"11,511.14",73039-LANDFILL TAX-PRIV CONTRACTOR FEES,WASTE DISPOSAL - RESIDUAL,Third Party Payments,Revenue
Walsall Council,http://opendatacommunities.org/id/metropolitan-district-council/walsall,WC66-508,31/03/2016,Economy & Environment,BIFFA WASTE SERVICES LTD,30/03/2016,"12,176.91",73039-LANDFILL TAX-PRIV CONTRACTOR FEES,WASTE DISPOSAL - RESIDUAL,Third Party Payments,Revenue
Walsall Council,http://opendatacommunities.org/id/metropolitan-district-council/walsall,WC66-509,31/03/2016,Economy & Environment,BIFFA WASTE SERVICES LTD,04/03/2016,"12,834.38",73039-LANDFILL TAX-PRIV CONTRACTOR FEES,WASTE DISPOSAL - RESIDUAL,Third Party Payments,Revenue
Walsall Council,http://opendatacommunities.org/id/metropolitan-district-council/walsall,WC66-510,31/03/2016,Childrens,REDACTED,14/03/2016,275.00,52000-WITH DRIVER-HIRE OF VEHICLES,SCHOOL TRANSPORT,Transport,Revenue
Walsall Council,http://opendatacommunities.org/id/metropolitan-district-council/walsall,WC66-511,31/03/2016,Childrens,REDACTED,14/03/2016,609.65,76422-DIRECT PAYMENTS TO SOCIAL SERVICES CLIENTS,FAMILY SUPPORT - DIRECT PAYMENTS,Transfer Payments,Revenue
Walsall Council,http://opendatacommunities.org/id/metropolitan-district-council/walsall,WC66-512,31/03/2016,Childrens,REDACTED,14/03/2016,671.50,76422-DIRECT PAYMENTS TO SOCIAL SERVICES CLIENTS,FAMILY SUPPORT - DIRECT PAYMENTS,Transfer Payments,Revenue
Walsall Council,http://opendatacommunities.org/id/metropolitan-district-council/walsall,WC66-513,31/03/2016,Economy & Environment,BILLY ROSS WHOLESALE,14/03/2016,439.84,60500-GENERAL MATERIALS,LEATHER MUSEUM SHOP STOCK,Supplies & Services,Revenue
Walsall Council,http://opendatacommunities.org/id/metropolitan-district-council/walsall,WC66-514,31/03/2016,Economy & Environment,BIOGAS TECHNOLOGY LIMITED,18/03/2016,349.50,60008-MAINTENANCE-FURNITURE & EQUIPMENT,POLLUTION DIVISION,Supplies & Services,Revenue
Walsall Council,http://opendatacommunities.org/id/metropolitan-district-council/walsall,WC66-515,31/03/2016,Childrens,BIRCHILLS C OF E COMMUNITY ACADEMY,30/03/2016,"1,072.40",66505-OTHER-GRANTS TO OTHER ORGS,EARLY YEARS - 3 YR OLDS,Third Party Payments,Revenue
Walsall Council,http://opendatacommunities.org/id/metropolitan-district-council/walsall,WC66-516,31/03/2016,Childrens,BIRCHILLS C OF E COMMUNITY ACADEMY,18/03/2016,"2,750.00",77300-ISB-FORMULA ALLOCATION,NEW INVENTION INFANT SCHOOL,Transfer Payments,Revenue
Walsall Council,http://opendatacommunities.org/id/metropolitan-district-council/walsall,WC66-517,31/03/2016,Childrens,BIRCHILLS C OF E COMMUNITY ACADEMY,02/03/2016,"9,023.04",66502-TOP UP FUNDING -GRANTS TO SCHOOLS,BIRCHILLS CE COMMUNITY ACADEMY,Third Party Payments,Revenue
Walsall Council,http://opendatacommunities.org/id/metropolitan-district-council/walsall,WC66-518,31/03/2016,Childrens,BIRCHILLS C OF E COMMUNITY ACADEMY,14/03/2016,"9,412.12",66505-OTHER-GRANTS TO OTHER ORGS,EARLY YEARS - 3 YR OLDS,Third Party Payments,Revenue
Walsall Council,http://opendatacommunities.org/id/metropolitan-district-council/walsall,WC66-519,31/03/2016,Childrens,BIRCHILLS C OF E COMMUNITY ACADEMY,18/03/2016,"10,000.00",63000-PROFESSIONAL FEES AND SERVICES,UNIVERSAL EDUCATION CLIENT UNIT,Supplies & Services,Revenue
Walsall Council,http://opendatacommunities.org/id/metropolitan-district-council/walsall,WC66-520,31/03/2016,Economy & Environment,BIRMINGHAM CITY UNIVERSITY,31/03/2016,300.00,68001-PUBLICITY & ADVERTISING (NOT STAFF ADVERTISING),NAG - ART GALLERY MARKETING,Supplies & Services,Revenue
Walsall Council,http://opendatacommunities.org/id/metropolitan-district-council/walsall,WC66-521,31/03/2016,Change and Governance,BIRMINGHAM GAS SERVICES,04/03/2016,"3,500.00",01046-OTHER GRANTS,CFR 774 WALSALL HEALTH THROUGH WARMTH PROGRAMME,Capital,Capital
Walsall Council,http://opendatacommunities.org/id/metropolitan-district-council/walsall,WC66-522,31/03/2016,Economy & Environment,BLACK COUNTRY CONSORTIUM LIMITED,21/03/2016,"3,108.11",63000-PROFESSIONAL FEES AND SERVICES,GRANTS-BLACK COUNTRY INVEST TEAM,Supplies & Services,Revenue
Walsall Council,http://opendatacommunities.org/id/metropolitan-district-council/walsall,WC66-523,31/03/2016,Economy & Environment,BLACK COUNTRY CONSORTIUM LIMITED,14/03/2016,"42,147.58",66500-GRANTS TO OTHER ORGS,LEP CORE FUNDING,Third Party Payments,Revenue
Walsall Council,http://opendatacommunities.org/id/metropolitan-district-council/walsall,WC66-524,31/03/2016,Economy & Environment,BLACK COUNTRY CONSORTIUM LIMITED,08/03/2016,"52,082.28",66500-GRANTS TO OTHER ORGS,LEP- HESELTINE FUNDING,Third Party Payments,Revenue
Walsall Council,http://opendatacommunities.org/id/metropolitan-district-council/walsall,WC66-525,31/03/2016,Social Care & Inclusion,BLACK COUNTRY PARTNERSHIP NHS,31/03/2016,"17,400.00",73375-IN PATIENT BEDS,LD COMMISSIONING,Third Party Payments,Revenue
Walsall Council,http://opendatacommunities.org/id/metropolitan-district-council/walsall,WC66-526,31/03/2016,Social Care & Inclusion,BLACK COUNTRY PARTNERSHIP NHS,04/03/2016,"18,600.00",73375-IN PATIENT BEDS,LD COMMISSIONING,Third Party Payments,Revenue
Walsall Council,http://opendatacommunities.org/id/metropolitan-district-council/walsall,WC66-527,31/03/2016,Social Care & Inclusion,BLACK COUNTRY PARTNERSHIP NHS,01/03/2016,"264,038.00",71007-CONTRIBUTION TO PCT,BCPFT,Third Party Payments,Revenue
Walsall Council,http://opendatacommunities.org/id/metropolitan-district-council/walsall,WC66-528,31/03/2016,Social Care & Inclusion,BLACK COUNTRY PARTNERSHIP NHS,24/03/2016,"264,043.00",71007-CONTRIBUTION TO PCT,BCPFT,Third Party Payments,Revenue
Walsall Council,http://opendatacommunities.org/id/metropolitan-district-council/walsall,WC66-529,31/03/2016,Economy & Environment,BLACK COUNTRY TRAINING LTD T/A BRITISH HGV TRAINING GROUP,08/03/2016,235.00,30030-EXTERNAL TRAINING,GROUNDS,Employees,Revenue
Walsall Council,http://opendatacommunities.org/id/metropolitan-district-council/walsall,WC66-530,31/03/2016,Economy & Environment,BLACK COUNTRY TRAINING LTD T/A BRITISH HGV TRAINING GROUP,18/03/2016,235.00,30030-EXTERNAL TRAINING,STREET CLEANSING,Employees,Revenue
Walsall Council,http://opendatacommunities.org/id/metropolitan-district-council/walsall,WC66-531,31/03/2016,Economy & Environment,BLACK COUNTRY TRAINING LTD T/A BRITISH HGV TRAINING GROUP,09/03/2016,258.00,30030-EXTERNAL TRAINING,FLEET,Employees,Revenue
Walsall Council,http://opendatacommunities.org/id/metropolitan-district-council/walsall,WC66-532,31/03/2016,Economy & Environment,BLACK COUNTRY TRAINING LTD T/A BRITISH HGV TRAINING GROUP,09/03/2016,258.00,30030-EXTERNAL TRAINING,FLEET,Employees,Revenue
Walsall Council,http://opendatacommunities.org/id/metropolitan-district-council/walsall,WC66-533,31/03/2016,Economy & Environment,BLACK COUNTRY TRAINING LTD T/A BRITISH HGV TRAINING GROUP,08/03/2016,515.00,30030-EXTERNAL TRAINING,GROUNDS,Employees,Revenue
Walsall Council,http://opendatacommunities.org/id/metropolitan-district-council/walsall,WC66-534,31/03/2016,Economy & Environment,BLACK COUNTRY TRAINING LTD T/A BRITISH HGV TRAINING GROUP,15/03/2016,730.00,30030-EXTERNAL TRAINING,GROUNDS,Employees,Revenue
Walsall Council,http://opendatacommunities.org/id/metropolitan-district-council/walsall,WC66-535,31/03/2016,Economy & Environment,BLACK COUNTRY TRAINING LTD T/A BRITISH HGV TRAINING GROUP,08/03/2016,990.00,30030-EXTERNAL TRAINING,STREET CLEANSING,Employees,Revenue
Walsall Council,http://opendatacommunities.org/id/metropolitan-district-council/walsall,WC66-536,31/03/2016,Economy & Environment,BLACK COUNTRY TRAINING LTD T/A BRITISH HGV TRAINING GROUP,08/03/2016,"1,013.00",30030-EXTERNAL TRAINING,GROUNDS,Employees,Revenue
Walsall Council,http://opendatacommunities.org/id/metropolitan-district-council/walsall,WC66-537,31/03/2016,Economy & Environment,BLACK COUNTRY TRAINING LTD T/A BRITISH HGV TRAINING GROUP,08/03/2016,"1,016.00",30030-EXTERNAL TRAINING,WASTE COLLECTIONS,Employees,Revenue
Walsall Council,http://opendatacommunities.org/id/metropolitan-district-council/walsall,WC66-538,31/03/2016,Economy & Environment,BLACK COUNTRY TRAINING LTD T/A BRITISH HGV TRAINING GROUP,08/03/2016,"1,099.00",30030-EXTERNAL TRAINING,STREET CLEANSING,Employees,Revenue
Walsall Council,http://opendatacommunities.org/id/metropolitan-district-council/walsall,WC66-539,31/03/2016,Childrens,BLAKENALL HEATH JMI SCHOOL,15/03/2016,"88,933.93",77300-ISB-FORMULA ALLOCATION,BLAKENALL HEATH JUNIOR SCHOOL,Transfer Payments,Revenue
Walsall Council,http://opendatacommunities.org/id/metropolitan-district-council/walsall,WC66-540,31/03/2016,Childrens,BLOXWICH ACADEMY,02/03/2016,623.07,66502-TOP UP FUNDING -GRANTS TO SCHOOLS,THE MIRUS ACADEMY,Third Party Payments,Revenue
Walsall Council,http://opendatacommunities.org/id/metropolitan-district-council/walsall,WC66-541,31/03/2016,Childrens,BLOXWICH ACADEMY,02/03/2016,"7,292.28",66502-TOP UP FUNDING -GRANTS TO SCHOOLS,THE MIRUS ACADEMY,Third Party Payments,Revenue
Walsall Council,http://opendatacommunities.org/id/metropolitan-district-council/walsall,WC66-542,31/03/2016,Childrens,BLOXWICH ACADEMY,14/03/2016,"10,322.06",66505-OTHER-GRANTS TO OTHER ORGS,EARLY YEARS - 3 YR OLDS,Third Party Payments,Revenue
Walsall Council,http://opendatacommunities.org/id/metropolitan-district-council/walsall,WC66-543,31/03/2016,Childrens,BLOXWICH COMMUNITY PARTNERSHIP.,17/03/2016,"33,936.75",66500-GRANTS TO OTHER ORGS,BLOXWICH COMMUNITY PARTNERSHIP,Third Party Payments,Revenue
Walsall Council,http://opendatacommunities.org/id/metropolitan-district-council/walsall,WC66-544,31/03/2016,Change and Governance,BLUE COAT CE (A) JUNIOR SCHOOL,31/03/2016,500.00,66500-GRANTS TO OTHER ORGS,PREVENTING VIOLENT EXTREMISM,Third Party Payments,Revenue
Walsall Council,http://opendatacommunities.org/id/metropolitan-district-council/walsall,WC66-545,31/03/2016,Childrens,BLUE COAT CHURCH OF ENGLAND ACADEMY,02/03/2016,"1,696.14",66502-TOP UP FUNDING -GRANTS TO SCHOOLS,BLUE COAT CofE ACADEMY,Third Party Payments,Revenue
Walsall Council,http://opendatacommunities.org/id/metropolitan-district-council/walsall,WC66-546,31/03/2016,Childrens,BLUE COAT CHURCH OF ENGLAND ACADEMY,02/03/2016,"5,492.28",66502-TOP UP FUNDING -GRANTS TO SCHOOLS,BLUE COAT CofE ACADEMY,Third Party Payments,Revenue
Walsall Council,http://opendatacommunities.org/id/metropolitan-district-council/walsall,WC66-547,31/03/2016,Childrens,BLUE GIRAFFE CHILDCARE,11/03/2016,"1,110.00",66505-OTHER-GRANTS TO OTHER ORGS,EARLY YEARS - 3 YR OLDS,Third Party Payments,Revenue
Walsall Council,http://opendatacommunities.org/id/metropolitan-district-council/walsall,WC66-548,31/03/2016,Childrens,BLUE GIRAFFE CHILDCARE,10/03/2016,"5,647.95",66505-OTHER-GRANTS TO OTHER ORGS,EARLY YEARS - 2 YR OLDS,Third Party Payments,Revenue
Walsall Council,http://opendatacommunities.org/id/metropolitan-district-council/walsall,WC66-549,31/03/2016,Capital Financing,BLUEBELLS #1,07/03/2016,2.21,82500-BANK CHARGES-CENTRAL EXPENSES,BANK CHARGES,Supplies & Services,Revenue
Walsall Council,http://opendatacommunities.org/id/metropolitan-district-council/walsall,WC66-550,31/03/2016,Childrens,BLUEBELLS #1,07/03/2016,4.40,63000-PROFESSIONAL FEES AND SERVICES,BLUEBELLS,Supplies & Services,Revenue
Walsall Council,http://opendatacommunities.org/id/metropolitan-district-council/walsall,WC66-551,31/03/2016,Childrens,BLUEBELLS #1,07/03/2016,15.00,60006-NEW-FURNITURE & EQUIPMENT,BLUEBELLS,Supplies & Services,Revenue
Walsall Council,http://opendatacommunities.org/id/metropolitan-district-council/walsall,WC66-552,31/03/2016,Childrens,BLUEBELLS #1,07/03/2016,15.42,"40000-REPAIRS,ALTERATIONS & MAINTENANCE-PREM",BLUEBELLS,Premises,Revenue
Walsall Council,http://opendatacommunities.org/id/metropolitan-district-council/walsall,WC66-553,31/03/2016,Childrens,BLUEBELLS #1,07/03/2016,53.79,61016-FOOD AND BEVERAGES-PROVISIONS,BLUEBELLS,Supplies & Services,Revenue
Walsall Council,http://opendatacommunities.org/id/metropolitan-district-council/walsall,WC66-554,31/03/2016,Childrens,BLUEBELLS #1,07/03/2016,72.98,46000-EQUIP NEW-CLEANING,BLUEBELLS,Premises,Revenue
Walsall Council,http://opendatacommunities.org/id/metropolitan-district-council/walsall,WC66-555,31/03/2016,Childrens,BLUEBELLS #1,07/03/2016,123.06,76000-TRANSFER PAYMENTS - SOCIAL SERVICES CLIENTS,BLUEBELLS,Transfer Payments,Revenue
Walsall Council,http://opendatacommunities.org/id/metropolitan-district-council/walsall,WC66-556,31/03/2016,Social Care & Inclusion,BLUEBIRD CARE (MID STAFFS),14/03/2016,360.00,73372-DOMICILIARY CARE,OP COMMISSIONING,Third Party Payments,Revenue
Walsall Council,http://opendatacommunities.org/id/metropolitan-district-council/walsall,WC66-557,31/03/2016,Social Care & Inclusion,BLUEBIRD CARE (MID STAFFS),14/03/2016,756.00,73372-DOMICILIARY CARE,OP COMMISSIONING,Third Party Payments,Revenue
Walsall Council,http://opendatacommunities.org/id/metropolitan-district-council/walsall,WC66-558,31/03/2016,Social Care & Inclusion,BLUEBIRD CARE (MID STAFFS),14/03/2016,756.00,73372-DOMICILIARY CARE,OP COMMISSIONING,Third Party Payments,Revenue
Walsall Council,http://opendatacommunities.org/id/metropolitan-district-council/walsall,WC66-559,31/03/2016,Social Care & Inclusion,BLUEBIRD CARE (MID STAFFS),14/03/2016,828.00,73372-DOMICILIARY CARE,OP COMMISSIONING,Third Party Payments,Revenue
Walsall Council,http://opendatacommunities.org/id/metropolitan-district-council/walsall,WC66-560,31/03/2016,Social Care & Inclusion,BLUEBIRD CARE (MID STAFFS),14/03/2016,972.00,73372-DOMICILIARY CARE,OP COMMISSIONING,Third Party Payments,Revenue
Walsall Council,http://opendatacommunities.org/id/metropolitan-district-council/walsall,WC66-561,31/03/2016,Economy & Environment,BME UNITED LTD,22/03/2016,"7,775.00",63000-PROFESSIONAL FEES AND SERVICES,SMOKING CESSATION,Supplies & Services,Revenue
Walsall Council,http://opendatacommunities.org/id/metropolitan-district-council/walsall,WC66-562,31/03/2016,Social Care & Inclusion,BOLDMERE COURT CARE HOME,22/03/2016,"1,691.27",73373-RESIDENTIAL & NURSING CARE PLACEMENTS,OP COMMISSIONING,Third Party Payments,Revenue
Walsall Council,http://opendatacommunities.org/id/metropolitan-district-council/walsall,WC66-563,31/03/2016,Social Care & Inclusion,BOLDMERE COURT CARE HOME,22/03/2016,"1,691.27",73373-RESIDENTIAL & NURSING CARE PLACEMENTS,OP COMMISSIONING,Third Party Payments,Revenue
Walsall Council,http://opendatacommunities.org/id/metropolitan-district-council/walsall,WC66-564,31/03/2016,Social Care & Inclusion,BOLDMERE COURT CARE HOME,22/03/2016,"1,691.27",73373-RESIDENTIAL & NURSING CARE PLACEMENTS,OP COMMISSIONING,Third Party Payments,Revenue
Walsall Council,http://opendatacommunities.org/id/metropolitan-district-council/walsall,WC66-565,31/03/2016,Economy & Environment,BOLINDA UK LTD,22/03/2016,219.94,60501-LIBRARY BOOKS,LIBRARY STOCK AND PERFORMANCE,Supplies & Services,Revenue
Walsall Council,http://opendatacommunities.org/id/metropolitan-district-council/walsall,WC66-566,31/03/2016,Economy & Environment,BONINGALE NURSERIES,01/03/2016,444.66,60500-GENERAL MATERIALS,GROUNDS,Supplies & Services,Revenue
Walsall Council,http://opendatacommunities.org/id/metropolitan-district-council/walsall,WC66-567,31/03/2016,Economy & Environment,BONINGALE NURSERIES,01/03/2016,556.67,60500-GENERAL MATERIALS,GROUNDS,Supplies & Services,Revenue
Walsall Council,http://opendatacommunities.org/id/metropolitan-district-council/walsall,WC66-568,31/03/2016,Childrens,BOULTON TRAVEL LIMITED,04/03/2016,"1,808.00",52000-WITH DRIVER-HIRE OF VEHICLES,SCHOOL TRANSPORT,Transport,Revenue
Walsall Council,http://opendatacommunities.org/id/metropolitan-district-council/walsall,WC66-569,31/03/2016,Childrens,BOULTON TRAVEL LIMITED,04/03/2016,"1,952.00",52000-WITH DRIVER-HIRE OF VEHICLES,SCHOOL TRANSPORT,Transport,Revenue
Walsall Council,http://opendatacommunities.org/id/metropolitan-district-council/walsall,WC66-570,31/03/2016,Social Care & Inclusion,BOWDEN DERRA PARK,08/03/2016,"10,502.76",73373-RESIDENTIAL & NURSING CARE PLACEMENTS,LD COMMISSIONING,Third Party Payments,Revenue
Walsall Council,http://opendatacommunities.org/id/metropolitan-district-council/walsall,WC66-571,31/03/2016,Change and Governance,BPP PROFESSIONAL EDUCATION,07/03/2016,"1,374.19",30030-EXTERNAL TRAINING,FINANCE,Employees,Revenue
Walsall Council,http://opendatacommunities.org/id/metropolitan-district-council/walsall,WC66-572,31/03/2016,Economy & Environment,BRADVALE LTD T/A INSPIRE HEALTHCARE SERVICES,29/03/2016,529.13,60500-GENERAL MATERIALS,ARBORETUM VISITOR CENTRE,Supplies & Services,Revenue
Walsall Council,http://opendatacommunities.org/id/metropolitan-district-council/walsall,WC66-573,31/03/2016,Economy & Environment,BRELMAYNE LTD,16/03/2016,"1,467.00",63000-PROFESSIONAL FEES AND SERVICES,FOREST ARTS CENTRE,Supplies & Services,Revenue
Walsall Council,http://opendatacommunities.org/id/metropolitan-district-council/walsall,WC66-574,31/03/2016,Social Care & Inclusion,REDACTED,14/03/2016,550.00,76422-DIRECT PAYMENTS TO SOCIAL SERVICES CLIENTS,LD COMMISSIONING,Transfer Payments,Revenue
Walsall Council,http://opendatacommunities.org/id/metropolitan-district-council/walsall,WC66-575,31/03/2016,Childrens,REDACTED,01/03/2016,"1,301.84",74006-HOLIDAY/CHRISTMAS ALLOWANCE-FOSTER CARERS-OTH AGENCY PROVISION,INTERNAL FOSTER CARE PROVISION,Third Party Payments,Revenue
Walsall Council,http://opendatacommunities.org/id/metropolitan-district-council/walsall,WC66-576,31/03/2016,Childrens,REDACTED,24/03/2016,"1,301.84",74006-HOLIDAY/CHRISTMAS ALLOWANCE-FOSTER CARERS-OTH AGENCY PROVISION,INTERNAL FOSTER CARE PROVISION,Third Party Payments,Revenue
Walsall Council,http://opendatacommunities.org/id/metropolitan-district-council/walsall,WC66-577,31/03/2016,Childrens,REDACTED,24/03/2016,"1,519.12",62515-MISCELLANEOUS SUPPLIES,INTERNAL FOSTER CARE PROVISION,Supplies & Services,Revenue
Walsall Council,http://opendatacommunities.org/id/metropolitan-district-council/walsall,WC66-578,31/03/2016,Social Care & Inclusion,REDACTED,14/03/2016,"2,935.24",73374-SUPPORTED & OTHER ACCOMMODATION,LD COMMISSIONING,Third Party Payments,Revenue
Walsall Council,http://opendatacommunities.org/id/metropolitan-district-council/walsall,WC66-579,31/03/2016,Social Care & Inclusion,REDACTED,14/03/2016,"1,618.50",76422-DIRECT PAYMENTS TO SOCIAL SERVICES CLIENTS,OP COMMISSIONING,Transfer Payments,Revenue
Walsall Council,http://opendatacommunities.org/id/metropolitan-district-council/walsall,WC66-580,31/03/2016,Social Care & Inclusion,REDACTED,14/03/2016,871.25,76422-DIRECT PAYMENTS TO SOCIAL SERVICES CLIENTS,OP COMMISSIONING,Transfer Payments,Revenue
Walsall Council,http://opendatacommunities.org/id/metropolitan-district-council/walsall,WC66-581,31/03/2016,Social Care & Inclusion,BRIDGEWOOD HEALTH CARE LTD,08/03/2016,"5,513.72",73373-RESIDENTIAL & NURSING CARE PLACEMENTS,YADS COMMISSIONING,Third Party Payments,Revenue
Walsall Council,http://opendatacommunities.org/id/metropolitan-district-council/walsall,WC66-582,31/03/2016,Childrens,BRIGHT HORIZONS (WISHING WILLOW),01/03/2016,528.67,63120-CRECHE FACILITIES-SERVICES-FEES,RECRUITMENT TEAM,Supplies & Services,Revenue
Walsall Council,http://opendatacommunities.org/id/metropolitan-district-council/walsall,WC66-583,31/03/2016,Change and Governance,BRISTOW & SUTOR,18/03/2016,281.53,73014-LEGAL FEES-PRIV CONTRACTOR FEES,REVENUES,Third Party Payments,Revenue
Walsall Council,http://opendatacommunities.org/id/metropolitan-district-council/walsall,WC66-584,31/03/2016,Economy & Environment,BRITANNIC FIRE & SECURITY SYSTEMS,23/03/2016,225.00,73025-PROFESSIONAL SERVICES-PRIV CONTRACTOR & OTHER AGENCIES,DEPOT,Third Party Payments,Revenue
Walsall Council,http://opendatacommunities.org/id/metropolitan-district-council/walsall,WC66-585,31/03/2016,Change and Governance,BRITISH GAS BUSINESS,17/03/2016,"-2,693.84",42000-GAS-ENERGY COSTS,WALSALL TOWN HALL,Premises,Revenue
Walsall Council,http://opendatacommunities.org/id/metropolitan-district-council/walsall,WC66-586,31/03/2016,Change and Governance,BRITISH GAS BUSINESS,24/03/2016,"-1,592.29",42000-GAS-ENERGY COSTS,CENTRALISED ENERGY,Premises,Revenue
Walsall Council,http://opendatacommunities.org/id/metropolitan-district-council/walsall,WC66-587,31/03/2016,Change and Governance,BRITISH GAS BUSINESS,17/03/2016,-310.65,42000-GAS-ENERGY COSTS,RECHARGEABLE UTILITIES,Premises,Revenue
Walsall Council,http://opendatacommunities.org/id/metropolitan-district-council/walsall,WC66-588,31/03/2016,Change and Governance,BRITISH GAS BUSINESS,17/03/2016,-54.09,42000-GAS-ENERGY COSTS,CENTRALISED ENERGY,Premises,Revenue
Walsall Council,http://opendatacommunities.org/id/metropolitan-district-council/walsall,WC66-589,31/03/2016,Change and Governance,BRITISH GAS BUSINESS,17/03/2016,21.87,42000-GAS-ENERGY COSTS,CENTRAL OFFICE ACCOMMODATION,Premises,Revenue
Walsall Council,http://opendatacommunities.org/id/metropolitan-district-council/walsall,WC66-590,31/03/2016,Change and Governance,BRITISH GAS BUSINESS,17/03/2016,26.70,42000-GAS-ENERGY COSTS,CHALLENGE BUILDING,Premises,Revenue
Walsall Council,http://opendatacommunities.org/id/metropolitan-district-council/walsall,WC66-591,31/03/2016,Change and Governance,BRITISH GAS BUSINESS,17/03/2016,36.84,42000-GAS-ENERGY COSTS,CENTRAL OFFICE ACCOMMODATION,Premises,Revenue
Walsall Council,http://opendatacommunities.org/id/metropolitan-district-council/walsall,WC66-592,31/03/2016,Change and Governance,BRITISH GAS BUSINESS,17/03/2016,251.74,42000-GAS-ENERGY COSTS,RECHARGEABLE UTILITIES,Premises,Revenue
Walsall Council,http://opendatacommunities.org/id/metropolitan-district-council/walsall,WC66-593,31/03/2016,Change and Governance,BRITISH GAS BUSINESS,17/03/2016,286.69,42000-GAS-ENERGY COSTS,CHALLENGE BUILDING,Premises,Revenue
Walsall Council,http://opendatacommunities.org/id/metropolitan-district-council/walsall,WC66-594,31/03/2016,Change and Governance,BRITISH GAS BUSINESS,17/03/2016,381.36,42000-GAS-ENERGY COSTS,DARLASTON TOWN HALL,Premises,Revenue
Walsall Council,http://opendatacommunities.org/id/metropolitan-district-council/walsall,WC66-595,31/03/2016,Childrens,BRITISH GAS BUSINESS,16/03/2016,439.75,42000-GAS-ENERGY COSTS,BIRCHILLS CHILDREN CENTRE - PREMISES,Premises,Revenue
Walsall Council,http://opendatacommunities.org/id/metropolitan-district-council/walsall,WC66-596,31/03/2016,Childrens,BRITISH GAS BUSINESS,01/03/2016,447.20,42000-GAS-ENERGY COSTS,BIRCHILLS CHILDREN CENTRE - PREMISES,Premises,Revenue
Walsall Council,http://opendatacommunities.org/id/metropolitan-district-council/walsall,WC66-597,31/03/2016,Childrens,BRITISH GAS BUSINESS,14/03/2016,466.53,42000-GAS-ENERGY COSTS,CLUSTER 5 DARLASTON,Premises,Revenue
Walsall Council,http://opendatacommunities.org/id/metropolitan-district-council/walsall,WC66-598,31/03/2016,Childrens,BRITISH GAS BUSINESS,14/03/2016,475.77,42000-GAS-ENERGY COSTS,BLAKENALL CHILDREN CENTRE,Premises,Revenue
Walsall Council,http://opendatacommunities.org/id/metropolitan-district-council/walsall,WC66-599,31/03/2016,Childrens,BRITISH GAS BUSINESS,01/03/2016,517.23,42000-GAS-ENERGY COSTS,BLAKENALL CHILDREN CENTRE,Premises,Revenue
Walsall Council,http://opendatacommunities.org/id/metropolitan-district-council/walsall,WC66-600,31/03/2016,Change and Governance,BRITISH GAS BUSINESS,17/03/2016,592.86,42000-GAS-ENERGY COSTS,CHALLENGE BUILDING,Premises,Revenue
Walsall Council,http://opendatacommunities.org/id/metropolitan-district-council/walsall,WC66-601,31/03/2016,Change and Governance,BRITISH GAS BUSINESS,17/03/2016,603.31,42000-GAS-ENERGY COSTS,CENTRAL OFFICE ACCOMMODATION,Premises,Revenue
Walsall Council,http://opendatacommunities.org/id/metropolitan-district-council/walsall,WC66-602,31/03/2016,Change and Governance,BRITISH GAS BUSINESS,17/03/2016,739.54,42000-GAS-ENERGY COSTS,DARLASTON TOWN HALL,Premises,Revenue
Walsall Council,http://opendatacommunities.org/id/metropolitan-district-council/walsall,WC66-603,31/03/2016,Change and Governance,BRITISH GAS BUSINESS,17/03/2016,795.91,42000-GAS-ENERGY COSTS,CHALLENGE BUILDING,Premises,Revenue
Walsall Council,http://opendatacommunities.org/id/metropolitan-district-council/walsall,WC66-604,31/03/2016,Change and Governance,BRITISH GAS BUSINESS,17/03/2016,940.15,42000-GAS-ENERGY COSTS,WALSALL TOWN HALL,Premises,Revenue
Walsall Council,http://opendatacommunities.org/id/metropolitan-district-council/walsall,WC66-605,31/03/2016,Change and Governance,BRITISH GAS BUSINESS,17/03/2016,"1,092.92",42000-GAS-ENERGY COSTS,RECHARGEABLE UTILITIES,Premises,Revenue
Walsall Council,http://opendatacommunities.org/id/metropolitan-district-council/walsall,WC66-606,31/03/2016,Change and Governance,BRITISH GAS BUSINESS,21/03/2016,"1,244.37",42000-GAS-ENERGY COSTS,DARLASTON TOWN HALL,Premises,Revenue
Walsall Council,http://opendatacommunities.org/id/metropolitan-district-council/walsall,WC66-607,31/03/2016,Change and Governance,BRITISH GAS BUSINESS,17/03/2016,"1,556.43",42000-GAS-ENERGY COSTS,CENTRAL OFFICE ACCOMMODATION,Premises,Revenue
Walsall Council,http://opendatacommunities.org/id/metropolitan-district-council/walsall,WC66-608,31/03/2016,Change and Governance,BRITISH GAS BUSINESS,17/03/2016,"1,663.00",42000-GAS-ENERGY COSTS,CHALLENGE BUILDING,Premises,Revenue
Walsall Council,http://opendatacommunities.org/id/metropolitan-district-council/walsall,WC66-609,31/03/2016,Change and Governance,BRITISH GAS BUSINESS,24/03/2016,"1,788.27",42000-GAS-ENERGY COSTS,DARLASTON TOWN HALL,Premises,Revenue
Walsall Council,http://opendatacommunities.org/id/metropolitan-district-council/walsall,WC66-610,31/03/2016,Change and Governance,BRITISH GAS BUSINESS,21/03/2016,"1,796.96",42000-GAS-ENERGY COSTS,DARLASTON TOWN HALL,Premises,Revenue
Walsall Council,http://opendatacommunities.org/id/metropolitan-district-council/walsall,WC66-611,31/03/2016,Change and Governance,BRITISH GAS BUSINESS,17/03/2016,"1,820.25",42000-GAS-ENERGY COSTS,CHALLENGE BUILDING,Premises,Revenue
Walsall Council,http://opendatacommunities.org/id/metropolitan-district-council/walsall,WC66-612,31/03/2016,Change and Governance,BRITISH GAS BUSINESS,21/03/2016,"1,840.32",42000-GAS-ENERGY COSTS,CHALLENGE BUILDING,Premises,Revenue
Walsall Council,http://opendatacommunities.org/id/metropolitan-district-council/walsall,WC66-613,31/03/2016,Change and Governance,BRITISH GAS BUSINESS,17/03/2016,"2,104.33",42000-GAS-ENERGY COSTS,DARLASTON TOWN HALL,Premises,Revenue
Walsall Council,http://opendatacommunities.org/id/metropolitan-district-council/walsall,WC66-614,31/03/2016,Change and Governance,BRITISH GAS BUSINESS,21/03/2016,"2,214.14",42000-GAS-ENERGY COSTS,CHALLENGE BUILDING,Premises,Revenue
Walsall Council,http://opendatacommunities.org/id/metropolitan-district-council/walsall,WC66-615,31/03/2016,Change and Governance,BRITISH GAS BUSINESS,24/03/2016,"2,413.22",42000-GAS-ENERGY COSTS,CHALLENGE BUILDING,Premises,Revenue
Walsall Council,http://opendatacommunities.org/id/metropolitan-district-council/walsall,WC66-616,31/03/2016,Change and Governance,BRITISH GAS BUSINESS,17/03/2016,"3,011.30",42000-GAS-ENERGY COSTS,CHALLENGE BUILDING,Premises,Revenue
Walsall Council,http://opendatacommunities.org/id/metropolitan-district-council/walsall,WC66-617,31/03/2016,Change and Governance,BRITISH GAS BUSINESS,17/03/2016,"3,999.91",42000-GAS-ENERGY COSTS,RECHARGEABLE UTILITIES,Premises,Revenue
Walsall Council,http://opendatacommunities.org/id/metropolitan-district-council/walsall,WC66-618,31/03/2016,Change and Governance,BRITISH GAS BUSINESS,17/03/2016,"4,099.06",42000-GAS-ENERGY COSTS,WALSALL TOWN HALL,Premises,Revenue
Walsall Council,http://opendatacommunities.org/id/metropolitan-district-council/walsall,WC66-619,31/03/2016,Change and Governance,BRITISH GAS BUSINESS,21/03/2016,"4,636.86",42000-GAS-ENERGY COSTS,WALSALL TOWN HALL,Premises,Revenue
Walsall Council,http://opendatacommunities.org/id/metropolitan-district-council/walsall,WC66-620,31/03/2016,Change and Governance,BRITISH GAS BUSINESS,24/03/2016,"5,206.75",42000-GAS-ENERGY COSTS,CENTRALISED ENERGY,Premises,Revenue
Walsall Council,http://opendatacommunities.org/id/metropolitan-district-council/walsall,WC66-621,31/03/2016,Change and Governance,BRITISH GAS BUSINESS,17/03/2016,"5,529.93",42000-GAS-ENERGY COSTS,WALSALL TOWN HALL,Premises,Revenue
Walsall Council,http://opendatacommunities.org/id/metropolitan-district-council/walsall,WC66-622,31/03/2016,Change and Governance,BRITISH GAS BUSINESS,24/03/2016,"5,710.00",42000-GAS-ENERGY COSTS,WALSALL TOWN HALL,Premises,Revenue
Walsall Council,http://opendatacommunities.org/id/metropolitan-district-council/walsall,WC66-623,31/03/2016,Change and Governance,BRITISH GAS BUSINESS,21/03/2016,"6,254.67",42000-GAS-ENERGY COSTS,WALSALL TOWN HALL,Premises,Revenue
Walsall Council,http://opendatacommunities.org/id/metropolitan-district-council/walsall,WC66-624,31/03/2016,Change and Governance,BRITISH GAS BUSINESS,17/03/2016,"6,516.02",42000-GAS-ENERGY COSTS,WALSALL TOWN HALL,Premises,Revenue
Walsall Council,http://opendatacommunities.org/id/metropolitan-district-council/walsall,WC66-625,31/03/2016,Change and Governance,BRITISH GAS BUSINESS,17/03/2016,"6,928.47",42000-GAS-ENERGY COSTS,DARLASTON TOWN HALL,Premises,Revenue
Walsall Council,http://opendatacommunities.org/id/metropolitan-district-council/walsall,WC66-626,31/03/2016,Change and Governance,BRITISH GAS BUSINESS,10/03/2016,"7,055.02",42000-GAS-ENERGY COSTS,REDUNDANT BUILDINGS,Premises,Revenue
Walsall Council,http://opendatacommunities.org/id/metropolitan-district-council/walsall,WC66-627,31/03/2016,Change and Governance,BRITISH GAS BUSINESS,21/03/2016,"7,322.67",42000-GAS-ENERGY COSTS,CENTRAL OFFICE ACCOMMODATION,Premises,Revenue
Walsall Council,http://opendatacommunities.org/id/metropolitan-district-council/walsall,WC66-628,31/03/2016,Change and Governance,BRITISH GAS BUSINESS,10/03/2016,"7,441.70",42000-GAS-ENERGY COSTS,REDUNDANT BUILDINGS,Premises,Revenue
Walsall Council,http://opendatacommunities.org/id/metropolitan-district-council/walsall,WC66-629,31/03/2016,Change and Governance,BRITISH GAS BUSINESS,10/03/2016,"7,657.41",42000-GAS-ENERGY COSTS,REDUNDANT BUILDINGS,Premises,Revenue
Walsall Council,http://opendatacommunities.org/id/metropolitan-district-council/walsall,WC66-630,31/03/2016,Childrens,BRITISH GAS BUSINESS,16/03/2016,"7,667.83",42000-GAS-ENERGY COSTS,PELSALL EDC,Premises,Revenue
Walsall Council,http://opendatacommunities.org/id/metropolitan-district-council/walsall,WC66-631,31/03/2016,Childrens,BRITISH GAS BUSINESS,16/03/2016,"7,725.94",42000-GAS-ENERGY COSTS,PELSALL EDC,Premises,Revenue
Walsall Council,http://opendatacommunities.org/id/metropolitan-district-council/walsall,WC66-632,31/03/2016,Change and Governance,BRITISH GAS BUSINESS,21/03/2016,"9,779.55",42000-GAS-ENERGY COSTS,CENTRAL OFFICE ACCOMMODATION,Premises,Revenue
Walsall Council,http://opendatacommunities.org/id/metropolitan-district-council/walsall,WC66-633,31/03/2016,Change and Governance,BRITISH GAS BUSINESS,17/03/2016,"9,991.74",42000-GAS-ENERGY COSTS,RECHARGEABLE UTILITIES,Premises,Revenue
Walsall Council,http://opendatacommunities.org/id/metropolitan-district-council/walsall,WC66-634,31/03/2016,Change and Governance,BRITISH GAS BUSINESS,24/03/2016,"11,503.94",42000-GAS-ENERGY COSTS,CENTRAL OFFICE ACCOMMODATION,Premises,Revenue
Walsall Council,http://opendatacommunities.org/id/metropolitan-district-council/walsall,WC66-635,31/03/2016,Change and Governance,BRITISH GAS BUSINESS,17/03/2016,"11,559.88",42000-GAS-ENERGY COSTS,CENTRAL OFFICE ACCOMMODATION,Premises,Revenue
Walsall Council,http://opendatacommunities.org/id/metropolitan-district-council/walsall,WC66-636,31/03/2016,Change and Governance,BRITISH GAS BUSINESS,21/03/2016,"11,681.75",42000-GAS-ENERGY COSTS,RECHARGEABLE UTILITIES,Premises,Revenue
Walsall Council,http://opendatacommunities.org/id/metropolitan-district-council/walsall,WC66-637,31/03/2016,Change and Governance,BRITISH GAS BUSINESS,21/03/2016,"11,818.73",42000-GAS-ENERGY COSTS,RECHARGEABLE UTILITIES,Premises,Revenue
Walsall Council,http://opendatacommunities.org/id/metropolitan-district-council/walsall,WC66-638,31/03/2016,Change and Governance,BRITISH GAS BUSINESS,17/03/2016,"13,003.44",42000-GAS-ENERGY COSTS,CENTRAL OFFICE ACCOMMODATION,Premises,Revenue
Walsall Council,http://opendatacommunities.org/id/metropolitan-district-council/walsall,WC66-639,31/03/2016,Change and Governance,BRITISH GAS BUSINESS,24/03/2016,"14,373.30",42000-GAS-ENERGY COSTS,RECHARGEABLE UTILITIES,Premises,Revenue
Walsall Council,http://opendatacommunities.org/id/metropolitan-district-council/walsall,WC66-640,31/03/2016,Change and Governance,BRITISH GAS BUSINESS,17/03/2016,"18,978.72",42000-GAS-ENERGY COSTS,RECHARGEABLE UTILITIES,Premises,Revenue
Walsall Council,http://opendatacommunities.org/id/metropolitan-district-council/walsall,WC66-641,31/03/2016,Change and Governance,BRITISH GAS BUSINESS,24/03/2016,"19,722.23",42000-GAS-ENERGY COSTS,CENTRALISED ENERGY,Premises,Revenue
Walsall Council,http://opendatacommunities.org/id/metropolitan-district-council/walsall,WC66-642,31/03/2016,Change and Governance,BRITISH GAS BUSINESS,24/03/2016,"20,440.15",42000-GAS-ENERGY COSTS,CENTRALISED ENERGY,Premises,Revenue
Walsall Council,http://opendatacommunities.org/id/metropolitan-district-council/walsall,WC66-643,31/03/2016,Change and Governance,BRITISH GAS BUSINESS,24/03/2016,"26,454.21",42000-GAS-ENERGY COSTS,CENTRALISED ENERGY,Premises,Revenue
Walsall Council,http://opendatacommunities.org/id/metropolitan-district-council/walsall,WC66-644,31/03/2016,Change and Governance,BRITISH GAS BUSINESS,17/03/2016,"41,571.43",42000-GAS-ENERGY COSTS,RECHARGEABLE UTILITIES,Premises,Revenue
Walsall Council,http://opendatacommunities.org/id/metropolitan-district-council/walsall,WC66-645,31/03/2016,Change and Governance,BRITISH GAS BUSINESS,24/03/2016,"64,459.10",42000-GAS-ENERGY COSTS,CENTRALISED ENERGY,Premises,Revenue
Walsall Council,http://opendatacommunities.org/id/metropolitan-district-council/walsall,WC66-646,31/03/2016,Economy & Environment,BRITISH TELECOMMUNICATIONS LTD,16/03/2016,"8,217.56",01009-SITE WORKS - OTHER CONTRACTORS,CFR 870 M6 JUNCTION 10 IMPROV SCHEME PROG,Capital,Capital
Walsall Council,http://opendatacommunities.org/id/metropolitan-district-council/walsall,WC66-647,31/03/2016,Childrens,BROADLAND GROUP LTD,24/03/2016,250.00,01006-SITE WORKS MAIN CONTRACTORS,CFR 1017 OLD HALL SPECIAL SCHOOL HEATING & DISTRIBUTION,Capital,Capital
Walsall Council,http://opendatacommunities.org/id/metropolitan-district-council/walsall,WC66-648,31/03/2016,Childrens,BROADLAND GROUP LTD,24/03/2016,350.00,01006-SITE WORKS MAIN CONTRACTORS,CFR 1017 OLD HALL SPECIAL SCHOOL HEATING & DISTRIBUTION,Capital,Capital
Walsall Council,http://opendatacommunities.org/id/metropolitan-district-council/walsall,WC66-649,31/03/2016,Economy & Environment,BROADLAND GROUP LTD,24/03/2016,"2,718.00",01006-SITE WORKS MAIN CONTRACTORS,CFR 1037 ACTIVE LIVING OAK PARK (PRUDENTIAL),Capital,Capital
Walsall Council,http://opendatacommunities.org/id/metropolitan-district-council/walsall,WC66-650,31/03/2016,Childrens,BROADLAND GROUP LTD,23/03/2016,"2,787.25",01006-SITE WORKS MAIN CONTRACTORS,CFR 1017 OLD HALL SPECIAL SCHOOL HEATING & DISTRIBUTION,Capital,Capital
Walsall Council,http://opendatacommunities.org/id/metropolitan-district-council/walsall,WC66-651,31/03/2016,Social Care & Inclusion,BROADOAK CARE,22/03/2016,"2,465.01",73373-RESIDENTIAL & NURSING CARE PLACEMENTS,OP COMMISSIONING,Third Party Payments,Revenue
Walsall Council,http://opendatacommunities.org/id/metropolitan-district-council/walsall,WC66-652,31/03/2016,Childrens,BROADWAY TRAVEL CONNECTIONS,14/03/2016,"1,875.00",52000-WITH DRIVER-HIRE OF VEHICLES,SCHOOL TRANSPORT,Transport,Revenue
Walsall Council,http://opendatacommunities.org/id/metropolitan-district-council/walsall,WC66-653,31/03/2016,Social Care & Inclusion,BROOK DESIGN HARDWARE LTD T/A BROOKVENT,21/03/2016,"11,273.67",60500-GENERAL MATERIALS,EMPLOYMENT LINKS TO WORK,Supplies & Services,Revenue
Walsall Council,http://opendatacommunities.org/id/metropolitan-district-council/walsall,WC66-654,31/03/2016,Economy & Environment,BROWNHILLS ASPHALT & TARMAC LIMITED,11/03/2016,260.00,60500-GENERAL MATERIALS,CEMETERIES CENTRAL ADMINISTRATION,Supplies & Services,Revenue
Walsall Council,http://opendatacommunities.org/id/metropolitan-district-council/walsall,WC66-655,31/03/2016,Economy & Environment,BROWNHILLS ASPHALT & TARMAC LIMITED,01/03/2016,300.00,60500-GENERAL MATERIALS,INFRASTRUCTURE MAINTENANCE,Supplies & Services,Revenue
Walsall Council,http://opendatacommunities.org/id/metropolitan-district-council/walsall,WC66-656,31/03/2016,Economy & Environment,BROWNHILLS ASPHALT & TARMAC LIMITED,04/03/2016,435.00,60008-MAINTENANCE-FURNITURE & EQUIPMENT,SECTION 106,Supplies & Services,Revenue
Walsall Council,http://opendatacommunities.org/id/metropolitan-district-council/walsall,WC66-657,31/03/2016,Change and Governance,BROWNHILLS ASPHALT & TARMAC LIMITED,07/03/2016,495.00,73025-PROFESSIONAL SERVICES-PRIV CONTRACTOR & OTHER AGENCIES,SECURITY IMP OFFICER/VICTIM SUPPORT,Third Party Payments,Revenue
Walsall Council,http://opendatacommunities.org/id/metropolitan-district-council/walsall,WC66-658,31/03/2016,Economy & Environment,BROWNHILLS ASPHALT & TARMAC LIMITED,07/03/2016,520.00,60500-GENERAL MATERIALS,CEMETERIES CENTRAL ADMINISTRATION,Supplies & Services,Revenue
Walsall Council,http://opendatacommunities.org/id/metropolitan-district-council/walsall,WC66-659,31/03/2016,Economy & Environment,BROWNHILLS ASPHALT & TARMAC LIMITED,04/03/2016,525.00,01006-SITE WORKS MAIN CONTRACTORS,CFR 974 KING GEORGE v PAYING FIELDS,Capital,Capital
Walsall Council,http://opendatacommunities.org/id/metropolitan-district-council/walsall,WC66-660,31/03/2016,Economy & Environment,BROWNHILLS ASPHALT & TARMAC LIMITED,23/03/2016,"4,925.00",60006-NEW-FURNITURE & EQUIPMENT,INFRASTRUCTURE MAINTENANCE,Supplies & Services,Revenue
Walsall Council,http://opendatacommunities.org/id/metropolitan-district-council/walsall,WC66-661,31/03/2016,Economy & Environment,BROWNHILLS ASPHALT & TARMAC LIMITED,04/03/2016,"7,280.00",73025-PROFESSIONAL SERVICES-PRIV CONTRACTOR & OTHER AGENCIES,GREEN SPACE MANAGEMENT,Third Party Payments,Revenue
Walsall Council,http://opendatacommunities.org/id/metropolitan-district-council/walsall,WC66-662,31/03/2016,Economy & Environment,BROWNHILLS ASPHALT & TARMAC LIMITED,16/03/2016,"9,451.00",63239-EXTERNAL WORKS-PAYMENT TO CONTRACTOR,COMMUNITY LIAISON,Third Party Payments,Revenue
Walsall Council,http://opendatacommunities.org/id/metropolitan-district-council/walsall,WC66-663,31/03/2016,Childrens,BROWNHILLS COMMUNITY ASSOCIATION,11/03/2016,"6,110.00",66505-OTHER-GRANTS TO OTHER ORGS,EARLY YEARS - 3 YR OLDS,Third Party Payments,Revenue
Walsall Council,http://opendatacommunities.org/id/metropolitan-district-council/walsall,WC66-664,31/03/2016,Childrens,BROWNHILLS COMMUNITY ASSOCIATION,10/03/2016,"6,454.80",66505-OTHER-GRANTS TO OTHER ORGS,EARLY YEARS - 2 YR OLDS,Third Party Payments,Revenue
Walsall Council,http://opendatacommunities.org/id/metropolitan-district-council/walsall,WC66-665,31/03/2016,Economy & Environment,BROXAP LTD,01/03/2016,169.12,01009-SITE WORKS - OTHER CONTRACTORS,CFR 1085 SUPPORT OF A* STARS SAFER ROUTES TO SCHOOLS,Capital,Capital
Walsall Council,http://opendatacommunities.org/id/metropolitan-district-council/walsall,WC66-666,31/03/2016,Economy & Environment,BROXAP LTD,21/03/2016,495.00,73025-PROFESSIONAL SERVICES-PRIV CONTRACTOR & OTHER AGENCIES,SMARTER WORKPLACES WORKPLACE SOLUTIONS,Third Party Payments,Revenue
Walsall Council,http://opendatacommunities.org/id/metropolitan-district-council/walsall,WC66-667,31/03/2016,Economy & Environment,BROXAP LTD,09/03/2016,"1,007.00",60500-GENERAL MATERIALS,ARBORETUM,Supplies & Services,Revenue
Walsall Council,http://opendatacommunities.org/id/metropolitan-district-council/walsall,WC66-668,31/03/2016,Economy & Environment,BROXAP LTD,01/03/2016,"1,300.88",01009-SITE WORKS - OTHER CONTRACTORS,CFR 1085 NEW INVENTION JNR SAFER ROUTES TO SCHOOLS,Capital,Capital
Walsall Council,http://opendatacommunities.org/id/metropolitan-district-council/walsall,WC66-669,31/03/2016,Social Care & Inclusion,REDACTED,14/03/2016,"1,806.25",76422-DIRECT PAYMENTS TO SOCIAL SERVICES CLIENTS,LD COMMISSIONING,Transfer Payments,Revenue
Walsall Council,http://opendatacommunities.org/id/metropolitan-district-council/walsall,WC66-670,31/03/2016,Change and Governance,REDACTED,30/03/2016,400.00,"40000-REPAIRS,ALTERATIONS & MAINTENANCE-PREM",WALSALL TOWN HALL,Premises,Revenue
Walsall Council,http://opendatacommunities.org/id/metropolitan-district-council/walsall,WC66-671,31/03/2016,Economy & Environment,REDACTED,04/03/2016,"2,081.25",63000-PROFESSIONAL FEES AND SERVICES,EXTL FUNDED CREATIVE PROJECT MANAGEMENT,Supplies & Services,Revenue
Walsall Council,http://opendatacommunities.org/id/metropolitan-district-council/walsall,WC66-672,31/03/2016,Change and Governance,B-SURE SECURITY SERVICES LTD,18/03/2016,350.00,"40000-REPAIRS,ALTERATIONS & MAINTENANCE-PREM",CENTRALISED MAINTENANCE,Premises,Revenue
Walsall Council,http://opendatacommunities.org/id/metropolitan-district-council/walsall,WC66-673,31/03/2016,Change and Governance,B-SURE SECURITY SERVICES LTD,18/03/2016,"2,365.00","40000-REPAIRS,ALTERATIONS & MAINTENANCE-PREM",CENTRALISED MAINTENANCE,Premises,Revenue
Walsall Council,http://opendatacommunities.org/id/metropolitan-district-council/walsall,WC66-674,31/03/2016,Change and Governance,BT,21/03/2016,"14,627.65",63601-COSTS (NOT INTERNAL RECHARGES)-TELEPHONES,CENTRAL COMMUNICATIONS RECHARGES,Supplies & Services,Revenue
Walsall Council,http://opendatacommunities.org/id/metropolitan-district-council/walsall,WC66-675,31/03/2016,Childrens,BT PLC,16/03/2016,482.20,63603-COST OF CALLS-TELEPHONES,BIRCHILLS CHILDREN CENTRE - PREMISES,Supplies & Services,Revenue
Walsall Council,http://opendatacommunities.org/id/metropolitan-district-council/walsall,WC66-676,31/03/2016,Change and Governance,BT PLC,14/03/2016,970.00,63603-COST OF CALLS-TELEPHONES,PROCESSING,Supplies & Services,Revenue
Walsall Council,http://opendatacommunities.org/id/metropolitan-district-council/walsall,WC66-677,31/03/2016,Change and Governance,BT PLC,01/03/2016,"5,639.38",63601-COSTS (NOT INTERNAL RECHARGES)-TELEPHONES,CENTRAL COMMUNICATIONS RECHARGES,Supplies & Services,Revenue
Walsall Council,http://opendatacommunities.org/id/metropolitan-district-council/walsall,WC66-678,31/03/2016,Change and Governance,BT PLC,21/03/2016,"5,709.06",63601-COSTS (NOT INTERNAL RECHARGES)-TELEPHONES,CENTRAL COMMUNICATIONS RECHARGES,Supplies & Services,Revenue
Walsall Council,http://opendatacommunities.org/id/metropolitan-district-council/walsall,WC66-679,31/03/2016,Economy & Environment,BT PLC,02/03/2016,"6,650.39",01001-OTHER CONSULTANTS FEES,CFR 876 DARLASTON STATUTORY UNDERTAKERS,Capital,Capital
Walsall Council,http://opendatacommunities.org/id/metropolitan-district-council/walsall,WC66-680,31/03/2016,Change and Governance,BUILDING RECRUITMENT COMPANY,15/03/2016,919.50,73025-PROFESSIONAL SERVICES-PRIV CONTRACTOR & OTHER AGENCIES,INTEGRATED FACILITIES MANAGEMENT,Third Party Payments,Revenue
Walsall Council,http://opendatacommunities.org/id/metropolitan-district-council/walsall,WC66-681,31/03/2016,Change and Governance,BUILDING RECRUITMENT COMPANY,17/03/2016,"1,117.75",73025-PROFESSIONAL SERVICES-PRIV CONTRACTOR & OTHER AGENCIES,INTEGRATED FACILITIES MANAGEMENT,Third Party Payments,Revenue
Walsall Council,http://opendatacommunities.org/id/metropolitan-district-council/walsall,WC66-682,31/03/2016,Change and Governance,BUILDING RECRUITMENT COMPANY,11/03/2016,"1,129.50",73025-PROFESSIONAL SERVICES-PRIV CONTRACTOR & OTHER AGENCIES,INTEGRATED FACILITIES MANAGEMENT,Third Party Payments,Revenue
Walsall Council,http://opendatacommunities.org/id/metropolitan-district-council/walsall,WC66-683,31/03/2016,Change and Governance,BUILDING RECRUITMENT COMPANY,15/03/2016,"1,129.50",73025-PROFESSIONAL SERVICES-PRIV CONTRACTOR & OTHER AGENCIES,INTEGRATED FACILITIES MANAGEMENT,Third Party Payments,Revenue
Walsall Council,http://opendatacommunities.org/id/metropolitan-district-council/walsall,WC66-684,31/03/2016,Change and Governance,BUILDING RECRUITMENT COMPANY,15/03/2016,"1,129.60",73025-PROFESSIONAL SERVICES-PRIV CONTRACTOR & OTHER AGENCIES,INTEGRATED FACILITIES MANAGEMENT,Third Party Payments,Revenue
Walsall Council,http://opendatacommunities.org/id/metropolitan-district-council/walsall,WC66-685,31/03/2016,Change and Governance,BUILDING RECRUITMENT COMPANY,15/03/2016,"1,132.75",73025-PROFESSIONAL SERVICES-PRIV CONTRACTOR & OTHER AGENCIES,INTEGRATED FACILITIES MANAGEMENT,Third Party Payments,Revenue
Walsall Council,http://opendatacommunities.org/id/metropolitan-district-council/walsall,WC66-686,31/03/2016,Social Care & Inclusion,BUPA CARE HOMES (CFHCARE) LTD,08/03/2016,"-1,259.39",73373-RESIDENTIAL & NURSING CARE PLACEMENTS,MH COMMISSIONING,Third Party Payments,Revenue
Walsall Council,http://opendatacommunities.org/id/metropolitan-district-council/walsall,WC66-687,31/03/2016,Social Care & Inclusion,BUPA CARE HOMES (CFHCARE) LTD,08/03/2016,"-1,064.86",73373-RESIDENTIAL & NURSING CARE PLACEMENTS,OP COMMISSIONING,Third Party Payments,Revenue
Walsall Council,http://opendatacommunities.org/id/metropolitan-district-council/walsall,WC66-688,31/03/2016,Social Care & Inclusion,BUPA CARE HOMES (CFHCARE) LTD,08/03/2016,"1,527.60",73373-RESIDENTIAL & NURSING CARE PLACEMENTS,OP COMMISSIONING,Third Party Payments,Revenue
Walsall Council,http://opendatacommunities.org/id/metropolitan-district-council/walsall,WC66-689,31/03/2016,Social Care & Inclusion,BUPA CARE HOMES (CFHCARE) LTD,08/03/2016,"1,755.68",73373-RESIDENTIAL & NURSING CARE PLACEMENTS,MH COMMISSIONING,Third Party Payments,Revenue
Walsall Council,http://opendatacommunities.org/id/metropolitan-district-council/walsall,WC66-690,31/03/2016,Social Care & Inclusion,BUPA CARE HOMES (CFHCARE) LTD,08/03/2016,"3,129.80",73373-RESIDENTIAL & NURSING CARE PLACEMENTS,OP COMMISSIONING,Third Party Payments,Revenue
Walsall Council,http://opendatacommunities.org/id/metropolitan-district-council/walsall,WC66-691,31/03/2016,Social Care & Inclusion,BUSH HOME LTD,08/03/2016,"1,490.96",73373-RESIDENTIAL & NURSING CARE PLACEMENTS,OP COMMISSIONING,Third Party Payments,Revenue
Walsall Council,http://opendatacommunities.org/id/metropolitan-district-council/walsall,WC66-692,31/03/2016,Social Care & Inclusion,BUSH HOME LTD,01/03/2016,"1,493.24",73373-RESIDENTIAL & NURSING CARE PLACEMENTS,OP COMMISSIONING,Third Party Payments,Revenue
Walsall Council,http://opendatacommunities.org/id/metropolitan-district-council/walsall,WC66-693,31/03/2016,Social Care & Inclusion,BUSH HOME LTD,08/03/2016,"1,493.24",73373-RESIDENTIAL & NURSING CARE PLACEMENTS,OP COMMISSIONING,Third Party Payments,Revenue
Walsall Council,http://opendatacommunities.org/id/metropolitan-district-council/walsall,WC66-694,31/03/2016,Social Care & Inclusion,BUSH HOME LTD,08/03/2016,"1,493.24",73373-RESIDENTIAL & NURSING CARE PLACEMENTS,OP COMMISSIONING,Third Party Payments,Revenue
Walsall Council,http://opendatacommunities.org/id/metropolitan-district-council/walsall,WC66-695,31/03/2016,Social Care & Inclusion,BUSH HOME LTD,08/03/2016,"1,493.24",73373-RESIDENTIAL & NURSING CARE PLACEMENTS,OP COMMISSIONING,Third Party Payments,Revenue
Walsall Council,http://opendatacommunities.org/id/metropolitan-district-council/walsall,WC66-696,31/03/2016,Social Care & Inclusion,BUSH HOME LTD,08/03/2016,"1,568.64",73373-RESIDENTIAL & NURSING CARE PLACEMENTS,OP COMMISSIONING,Third Party Payments,Revenue
Walsall Council,http://opendatacommunities.org/id/metropolitan-district-council/walsall,WC66-697,31/03/2016,Social Care & Inclusion,BUSH HOME LTD,08/03/2016,"1,568.64",73373-RESIDENTIAL & NURSING CARE PLACEMENTS,OP COMMISSIONING,Third Party Payments,Revenue
Walsall Council,http://opendatacommunities.org/id/metropolitan-district-council/walsall,WC66-698,31/03/2016,Social Care & Inclusion,BUSH HOME LTD,08/03/2016,"1,568.64",73373-RESIDENTIAL & NURSING CARE PLACEMENTS,OP COMMISSIONING,Third Party Payments,Revenue
Walsall Council,http://opendatacommunities.org/id/metropolitan-district-council/walsall,WC66-699,31/03/2016,Social Care & Inclusion,BUSH HOME LTD,08/03/2016,"1,568.64",73373-RESIDENTIAL & NURSING CARE PLACEMENTS,MH COMMISSIONING,Third Party Payments,Revenue
Walsall Council,http://opendatacommunities.org/id/metropolitan-district-council/walsall,WC66-700,31/03/2016,Social Care & Inclusion,BUSH HOME LTD,08/03/2016,"1,568.64",73373-RESIDENTIAL & NURSING CARE PLACEMENTS,MH COMMISSIONING,Third Party Payments,Revenue
Walsall Council,http://opendatacommunities.org/id/metropolitan-district-council/walsall,WC66-701,31/03/2016,Social Care & Inclusion,BUSH HOME LTD,08/03/2016,"1,568.64",73373-RESIDENTIAL & NURSING CARE PLACEMENTS,OP COMMISSIONING,Third Party Payments,Revenue
Walsall Council,http://opendatacommunities.org/id/metropolitan-district-council/walsall,WC66-702,31/03/2016,Social Care & Inclusion,BUSH HOME LTD,08/03/2016,"1,568.64",73373-RESIDENTIAL & NURSING CARE PLACEMENTS,MH COMMISSIONING,Third Party Payments,Revenue
Walsall Council,http://opendatacommunities.org/id/metropolitan-district-council/walsall,WC66-703,31/03/2016,Social Care & Inclusion,BUSH HOME LTD,08/03/2016,"1,568.64",73373-RESIDENTIAL & NURSING CARE PLACEMENTS,OP COMMISSIONING,Third Party Payments,Revenue
Walsall Council,http://opendatacommunities.org/id/metropolitan-district-council/walsall,WC66-704,31/03/2016,Social Care & Inclusion,BUSH HOME LTD,08/03/2016,"1,568.64",73373-RESIDENTIAL & NURSING CARE PLACEMENTS,OP COMMISSIONING,Third Party Payments,Revenue
Walsall Council,http://opendatacommunities.org/id/metropolitan-district-council/walsall,WC66-705,31/03/2016,Social Care & Inclusion,BUSH HOME LTD,08/03/2016,"1,568.66",73373-RESIDENTIAL & NURSING CARE PLACEMENTS,MH COMMISSIONING,Third Party Payments,Revenue
Walsall Council,http://opendatacommunities.org/id/metropolitan-district-council/walsall,WC66-706,31/03/2016,Social Care & Inclusion,BUSH HOME LTD,08/03/2016,"1,592.64",73373-RESIDENTIAL & NURSING CARE PLACEMENTS,OP COMMISSIONING,Third Party Payments,Revenue
Walsall Council,http://opendatacommunities.org/id/metropolitan-district-council/walsall,WC66-707,31/03/2016,Social Care & Inclusion,BUSH HOME LTD,08/03/2016,"1,848.75",73373-RESIDENTIAL & NURSING CARE PLACEMENTS,OP COMMISSIONING,Third Party Payments,Revenue
Walsall Council,http://opendatacommunities.org/id/metropolitan-district-council/walsall,WC66-708,31/03/2016,Childrens,BUSY BEES CHILDCARE LTD,10/03/2016,"1,613.70",66505-OTHER-GRANTS TO OTHER ORGS,EARLY YEARS - 2 YR OLDS,Third Party Payments,Revenue
Walsall Council,http://opendatacommunities.org/id/metropolitan-district-council/walsall,WC66-709,31/03/2016,Childrens,BUSY BEES CHILDCARE LTD,11/03/2016,"2,653.00",66505-OTHER-GRANTS TO OTHER ORGS,EARLY YEARS - 3 YR OLDS,Third Party Payments,Revenue
Walsall Council,http://opendatacommunities.org/id/metropolitan-district-council/walsall,WC66-710,31/03/2016,Childrens,BY THE BRIDGE,14/03/2016,"6,121.39",74037-INDEPENDENT FOSTER CARE-OTH AGENCY PROVISION,EXTERNAL FOSTER CARE PROVISION,Third Party Payments,Revenue
Walsall Council,http://opendatacommunities.org/id/metropolitan-district-council/walsall,WC66-711,31/03/2016,Social Care & Inclusion,C & V ORCHARD MANOR LTD,08/03/2016,952.39,73373-RESIDENTIAL & NURSING CARE PLACEMENTS,OP COMMISSIONING,Third Party Payments,Revenue
Walsall Council,http://opendatacommunities.org/id/metropolitan-district-council/walsall,WC66-712,31/03/2016,Social Care & Inclusion,C & V ORCHARD MANOR LTD,24/03/2016,"1,472.16",73373-RESIDENTIAL & NURSING CARE PLACEMENTS,LD COMMISSIONING,Third Party Payments,Revenue
Walsall Council,http://opendatacommunities.org/id/metropolitan-district-council/walsall,WC66-713,31/03/2016,Social Care & Inclusion,C & V ORCHARD MANOR LTD,24/03/2016,"1,472.16",73373-RESIDENTIAL & NURSING CARE PLACEMENTS,OP COMMISSIONING,Third Party Payments,Revenue
Walsall Council,http://opendatacommunities.org/id/metropolitan-district-council/walsall,WC66-714,31/03/2016,Social Care & Inclusion,C & V ORCHARD MANOR LTD,15/03/2016,"1,472.75",73373-RESIDENTIAL & NURSING CARE PLACEMENTS,OP COMMISSIONING,Third Party Payments,Revenue
Walsall Council,http://opendatacommunities.org/id/metropolitan-district-council/walsall,WC66-715,31/03/2016,Social Care & Inclusion,C & V ORCHARD MANOR LTD,08/03/2016,"1,493.24",73373-RESIDENTIAL & NURSING CARE PLACEMENTS,OP COMMISSIONING,Third Party Payments,Revenue
Walsall Council,http://opendatacommunities.org/id/metropolitan-district-council/walsall,WC66-716,31/03/2016,Social Care & Inclusion,C & V ORCHARD MANOR LTD,24/03/2016,"1,493.24",73373-RESIDENTIAL & NURSING CARE PLACEMENTS,OP COMMISSIONING,Third Party Payments,Revenue
Walsall Council,http://opendatacommunities.org/id/metropolitan-district-council/walsall,WC66-717,31/03/2016,Social Care & Inclusion,C & V ORCHARD MANOR LTD,24/03/2016,"1,493.32",73373-RESIDENTIAL & NURSING CARE PLACEMENTS,LD COMMISSIONING,Third Party Payments,Revenue
Walsall Council,http://opendatacommunities.org/id/metropolitan-district-council/walsall,WC66-718,31/03/2016,Social Care & Inclusion,C & V ORCHARD MANOR LTD,24/03/2016,"1,493.32",73373-RESIDENTIAL & NURSING CARE PLACEMENTS,OP COMMISSIONING,Third Party Payments,Revenue
Walsall Council,http://opendatacommunities.org/id/metropolitan-district-council/walsall,WC66-719,31/03/2016,Social Care & Inclusion,C & V ORCHARD MANOR LTD,24/03/2016,"1,566.20",73373-RESIDENTIAL & NURSING CARE PLACEMENTS,OP COMMISSIONING,Third Party Payments,Revenue
Walsall Council,http://opendatacommunities.org/id/metropolitan-district-council/walsall,WC66-720,31/03/2016,Social Care & Inclusion,C & V ORCHARD MANOR LTD,24/03/2016,"1,568.60",73373-RESIDENTIAL & NURSING CARE PLACEMENTS,OP COMMISSIONING,Third Party Payments,Revenue
Walsall Council,http://opendatacommunities.org/id/metropolitan-district-council/walsall,WC66-721,31/03/2016,Social Care & Inclusion,C & V ORCHARD MANOR LTD,24/03/2016,"1,568.64",73373-RESIDENTIAL & NURSING CARE PLACEMENTS,OP COMMISSIONING,Third Party Payments,Revenue
Walsall Council,http://opendatacommunities.org/id/metropolitan-district-council/walsall,WC66-722,31/03/2016,Social Care & Inclusion,C & V ORCHARD MANOR LTD,24/03/2016,"1,568.64",73373-RESIDENTIAL & NURSING CARE PLACEMENTS,OP COMMISSIONING,Third Party Payments,Revenue
Walsall Council,http://opendatacommunities.org/id/metropolitan-district-council/walsall,WC66-723,31/03/2016,Social Care & Inclusion,C & V ORCHARD MANOR LTD,08/03/2016,"1,568.80",73373-RESIDENTIAL & NURSING CARE PLACEMENTS,OP COMMISSIONING,Third Party Payments,Revenue
Walsall Council,http://opendatacommunities.org/id/metropolitan-district-council/walsall,WC66-724,31/03/2016,Social Care & Inclusion,C & V ORCHARD MANOR LTD,15/03/2016,"3,338.06",73373-RESIDENTIAL & NURSING CARE PLACEMENTS,OP COMMISSIONING,Third Party Payments,Revenue
Walsall Council,http://opendatacommunities.org/id/metropolitan-district-council/walsall,WC66-725,31/03/2016,Social Care & Inclusion,C & V ORCHARD MANOR LTD,08/03/2016,"7,679.52",73373-RESIDENTIAL & NURSING CARE PLACEMENTS,OP COMMISSIONING,Third Party Payments,Revenue
Walsall Council,http://opendatacommunities.org/id/metropolitan-district-council/walsall,WC66-726,31/03/2016,Social Care & Inclusion,C & V ORCHARD RESIDENTIAL LTD,24/03/2016,373.31,73373-RESIDENTIAL & NURSING CARE PLACEMENTS,OP COMMISSIONING,Third Party Payments,Revenue
Walsall Council,http://opendatacommunities.org/id/metropolitan-district-council/walsall,WC66-727,31/03/2016,Social Care & Inclusion,C & V ORCHARD RESIDENTIAL LTD,08/03/2016,799.95,73373-RESIDENTIAL & NURSING CARE PLACEMENTS,OP COMMISSIONING,Third Party Payments,Revenue
Walsall Council,http://opendatacommunities.org/id/metropolitan-district-council/walsall,WC66-728,31/03/2016,Social Care & Inclusion,C & V ORCHARD RESIDENTIAL LTD,08/03/2016,853.28,73373-RESIDENTIAL & NURSING CARE PLACEMENTS,OP COMMISSIONING,Third Party Payments,Revenue
Walsall Council,http://opendatacommunities.org/id/metropolitan-district-council/walsall,WC66-729,31/03/2016,Social Care & Inclusion,C & V ORCHARD RESIDENTIAL LTD,08/03/2016,"1,423.43",73373-RESIDENTIAL & NURSING CARE PLACEMENTS,OP COMMISSIONING,Third Party Payments,Revenue
Walsall Council,http://opendatacommunities.org/id/metropolitan-district-council/walsall,WC66-730,31/03/2016,Social Care & Inclusion,C & V ORCHARD RESIDENTIAL LTD,08/03/2016,"1,456.59",73373-RESIDENTIAL & NURSING CARE PLACEMENTS,OP COMMISSIONING,Third Party Payments,Revenue
Walsall Council,http://opendatacommunities.org/id/metropolitan-district-council/walsall,WC66-731,31/03/2016,Social Care & Inclusion,C & V ORCHARD RESIDENTIAL LTD,08/03/2016,"1,458.16",73373-RESIDENTIAL & NURSING CARE PLACEMENTS,OP COMMISSIONING,Third Party Payments,Revenue
Walsall Council,http://opendatacommunities.org/id/metropolitan-district-council/walsall,WC66-732,31/03/2016,Social Care & Inclusion,C & V ORCHARD RESIDENTIAL LTD,08/03/2016,"1,471.19",73373-RESIDENTIAL & NURSING CARE PLACEMENTS,OP COMMISSIONING,Third Party Payments,Revenue
Walsall Council,http://opendatacommunities.org/id/metropolitan-district-council/walsall,WC66-733,31/03/2016,Social Care & Inclusion,C & V ORCHARD RESIDENTIAL LTD,08/03/2016,"1,493.24",73373-RESIDENTIAL & NURSING CARE PLACEMENTS,OP COMMISSIONING,Third Party Payments,Revenue
Walsall Council,http://opendatacommunities.org/id/metropolitan-district-council/walsall,WC66-734,31/03/2016,Social Care & Inclusion,C & V ORCHARD RESIDENTIAL LTD,24/03/2016,"1,493.24",73373-RESIDENTIAL & NURSING CARE PLACEMENTS,OP COMMISSIONING,Third Party Payments,Revenue
Walsall Council,http://opendatacommunities.org/id/metropolitan-district-council/walsall,WC66-735,31/03/2016,Social Care & Inclusion,C & V ORCHARD RESIDENTIAL LTD,24/03/2016,"1,493.24",73373-RESIDENTIAL & NURSING CARE PLACEMENTS,OP COMMISSIONING,Third Party Payments,Revenue
Walsall Council,http://opendatacommunities.org/id/metropolitan-district-council/walsall,WC66-736,31/03/2016,Social Care & Inclusion,C & V ORCHARD RESIDENTIAL LTD,24/03/2016,"1,493.24",73373-RESIDENTIAL & NURSING CARE PLACEMENTS,OP COMMISSIONING,Third Party Payments,Revenue
Walsall Council,http://opendatacommunities.org/id/metropolitan-district-council/walsall,WC66-737,31/03/2016,Social Care & Inclusion,C & V ORCHARD RESIDENTIAL LTD,08/03/2016,"1,545.70",73373-RESIDENTIAL & NURSING CARE PLACEMENTS,OP COMMISSIONING,Third Party Payments,Revenue
Walsall Council,http://opendatacommunities.org/id/metropolitan-district-council/walsall,WC66-738,31/03/2016,Social Care & Inclusion,C & V ORCHARD RESIDENTIAL LTD,24/03/2016,"1,566.20",73373-RESIDENTIAL & NURSING CARE PLACEMENTS,OP COMMISSIONING,Third Party Payments,Revenue
Walsall Council,http://opendatacommunities.org/id/metropolitan-district-council/walsall,WC66-739,31/03/2016,Social Care & Inclusion,C & V ORCHARD RESIDENTIAL LTD,24/03/2016,"1,566.20",73373-RESIDENTIAL & NURSING CARE PLACEMENTS,OP COMMISSIONING,Third Party Payments,Revenue
Walsall Council,http://opendatacommunities.org/id/metropolitan-district-council/walsall,WC66-740,31/03/2016,Social Care & Inclusion,C & V ORCHARD RESIDENTIAL LTD,24/03/2016,"1,566.20",73373-RESIDENTIAL & NURSING CARE PLACEMENTS,OP COMMISSIONING,Third Party Payments,Revenue
Walsall Council,http://opendatacommunities.org/id/metropolitan-district-council/walsall,WC66-741,31/03/2016,Social Care & Inclusion,C & V ORCHARD RESIDENTIAL LTD,24/03/2016,"1,568.60",73373-RESIDENTIAL & NURSING CARE PLACEMENTS,OP COMMISSIONING,Third Party Payments,Revenue
Walsall Council,http://opendatacommunities.org/id/metropolitan-district-council/walsall,WC66-742,31/03/2016,Social Care & Inclusion,C & V ORCHARD RESIDENTIAL LTD,24/03/2016,"1,568.60",73373-RESIDENTIAL & NURSING CARE PLACEMENTS,OP COMMISSIONING,Third Party Payments,Revenue
Walsall Council,http://opendatacommunities.org/id/metropolitan-district-council/walsall,WC66-743,31/03/2016,Social Care & Inclusion,C & V ORCHARD RESIDENTIAL LTD,24/03/2016,"1,568.60",73373-RESIDENTIAL & NURSING CARE PLACEMENTS,OP COMMISSIONING,Third Party Payments,Revenue
Walsall Council,http://opendatacommunities.org/id/metropolitan-district-council/walsall,WC66-744,31/03/2016,Social Care & Inclusion,C & V ORCHARD RESIDENTIAL LTD,24/03/2016,"1,568.60",73373-RESIDENTIAL & NURSING CARE PLACEMENTS,OP COMMISSIONING,Third Party Payments,Revenue
Walsall Council,http://opendatacommunities.org/id/metropolitan-district-council/walsall,WC66-745,31/03/2016,Social Care & Inclusion,C & V ORCHARD RESIDENTIAL LTD,08/03/2016,"1,568.64",73373-RESIDENTIAL & NURSING CARE PLACEMENTS,OP COMMISSIONING,Third Party Payments,Revenue
Walsall Council,http://opendatacommunities.org/id/metropolitan-district-council/walsall,WC66-746,31/03/2016,Social Care & Inclusion,C & V ORCHARD RESIDENTIAL LTD,24/03/2016,"1,568.64",73373-RESIDENTIAL & NURSING CARE PLACEMENTS,OP COMMISSIONING,Third Party Payments,Revenue
Walsall Council,http://opendatacommunities.org/id/metropolitan-district-council/walsall,WC66-747,31/03/2016,Social Care & Inclusion,C & V ORCHARD RESIDENTIAL LTD,08/03/2016,"1,599.04",73373-RESIDENTIAL & NURSING CARE PLACEMENTS,OP COMMISSIONING,Third Party Payments,Revenue
Walsall Council,http://opendatacommunities.org/id/metropolitan-district-council/walsall,WC66-748,31/03/2016,Social Care & Inclusion,C & V ORCHARD RESIDENTIAL LTD,08/03/2016,"1,624.94",73373-RESIDENTIAL & NURSING CARE PLACEMENTS,OP COMMISSIONING,Third Party Payments,Revenue
Walsall Council,http://opendatacommunities.org/id/metropolitan-district-council/walsall,WC66-749,31/03/2016,Social Care & Inclusion,C & V ORCHARD RESIDENTIAL LTD,08/03/2016,"1,634.69",73373-RESIDENTIAL & NURSING CARE PLACEMENTS,OP COMMISSIONING,Third Party Payments,Revenue
Walsall Council,http://opendatacommunities.org/id/metropolitan-district-council/walsall,WC66-750,31/03/2016,Social Care & Inclusion,C & V ORCHARD RESIDENTIAL LTD,08/03/2016,"1,689.36",73373-RESIDENTIAL & NURSING CARE PLACEMENTS,OP COMMISSIONING,Third Party Payments,Revenue
Walsall Council,http://opendatacommunities.org/id/metropolitan-district-council/walsall,WC66-751,31/03/2016,Childrens,REDACTED,24/03/2016,"4,317.64",62515-MISCELLANEOUS SUPPLIES,INTERNAL FOSTER CARE PROVISION,Supplies & Services,Revenue
Walsall Council,http://opendatacommunities.org/id/metropolitan-district-council/walsall,WC66-752,31/03/2016,Childrens,REDACTED,01/03/2016,"4,877.96",74006-HOLIDAY/CHRISTMAS ALLOWANCE-FOSTER CARERS-OTH AGENCY PROVISION,INTERNAL FOSTER CARE PROVISION,Third Party Payments,Revenue
Walsall Council,http://opendatacommunities.org/id/metropolitan-district-council/walsall,WC66-753,31/03/2016,Childrens,REDACTED,24/03/2016,"4,877.96",74006-HOLIDAY/CHRISTMAS ALLOWANCE-FOSTER CARERS-OTH AGENCY PROVISION,INTERNAL FOSTER CARE PROVISION,Third Party Payments,Revenue
Walsall Council,http://opendatacommunities.org/id/metropolitan-district-council/walsall,WC66-754,31/03/2016,Childrens,REDACTED,24/03/2016,"1,445.32",62515-MISCELLANEOUS SUPPLIES,INTERNAL FOSTER CARE PROVISION,Supplies & Services,Revenue
Walsall Council,http://opendatacommunities.org/id/metropolitan-district-council/walsall,WC66-755,31/03/2016,Childrens,REDACTED,01/03/2016,"1,461.24",74006-HOLIDAY/CHRISTMAS ALLOWANCE-FOSTER CARERS-OTH AGENCY PROVISION,INTERNAL FOSTER CARE PROVISION,Third Party Payments,Revenue
Walsall Council,http://opendatacommunities.org/id/metropolitan-district-council/walsall,WC66-756,31/03/2016,Childrens,REDACTED,24/03/2016,"1,643.90",74006-HOLIDAY/CHRISTMAS ALLOWANCE-FOSTER CARERS-OTH AGENCY PROVISION,INTERNAL FOSTER CARE PROVISION,Third Party Payments,Revenue
Walsall Council,http://opendatacommunities.org/id/metropolitan-district-council/walsall,WC66-757,31/03/2016,Economy & Environment,C P DAVIDSON & SONS LTD,02/03/2016,209.30,60514-MATERIALS TO STORES,FLEET PARTS STOCK ACCOUNT,Supplies & Services,Revenue
Walsall Council,http://opendatacommunities.org/id/metropolitan-district-council/walsall,WC66-758,31/03/2016,Economy & Environment,C P DAVIDSON & SONS LTD,10/03/2016,424.80,73025-PROFESSIONAL SERVICES-PRIV CONTRACTOR & OTHER AGENCIES,FLEET,Third Party Payments,Revenue
Walsall Council,http://opendatacommunities.org/id/metropolitan-district-council/walsall,WC66-759,31/03/2016,Economy & Environment,C P DAVIDSON & SONS LTD,02/03/2016,"1,239.30",60500-GENERAL MATERIALS,FLEET,Supplies & Services,Revenue
Walsall Council,http://opendatacommunities.org/id/metropolitan-district-council/walsall,WC66-760,31/03/2016,Childrens,REDACTED,14/03/2016,"1,142.88",74006-HOLIDAY/CHRISTMAS ALLOWANCE-FOSTER CARERS-OTH AGENCY PROVISION,INTERNAL FOSTER CARE PROVISION,Third Party Payments,Revenue
Walsall Council,http://opendatacommunities.org/id/metropolitan-district-council/walsall,WC66-761,31/03/2016,Economy & Environment,REDACTED,01/03/2016,540.00,63000-PROFESSIONAL FEES AND SERVICES,PHOTOGRAPHY EXHIBITION NO. 2 WSA,Supplies & Services,Revenue
Walsall Council,http://opendatacommunities.org/id/metropolitan-district-council/walsall,WC66-762,31/03/2016,Social Care & Inclusion,CALDMORE AREA HOUSING ASS LTD,22/03/2016,271.40,73373-RESIDENTIAL & NURSING CARE PLACEMENTS,MH COMMISSIONING,Third Party Payments,Revenue
Walsall Council,http://opendatacommunities.org/id/metropolitan-district-council/walsall,WC66-763,31/03/2016,Social Care & Inclusion,CALDMORE AREA HOUSING ASS LTD,31/03/2016,283.35,73374-SUPPORTED & OTHER ACCOMMODATION,MH COMMISSIONING,Third Party Payments,Revenue
Walsall Council,http://opendatacommunities.org/id/metropolitan-district-council/walsall,WC66-764,31/03/2016,Social Care & Inclusion,CALDMORE AREA HOUSING ASS LTD,31/03/2016,347.51,73372-DOMICILIARY CARE,MH COMMISSIONING,Third Party Payments,Revenue
Walsall Council,http://opendatacommunities.org/id/metropolitan-district-council/walsall,WC66-765,31/03/2016,Social Care & Inclusion,CALDMORE AREA HOUSING ASS LTD,01/03/2016,359.29,73372-DOMICILIARY CARE,MH COMMISSIONING,Third Party Payments,Revenue
Walsall Council,http://opendatacommunities.org/id/metropolitan-district-council/walsall,WC66-766,31/03/2016,Social Care & Inclusion,CALDMORE AREA HOUSING ASS LTD,01/03/2016,400.52,73374-SUPPORTED & OTHER ACCOMMODATION,OP COMMISSIONING,Third Party Payments,Revenue
Walsall Council,http://opendatacommunities.org/id/metropolitan-district-council/walsall,WC66-767,31/03/2016,Social Care & Inclusion,CALDMORE AREA HOUSING ASS LTD,31/03/2016,400.52,73372-DOMICILIARY CARE,MH COMMISSIONING,Third Party Payments,Revenue
